{"text_format":"1","workbook":"xlsx","n_sheets":4,"sheets":["hodnoceni","vysledky","knt_tab","ranking"],"not_rendered":{"charts":0,"images":0,"macros":1,"external_links":0,"defined_names":3,"comments":0,"pivot_tables":14},"unopened":[],"bounds":{"document_bytes":16777216,"sheet_cells":100000,"rows_first":2000,"rows_last":500,"rows_between":2000,"halvings":0,"cell_chars":16384,"cell_head_chars":4096},"cells_cut":0,"cells_raw":0,"read":"whole","date_system":"1900"}

{"sheet":"hodnoceni","index":0,"n_rows":63,"n_cols":9,"rows_kept":63,"cut":false,"hidden":false,"merged":[]}
["1.      Kritéria pro bodování jednotlivců:"]
[]
["Každý závodník obdrží :"]
["a)","1 bod za vyhraný zápas v turnaji jednotlivců"]
["b)","2 body za vyhraný zápas v turnaji družstev"]
["c)","1 bod za remízu v turnaji družstev"]
["d)","počet bodů za umístění podle typu soutěže"]
[]
["1.1.  Mistrovské soutěže ( MK, MČR, ME, MS, soutěže družstev):"]
[]
["1.1.1        MK:",null,null,null,null,"1.1.3        ME:"]
["             ","1. místo                 7 bodů",null,null,null,"             ","1. místo                 50 bodů"]
["             ","2. místo                 5 bodů",null,null,null,"             ","2. místo                 40 bodů"]
["             ","3. místo                 4 body",null,null,null,"             ","3. místo                 35 bodů "]
[null,null,null,null,null,null,"4. místo                 30 bodů"]
[" ",null,null,null,null,"             ","5. místo                 30 bodů"]
[null,null,null,null,null,null,"6. místo                 25 bodů"]
[null,null,null,null,null,"             ","7. místo                 25 bodů"]
[null,null,null,null,null,"             ","9. místo                 20 bodů"]
["1.1.2        MČR:"]
["             ","1. místo                 20 bodů",null,null,null,"1.1.4        MS:"]
["             ","2. místo                 15 bodů",null,null,null,null,"1. místo                100 bodů"]
["             ","3. místo                 10 bodů ",null,null,null,null,"2. místo                 80 bodů"]
["             ","4. místo                   7 bodů ",null,null,null,null,"3. místo                 70 bodů "]
["             ","5. místo                   7 bodů",null,null,null,null,"5. místo                 60 bodů"]
["             ","6. místo                   5 bodů",null,null,null,null,"7. místo                 50 bodů"]
[null,"7. místo                   5 bodů",null,null,null,null,"9. místo                 40 bodů"]
[]
["1.2.    Nemistrovské soutěže ( MC, PK, VC, MVC, ČP, MT, PČR, EJU, soutěže družstev):"]
[]
["1.2.1        MC a ostatní :",null,null,null,null,"1.2.2        VC, MVC, PK a PSO:"]
["             ","1. místo                  4      body",null,null,null,null,"1.místo                  6    bodů"]
["             ","2. místo                  3      body",null,null,null,null,"2. místo                 5    bodů"]
["             ","3. místo                  2      body ",null,null,null,null,"3. místo                 3    body "]
[null,null,null,null,null," "]
["1.2.3        KT, MT a PČR:",null,null,null,null,"1.2.4        EJU:"]
["             ","1. místo               10 bodů",null,null,null,"           ","1. místo                 35 bodů"]
["             ","2. místo                 7 bodů",null,null,null,"             ","2. místo                 30 bodů"]
["             ","3. místo                 5 bodů ",null,null,null,"             ","3. místo                 25 bodů "]
["             ","4. místo                 3 body ",null,null,null,"             ","5. místo                 20 bodů "]
["             ","5. místo                 3 body ",null,null,null,"             ","7. místo                 15 bodů"]
["             ","6. místo                 2 body ",null,null,null,"             ","9. místo                 10 bodů"]
[null,"7. místo                 2 body"]
[null,null,null,null,null,"1.2.4        EYOF:"]
[null,null,null,null,null,"           ","1. místo                 50 bodů"]
[null,null,null,null,null,"             ","2. místo                 40 bodů"]
[null,null,null,null,null,"             ","3. místo                 35 bodů "]
[null,null,null,null,null,"             ","5. místo                 30 bodů "]
[null,null,null,null,null,"             ","7. místo                 25 bodů"]
[null,null,null,null,null,"             ","9. místo                 20 bodů"]
[]
["Legenda :"]
["MC","malá cena",null,null,null,null,null,"MK","mistrovství kraje"]
["VC ","ostatní turnaje zařazené do kal. ČSJu",null,null,null,null,null,"MČR","mistrovství České republiky"]
["MVC","mezinárodní velká cena",null,null,null,null,null,"ME","mistrovství Evropy"]
["PK","přebor kraje",null,null,null,null,null,"DL","dorostenecká liga"]
["PČR","přebor České republiky",null,null,null,null,null,"EXL","extraliga mužů"]
["ČP","turnaj českého poháru",null,null,null,null,null,"PSO","přebor spojených oblastí"]
["MT","turnaj za účasti více než 3 států",null,null,null,null,null,"MS","mistrovství světa"]
["EJU","turnaj zařazen do kalendáře Evropské federace juda",null,null,null,null,null,"EYOF","Evropský olympijský festival mládeže"]
[]
["V Ostravě 30.3.2019"]
["M. Pavlica"]

{"sheet":"vysledky","index":1,"n_rows":996,"n_cols":23,"rows_kept":996,"cut":false,"hidden":false,"merged":[]}
["datum","nazev","typ_souteze","jedn./dr.","Primeni","Jmeno","umisteni","kategorie","vaha","vyhr_zap","rem_zap","prohr_zap","body_um","body_zap","zavodnik","body",null,"Typ soutěže",null,"Bodování"]
["2019-01-12","Jánošík CUP 2019 - Bialsko Biala","MT","j","Ciora","Jakub","bez","mláďata","30",1,0,2,{"$f":"IF(ISNA(VLOOKUP(C2&G2,$V$3:$W$95,2,FALSE)),0,VLOOKUP(C2&G2,$V$3:$W$95,2,FALSE))","v":0},{"$f":"IF(D2=\"d\",SUM(J2*2,K2),J2)","v":1},{"$f":"E2&\" \"&F2","v":"Ciora Jakub"},{"$f":"SUM(M2,N2)","v":1},null,"MC",null,"typ_souteze","umisteni","kód","body"]
["2019-01-12","Jánošík CUP 2019 - Bialsko Biala","MT","j","Bechný","Adam",3,"mláďata","27",4,0,1,5,{"$f":"IF(D3=\"d\",SUM(J3*2,K3),J3)","v":4},"Bechný Adam",{"$f":"SUM(M3,N3)","v":9},null,"VC",null,"EJU",1,{"$f":"T3&U3","v":"EJU1"},35]
["2019-01-12","Jánošík CUP 2019 - Bialsko Biala","MT","j","Kuluris","Manolis","bez","mláďata","33",0,0,1,0,0,"Kuluris Manolis",0,null,"MVC",null,"EJU",2,"EJU2",30]
["2019-01-12","Jánošík CUP 2019 - Bialsko Biala","MT","j","Vaněk","David","bez","mláďata","25",0,0,1,0,0,"Vaněk David",0,null,"PK",null,"EJU",3,"EJU3",25]
["2019-01-12","Jánošík CUP 2019 - Bialsko Biala","MT","j","Přichystal","Leon","bez","mláďata","27",1,0,2,0,1,"Přichystal Leon",1,null,"PCR",null,"EJU",5,"EJU5",20]
["2019-01-12","Jánošík CUP 2019 - Bialsko Biala","MT","j","Bechný","Martin","bez","mladší žáci","36",0,0,1,0,0,"Bechný Martin",0,null,"PSO",null,"EJU",7,"EJU7",15]
["2019-01-12","Jánošík CUP 2019 - Bialsko Biala","MT","j","Fojtík","Jiří Václav","bez","mladší žáci","30",0,0,1,0,0,"Fojtík Jiří Václav",0,null,"CP",null,"EJU",9,"EJU9",10]
["2019-01-12","Jánošík CUP 2019 - Bialsko Biala","MT","j","Mařec","Tomáš",5,"mladší žáci","36",2,0,2,{"$f":"IF(ISNA(VLOOKUP(C9&G9,$V$3:$W$95,2,FALSE)),0,VLOOKUP(C9&G9,$V$3:$W$95,2,FALSE))","v":3},{"$f":"IF(D9=\"d\",SUM(J9*2,K9),J9)","v":2},{"$f":"E9&\" \"&F9","v":"Mařec Tomáš"},{"$f":"SUM(M9,N9)","v":5},null,"MK",null,"CP",1,"CP1",10]
["2019-01-12","Jánošík CUP 2019 - Bialsko Biala","MT","j","Valošek","Jakub",7,"mladší žáci","35",2,0,2,2,2,"Valošek Jakub",4,null,"MCR",null,"CP",2,"CP2",7]
["2019-01-12","Jánošík CUP 2019 - Bialsko Biala","MT","j","Kocmanová","Lucie",1,"mladší žákyně","31",2,0,0,10,2,"Kocmanová Lucie",12,null,"DL",null,"CP",3,"CP3",5]
["2019-01-19","Velká cena České Třebové","VC","j","To","Vojtěch",2,"mláďata","24,1",3,0,1,5,3,"To Vojtěch",8,null,"1.liga",null,"CP",4,"CP4",3]
["2019-01-19","Velká cena České Třebové","VC","j","Nuhlíček","Michal",1,"mláďata","28,5",5,0,0,6,5,"Nuhlíček Michal",11,null,"EXL",null,"CP",5,"CP5",3]
["2019-01-19","Velká cena České Třebové","VC","j","Gutiqi","Ryan","bez","mláďata","30,5",0,0,5,0,0,"Gutiqi Ryan",0,null,"EJU",null,"CP",6,"CP6",2]
["2019-01-19","Velká cena České Třebové","VC","j","Šelong","Tadeáš","bez","mláďata","30,5",1,0,5,0,1,"Šelong Tadeáš",1,null,"EYOF",null,"CP",7,{"$f":"T15&U15","v":"CP7"},2]
["2019-01-19","Velká cena České Třebové","VC","j","Kret","Matyáš","bez","mláďata","33,3",1,0,3,0,1,"Kret Matyáš",1,null,"ME",null,"MC",1,"MC1",4]
["2019-01-19","Velká cena České Třebové","VC","j","Huvar","Matyáš",1,"mláďata","38,3",5,0,0,6,5,"Huvar Matyáš",11,null,"MT",null,"MC",2,"MC2",3]
["2019-01-19","Velká cena České Třebové","VC","j","Stark","Vojtěch",1,"mláďata","40,7",3,0,0,6,3,"Stark Vojtěch",9,null,"MS",null,"MC",3,"MC3",2]
["2019-01-19","Velká cena České Třebové","VC","j","Škoda","Melichar",1,"mláďata","56,6",5,0,0,6,5,"Škoda Melichar",11,null,null,null,"MCR",1,"MCR1",20]
["2019-01-19","Velká cena České Třebové","VC","j","Caletka","Petr","bez","starší žáci","55",0,0,1,0,0,"Caletka Petr",0,null,"Věkové kategorie",null,"MCR",2,"MCR2",15]
["2019-01-19","Velká cena České Třebové","VC","j","Caletka","Michal","bez","starší žáci","50",0,0,1,0,0,"Caletka Michal",0,null,"mláďata",null,"MCR",3,"MCR3",10]
["2019-01-19","Velká cena České Třebové","VC","j","Neckář","Matěj",3,"starší žáci","66",3,0,1,3,3,"Neckář Matěj",6,null,"mladší žákyně",null,"MCR",4,"MCR4",7]
["2019-01-19","Velká cena České Třebové","VC","j","Čerchla","Michal","bez","starší žáci","66",0,0,1,0,0,"Čerchla Michal",0,null,"mladší žáci",null,"MCR",5,"MCR5",7]
["2019-01-19","Velká cena České Třebové","VC","j","Fulneček","Šimon",3,"starší žáci","73",2,0,1,3,2,"Fulneček Šimon",5,null,"starší žákyně",null,"MCR",6,"MCR6",5]
["2019-01-19","Velká cena České Třebové","VC","j","Čebík","Filip",2,"starší žáci","46",4,0,1,5,4,"Čebík Filip",9,null,"starší žáci",null,"MCR",7,{"$f":"T25&U25","v":"MCR7"},5]
["2019-01-19","Velká cena České Třebové","VC","j","Tomek","David","bez","starší žáci","60",0,0,1,0,0,"Tomek David",0,null,"dorostenky",null,"EYOF",1,"EYOF1",50]
["2019-01-19","Velká cena České Třebové","VC","j","Kolář","Vojtěch","bez","starší žáci","50",0,0,2,0,0,"Kolář Vojtěch",0,null,"dorostenci",null,"EYOF",2,"EYOF2",40]
["2019-01-19","Velká cena České Třebové","VC","j","Meixner","Michal","bez","starší žáci","46",2,0,2,0,2,"Meixner Michal",2,null,"juniorky",null,"EYOF",3,"EYOF3",35]
["2019-01-19","Velká cena České Třebové","VC","j","Huvar","Jakub",3,"starší žáci","46",3,0,1,3,3,"Huvar Jakub",6,null,"junioři",null,"EYOF",5,"EYOF5",30]
["2019-01-19","Velká cena České Třebové","VC","j","Rapčanová","Silvie",1,"starší žákyně","40",2,0,1,6,2,"Rapčanová Silvie",8,null,"ženy",null,"EYOF",7,"EYOF7",25]
["2019-01-19","Velká cena České Třebové","VC","j","Rapčanová","Alice","bez","starší žákyně","44",0,0,2,0,0,"Rapčanová Alice",0,null,"muži",null,"EYOF",9,"EYOF9",20]
["2019-01-19","Velká cena České Třebové","VC","j","Vavřínová","Pavla",2,"starší žákyně","52",3,0,1,5,3,"Vavřínová Pavla",8,null,"veteráni",null,"ME",1,{"$f":"T32&U32","v":"ME1"},50]
["2019-01-19","Velká cena České Třebové","VC","j","Kuželová","Dominika",3,"starší žákyně","57",3,0,1,3,3,"Kuželová Dominika",6,null,"kata",null,"ME",2,"ME2",40]
["2019-01-19","Velká cena České Třebové","VC","j","Kosťová","Barbora","bez","starší žákyně","57",1,0,2,0,1,"Kosťová Barbora",1,null,null,null,"ME",3,"ME3",35]
["2019-01-20","Velká cena České Třebové","VC","j","Valošek","Jakub","bez","mladší žáci","34",0,0,1,0,0,"Valošek Jakub",0,null,null,null,"ME",4,{"$f":"T35&U35","v":"ME4"},30]
["2019-01-20","Velká cena České Třebové","VC","j","Mařec","Tomáš","bez","mladší žáci","38",1,0,1,0,1,"Mařec Tomáš",1,null,null,null,"ME",5,"ME5",30]
["2019-01-20","Velká cena České Třebové","VC","j","Kanclíř","Šimon","bez","mladší žáci","38",1,0,1,0,1,"Kanclíř Šimon",1,null,null,null,"ME",6,{"$f":"T37&U37","v":"ME6"},25]
["2019-01-20","Velká cena České Třebové","VC","j","To","Adam","bez","mladší žáci","38",0,0,1,0,0,"To Adam",0,null,null,null,"ME",7,"ME7",25]
["2019-01-20","Velká cena České Třebové","VC","j","Seibert","Marian","bez","mladší žáci","42",1,0,1,0,1,"Seibert Marian",1,null,null,null,"ME",9,"ME9",20]
["2019-01-20","Velká cena České Třebové","VC","j","Malinovský","Jiří","bez","mladší žáci","42",0,0,1,0,0,"Malinovský Jiří",0,null,null,null,"MK",1,"MK1",7]
["2019-01-20","Velká cena České Třebové","VC","j","Plaček","Viktor","bez","mladší žáci","42",0,0,1,0,0,"Plaček Viktor",0,null,null,null,"MK",2,"MK2",5]
["2019-01-20","Velká cena České Třebové","VC","j","Šimkovič","Ondřej","bez","mladší žáci","50",0,0,1,0,0,"Šimkovič Ondřej",0,null,null,null,"MK",3,"MK3",4]
["2019-01-20","Velká cena České Třebové","VC","j","Buček","Dan","bez","mladší žáci","55",0,0,4,0,0,"Buček Dan",0,null,null,null,"MVC",1,"MVC1",6]
["2019-01-20","Velká cena České Třebové","VC","j","Štverka","Matyáš","bez","mladší žáci","60",0,0,5,0,0,"Štverka Matyáš",0,null,null,null,"MVC",2,"MVC2",5]
["2019-01-20","Velká cena České Třebové","VC","j","Fráňa","Patrik",3,"dorostenci","46",2,0,1,3,2,"Fráňa Patrik",5,null,null,null,"MVC",3,"MVC3",3]
["2019-01-20","Velká cena České Třebové","VC","j","Kolář","Daniel","bez","dorostenci","60",0,0,1,0,0,"Kolář Daniel",0,null,null,null,"PCR",1,"PCR1",10]
["2019-01-20","Velká cena České Třebové","VC","j","Pustka","Robin","bez","dorostenci","66",0,0,2,0,0,"Pustka Robin",0,null,null,null,"PCR",2,"PCR2",7]
["2019-01-20","Velká cena České Třebové","VC","j","Kunc","Matěj",2,"dorostenci","55",2,0,1,5,2,"Kunc Matěj",7,null,null,null,"PCR",3,"PCR3",5]
["2019-01-20","Velká cena České Třebové","VC","j","Malaczynski","Filip","bez","dorostenci","60",1,0,2,0,1,"Malaczynski Filip",1,null,null,null,"PCR",4,"PCR4",3]
["2019-01-20","Velká cena České Třebové","VC","j","Tycar","Štěpán","bez","dorostenci","60",0,0,1,0,0,"Tycar Štěpán",0,null,null,null,"PCR",5,"PCR5",3]
["2019-01-20","Velká cena České Třebové","VC","j","Motyka","Dominik",2,"dorostenci","73",3,0,1,5,3,"Motyka Dominik",8,null,null,null,"PCR",6,"PCR6",2]
["2019-01-20","Velká cena České Třebové","VC","j","Meixner","Tomáš",1,"dorostenci","55",4,0,0,6,4,"Meixner Tomáš",10,null,null,null,"PCR",7,{"$f":"T52&U52","v":"PCR7"},2]
["2019-01-20","Velká cena České Třebové","VC","j","Lindovský","Jiří",3,"dorostenci","60",3,0,1,3,3,"Lindovský Jiří",6,null,null,null,"PK",1,{"$f":"T53&U53","v":"PK1"},6]
["2019-01-20","Velká cena České Třebové","VC","j","Křížek","Šimon",3,"dorostenci","60",3,0,1,3,3,"Křížek Šimon",6,null,null,null,"PK",2,"PK2",5]
["2019-01-20","Velká cena České Třebové","VC","j","Kršňák","Filip",3,"dorostenci","66",3,0,1,3,3,"Kršňák Filip",6,null,null,null,"PK",3,"PK3",3]
["2019-01-20","Velká cena České Třebové","VC","j","Otáhalová","Magdaléna","bez","dorostenky","52",0,0,2,0,0,"Otáhalová Magdaléna",0,null,null,null,"PSO",1,{"$f":"T56&U56","v":"PSO1"},6]
["2019-01-20","Velká cena České Třebové","VC","j","Kokešová","Alexandra",3,"dorostenky","52",2,0,1,3,2,"Kokešová Alexandra",5,null,null,null,"PSO",2,"PSO2",5]
["2019-01-20","Velká cena České Třebové","VC","j","Václavková","Tereza",2,"dorostenky","57",4,0,1,5,4,"Václavková Tereza",9,null,null,null,"PSO",3,"PSO3",3]
["2019-02-02","Dorostenecká liga - 1. kolo Ostrava","DL","d","Mojžíšek","Lukáš",null,"dorostenci","90",5,0,0,0,10,"Mojžíšek Lukáš",10,null,null,null,"VC",1,"VC1",6]
["2019-02-02","Dorostenecká liga - 1. kolo Ostrava","DL","d","Motyka","Dominik",null,"dorostenci","73",4,0,1,0,8,"Motyka Dominik",8,null,null,null,"VC",2,"VC2",5]
["2019-02-02","Dorostenecká liga - 1. kolo Ostrava","DL","d","Meixner","Tomáš",null,"dorostenci","55",2,0,1,0,4,"Meixner Tomáš",4,null,null,null,"VC",3,"VC3",3]
["2019-02-02","Dorostenecká liga - 1. kolo Ostrava","DL","d","Pavlica","Lukáš",null,"dorostenci","90",2,0,3,0,4,"Pavlica Lukáš",4,null,null,null,"MT",1,"MT1",10]
["2019-02-02","Dorostenecká liga - 1. kolo Ostrava","DL","d","Křížek","Šimon",null,"dorostenci","60",1,0,0,0,2,"Křížek Šimon",2,null,null,null,"MT",2,"MT2",7]
["2019-02-02","Dorostenecká liga - 1. kolo Ostrava","DL","d","Lindovský","Jiří",null,"dorostenci","60",1,0,1,0,2,"Lindovský Jiří",2,null,null,null,"MT",3,"MT3",5]
["2019-02-02","Dorostenecká liga - 1. kolo Ostrava","DL","d","Malaczynski","Filip",null,"dorostenci","60",1,0,1,0,2,"Malaczynski Filip",2,null,null,null,"MT",4,"MT4",3]
["2019-02-02","Dorostenecká liga - 1. kolo Ostrava","DL","d","Bulka","Vojtěch",6,"dorostenci","55",1,0,0,5,2,"Bulka Vojtěch",7,null,null,null,"MT",5,"MT5",3]
["2019-02-02","Dorostenecká liga - 1. kolo Ostrava","DL","d","Kršňák","Filip",null,"dorostenci","66",1,0,1,0,2,"Kršňák Filip",2,null,null,null,"MT",6,{"$f":"T67&U67","v":"MT6"},2]
["2019-02-09","Pohár nadějí - Olomouc","VC","j","Čebík","Filip",2,"dorostenci","50",3,0,1,5,3,"Čebík Filip",8,null,null,null,"MT",7,{"$f":"T68&U68","v":"MT7"},2]
["2019-02-09","Pohár nadějí - Olomouc","VC","j","Bulka","Vojtěch",5,"dorostenci","55",2,0,2,0,2,"Bulka Vojtěch",2,null,null,null,"DL",1,"DL1",20]
["2019-02-09","Pohár nadějí - Olomouc","VC","j","Malaczynski","Filip",3,"dorostenci","60",5,0,1,3,5,"Malaczynski Filip",8,null,null,null,"DL",2,"DL2",15]
["2019-02-09","Pohár nadějí - Olomouc","VC","j","Lindovský","Jiří","bez","dorostenci","60",1,0,1,0,1,"Lindovský Jiří",1,null,null,null,"DL",3,"DL3",10]
["2019-02-09","Pohár nadějí - Olomouc","VC","j","Křížek","Šimon",7,"dorostenci","60",2,0,2,0,2,"Křížek Šimon",2,null,null,null,"DL",4,"DL4",7]
["2019-02-09","Pohár nadějí - Olomouc","VC","j","Motyka","Dominik",7,"dorostenci","73",1,0,2,{"$f":"IF(ISNA(VLOOKUP(C73&G73,$V$3:$W$95,2,FALSE)),0,VLOOKUP(C73&G73,$V$3:$W$95,2,FALSE))","v":0},{"$f":"IF(D73=\"d\",SUM(J73*2,K73),J73)","v":1},{"$f":"E73&\" \"&F73","v":"Motyka Dominik"},{"$f":"SUM(M73,N73)","v":1},null,null,null,"DL",5,"DL5",7]
["2019-02-09","Pohár nadějí - Olomouc","VC","j","Mojžíšek","Lukáš",3,"dorostenci","90",3,0,2,3,3,"Mojžíšek Lukáš",6,null,null,null,"DL",6,"DL6",5]
["2019-02-09","Pohár nadějí - Olomouc","VC","j","Kršňák","Filip","bez","dorostenci","66",0,0,1,0,0,"Kršňák Filip",0,null,null,null,"DL",7,{"$f":"T75&U75","v":"DL7"},5]
["2019-02-09","Pohár nadějí - Olomouc","VC","j","Václavková","Tereza",2,"dorostenky","52",2,0,1,5,2,"Václavková Tereza",7,null,null,null,"1.liga",1,{"$f":"T76&U76","v":"1.liga1"},15]
["2019-02-09","Pohár nadějí - Olomouc","VC","j","Kokešová","Alexandra",5,"dorostenky","52",1,0,2,0,1,"Kokešová Alexandra",1,null,null,null,"1.liga",2,"1.liga2",10]
["2019-02-09","Pohár nadějí - Olomouc","VC","j","Otáhalová","Magdaléna","bez","dorostenky","52",0,0,2,0,0,"Otáhalová Magdaléna",0,null,null,null,"1.liga",3,"1.liga3",7]
["2019-02-09","Pohár nadějí - Olomouc","VC","j","Kuželová","Dominika","bez","dorostenky","57",0,0,2,0,0,"Kuželová Dominika",0,null,null,null,"1.liga",4,"1.liga4",5]
["2019-02-09","Pohár nadějí - Olomouc","VC","j","Čerchlová","Markéta",1,"dorostenky","+70",2,0,0,6,2,"Čerchlová Markéta",8,null,null,null,"1.liga",5,"1.liga5",4]
["2019-02-10","USK CUP ","CP","j","Martínková","Adéla",3,"ženy","70",3,0,1,5,3,"Martínková Adéla",8,null,null,null,"1.liga",6,"1.liga6",3]
["2019-02-10","USK CUP ","CP","j","Martínková","Adéla",1,"ženy","+70",1,0,0,10,1,"Martínková Adéla",11,null,null,null,"1.liga",7,{"$f":"T82&U82","v":"1.liga7"},2]
["2019-02-10","USK CUP ","CP","j","Silvestr","Matěj",7,"muži","81",2,0,2,2,2,"Silvestr Matěj",4,null,null,null,"EXL",1,{"$f":"T83&U83","v":"EXL1"},20]
["2019-02-10","USK CUP ","CP","j","Šimek","Daniel",9,"muži","66",1,0,2,0,1,"Šimek Daniel",1,null,null,null,"EXL",2,"EXL2",15]
["2019-02-10","USK CUP ","CP","j","Šmatelka","Ondřej","bez","muži","73",0,0,1,0,0,"Šmatelka Ondřej",0,null,null,null,"EXL",3,"EXL3",10]
["2019-02-10","USK CUP ","CP","j","Kohn","Pavel","bez","muži","73",0,0,1,0,0,"Kohn Pavel",0,null,null,null,"EXL",4,"EXL4",7]
["2019-02-10","USK CUP ","CP","j","Šeděnka","Richard",9,"muži","73",1,0,2,0,1,"Šeděnka Richard",1,null,null,null,"EXL",5,"EXL5",7]
["2019-02-10","USK CUP ","CP","j","Pustějovský","Tomáš",7,"muži","90",1,0,2,2,1,"Pustějovský Tomáš",3,null,null,null,"EXL",6,"EXL6",5]
["2019-02-16","Grand Prix Banská Bystrica","MT","j","Nuhlíček","Michal",7,"mláďata","30",1,0,2,2,1,"Nuhlíček Michal",3,null,null,null,"EXL",7,{"$f":"T89&U89","v":"EXL7"},5]
["2019-02-16","Grand Prix Banská Bystrica","MT","j","Kuluris","Manolis",5,"mláďata","34",2,0,2,3,2,"Kuluris Manolis",5,null,null,null,"MS",1,{"$f":"T90&U90","v":"MS1"},100]
["2019-02-16","Grand Prix Banská Bystrica","MT","j","Huvar","Matyáš",1,"mláďata","38",5,0,0,10,5,"Huvar Matyáš",15,null,null,null,"MS",2,"MS2",80]
["2019-02-16","Grand Prix Banská Bystrica","MT","j","Kokešová","Alexandra",4,"dorostenky","52",0,0,3,3,0,"Kokešová Alexandra",3,null,null,null,"MS",3,"MS3",70]
["2019-02-16","Grand Prix Banská Bystrica","MT","j","Václavková","Tereza",1,"dorostenky","52",3,0,0,10,3,"Václavková Tereza",13,null,null,null,"MS",5,"MS5",60]
["2019-02-16","Grand Prix Banská Bystrica","MT","j","Čerchlová","Markéta",2,"dorostenky","+70",1,0,1,7,1,"Čerchlová Markéta",8,null,null,null,"MS",7,"MS7",50]
["2019-02-16","Grand Prix Banská Bystrica","MT","j","Meixner","Tomáš",3,"dorostenci","55",3,0,1,5,3,"Meixner Tomáš",8,null,null,null,"MS",9,"MS9",40]
["2019-02-16","Grand Prix Banská Bystrica","MT","j","Kunc","Matěj","bez","dorostenci","55",0,0,1,0,0,"Kunc Matěj",0]
["2019-02-16","Grand Prix Banská Bystrica","MT","j","Lindovský","Jiří","bez","dorostenci","60",1,0,2,0,1,"Lindovský Jiří",1]
["2019-02-16","Grand Prix Banská Bystrica","MT","j","Křížek","Šimon","bez","dorostenci","60",0,0,2,0,0,"Křížek Šimon",0]
["2019-02-16","Grand Prix Banská Bystrica","MT","j","Kršňák","Filip","bez","dorostenci","66",0,0,2,0,0,"Kršňák Filip",0]
["2019-02-16","Matsumae Cup 2019 - Dánsko","MT","j","Polášková","Kristýna",3,"ženy","63",3,0,1,5,3,"Polášková Kristýna",8]
["2019-02-16","Matsumae Cup 2019 - Dánsko","MT","j","Šimek","Daniel","bez","muži","66",1,0,2,0,1,"Šimek Daniel",1]
["2019-02-16","Matsumae Cup 2019 - Dánsko","MT","j","Pavlica","Tomáš","bez","muži","+100",0,0,3,0,0,"Pavlica Tomáš",0]
["2019-02-16","Matsumae Cup 2019 - Dánsko","MT","j","Pustějovský","Tomáš","bez","muži","90",0,0,2,0,0,"Pustějovský Tomáš",0]
["2019-02-17","Matsumae Cup 2019 - Dánsko","MT","j","Polášková","Kristýna",3,"juniorky","63",5,0,1,5,5,"Polášková Kristýna",10]
["2019-02-17","Matsumae Cup 2019 - Dánsko","MT","j","Šimek","Daniel",9,"junioři","66",2,0,2,0,2,"Šimek Daniel",2]
["2019-02-17","Matsumae Cup 2019 - Dánsko","MT","j","Pavlica","Tomáš","bez","junioři","+100",0,0,2,0,0,"Pavlica Tomáš",0]
["2019-02-17","Matsumae Cup 2019 - Dánsko","MT","j","Pustějovský","Tomáš",7,"junioři","90",2,0,2,2,2,"Pustějovský Tomáš",4]
["2019-02-16","Moravská liga 1. kolo - Brno","PSO","d","Šeděnka","Richard",1,"muži","73",3,0,1,6,6,"Šeděnka Richard",12]
["2019-02-16","Moravská liga 1. kolo - Brno","PSO","d","Šmatelka","Ondřej",null,"muži","73",1,0,2,0,2,"Šmatelka Ondřej",2]
["2019-02-16","Moravská liga 1. kolo - Brno","PSO","d","Mojžíšek","Lukáš",null,"muži","90",1,0,2,0,2,"Mojžíšek Lukáš",2]
["2019-02-16","Moravská liga 1. kolo - Brno","PSO","d","Gřešek","Vít",1,"muži","90",1,0,1,6,2,"Gřešek Vít",8]
["2019-02-16","Moravská liga 1. kolo - Brno","PSO","d","Svoboda","Jiří",null,"muži","100",4,0,1,0,8,"Svoboda Jiří",8]
["2019-02-23","Český pohár - Grand Prix Ostrava","CP","j","Pavlík","Lukáš","bez","mladší žáci","60",0,0,1,0,0,"Pavlík Lukáš",0]
["2019-02-23","Český pohár - Grand Prix Ostrava","CP","j","Pospíšil","Jan","bez","mladší žáci","46",1,0,2,0,1,"Pospíšil Jan",1]
["2019-02-23","Český pohár - Grand Prix Ostrava","CP","j","Nuhlíček","Jakub","bez","mladší žáci","34",1,0,2,0,1,"Nuhlíček Jakub",1]
["2019-02-23","Český pohár - Grand Prix Ostrava","CP","j","Valošek","Jakub","bez","mladší žáci","34",1,0,2,0,1,"Valošek Jakub",1]
["2019-02-23","Český pohár - Grand Prix Ostrava","CP","j","Kanclíř","Šimon","bez","mladší žáci","38",0,0,2,0,0,"Kanclíř Šimon",0]
["2019-02-23","Český pohár - Grand Prix Ostrava","CP","j","Mařec","Tomáš","bez","mladší žáci","38",0,0,1,0,0,"Mařec Tomáš",0]
["2019-02-23","Český pohár - Grand Prix Ostrava","CP","j","Turek","Jakub","bez","mladší žáci","38",0,0,1,0,0,"Turek Jakub",0]
["2019-02-23","Český pohár - Grand Prix Ostrava","CP","j","To","Adam","bez","mladší žáci","38",1,0,2,0,1,"To Adam",1]
["2019-02-23","Český pohár - Grand Prix Ostrava","CP","j","Ryška","Filip","bez","mladší žáci","42",0,0,1,0,0,"Ryška Filip",0]
["2019-02-23","Český pohár - Grand Prix Ostrava","CP","j","Zwilling","Šimon","bez","mladší žáci","46",2,0,2,0,2,"Zwilling Šimon",2]
["2019-02-23","Český pohár - Grand Prix Ostrava","CP","j","Seibert","Marian",3,"mladší žáci","46",4,0,1,5,4,"Seibert Marian",9]
["2019-02-23","Český pohár - Grand Prix Ostrava","CP","j","Dryšl","Adam","bez","mladší žáci","50",1,0,1,0,1,"Dryšl Adam",1]
["2019-02-23","Český pohár - Grand Prix Ostrava","CP","j","Vlk","František","bez","mladší žáci","50",0,0,2,0,0,"Vlk František",0]
["2019-02-23","Český pohár - Grand Prix Ostrava","CP","j","Šimkovič","Ondřej","bez","mladší žáci","50",0,0,1,0,0,"Šimkovič Ondřej",0]
["2019-02-23","Český pohár - Grand Prix Ostrava","CP","j","Buček","Dan","bez","mladší žáci","55",0,0,2,0,0,"Buček Dan",0]
["2019-02-23","Český pohár - Grand Prix Ostrava","CP","j","Štverka","Matyáš","bez","mladší žáci","55",0,0,1,0,0,"Štverka Matyáš",0]
["2019-02-23","Český pohár - Grand Prix Ostrava","CP","j","Baudiš","Michal",2,"mladší žáci","55",3,0,1,7,3,"Baudiš Michal",10]
["2019-02-23","Český pohár - Grand Prix Ostrava","CP","j","Kocmanová","Lucie",7,"mladší žákyně","33",0,0,2,2,0,"Kocmanová Lucie",2]
["2019-02-23","Český pohár - Grand Prix Ostrava","CP","j","Bukovjanová","Charlotte","bez","mladší žákyně","44",1,0,2,0,1,"Bukovjanová Charlotte",1]
["2019-02-23","Český pohár - Grand Prix Ostrava","CP","j","Kaszperová","Kristýna","bez","mladší žákyně","48",0,0,1,0,0,"Kaszperová Kristýna",0]
["2019-02-23","Český pohár - Grand Prix Ostrava","CP","j","Neuwirt","Petr","bez","starší žáci","34",0,0,2,0,0,"Neuwirt Petr",0]
["2019-02-23","Český pohár - Grand Prix Ostrava","CP","j","Buranyč","Filip","bez","starší žáci","34",1,0,2,0,1,"Buranyč Filip",1]
["2019-02-23","Český pohár - Grand Prix Ostrava","CP","j","Vontor","Tomáš",5,"starší žáci","38",2,0,2,3,2,"Vontor Tomáš",5]
["2019-02-23","Český pohár - Grand Prix Ostrava","CP","j","Válek","Matěj","bez","starší žáci","42",0,0,2,0,0,"Válek Matěj",0]
["2019-02-23","Český pohár - Grand Prix Ostrava","CP","j","Meixner","Michal","bez","starší žáci","46",1,0,1,{"$f":"IF(ISNA(VLOOKUP(C137&G137,$V$3:$W$95,2,FALSE)),0,VLOOKUP(C137&G137,$V$3:$W$95,2,FALSE))","v":0},{"$f":"IF(D137=\"d\",SUM(J137*2,K137),J137)","v":1},{"$f":"E137&\" \"&F137","v":"Meixner Michal"},{"$f":"SUM(M137,N137)","v":1}]
["2019-02-23","Český pohár - Grand Prix Ostrava","CP","j","Čebík","Filip",7,"starší žáci","46",3,0,2,2,3,"Čebík Filip",5]
["2019-02-23","Český pohár - Grand Prix Ostrava","CP","j","Kožušník","Vojtěch","bez","starší žáci","50",0,0,2,0,0,"Kožušník Vojtěch",0]
["2019-02-23","Český pohár - Grand Prix Ostrava","CP","j","Caletka","Michal","bez","starší žáci","50",0,0,1,0,0,"Caletka Michal",0]
["2019-02-23","Český pohár - Grand Prix Ostrava","CP","j","Kuzník","Tadeáš","bez","starší žáci","55",2,0,2,0,2,"Kuzník Tadeáš",2]
["2019-02-23","Český pohár - Grand Prix Ostrava","CP","j","Kolář","Vojtěch","bez","starší žáci","55",0,0,1,0,0,"Kolář Vojtěch",0]
["2019-02-23","Český pohár - Grand Prix Ostrava","CP","j","Caletka","Petr","bez","starší žáci","55",0,0,1,0,0,"Caletka Petr",0]
["2019-02-23","Český pohár - Grand Prix Ostrava","CP","j","Čech","Jiří","bez","starší žáci","60",0,0,1,0,0,"Čech Jiří",0]
["2019-02-23","Český pohár - Grand Prix Ostrava","CP","j","Tomek","David",5,"starší žáci","60",3,0,2,3,3,"Tomek David",6]
["2019-02-23","Český pohár - Grand Prix Ostrava","CP","j","Neckář","Matěj","bez","starší žáci","66",0,0,1,0,0,"Neckář Matěj",0]
["2019-02-23","Český pohár - Grand Prix Ostrava","CP","j","Čerchla","Michal","bez","starší žáci","66",1,0,1,0,1,"Čerchla Michal",1]
["2019-02-23","Český pohár - Grand Prix Ostrava","CP","j","Fulneček","Šimon",7,"starší žáci","73",1,0,2,2,1,"Fulneček Šimon",3]
["2019-02-23","Český pohár - Grand Prix Ostrava","CP","j","Huvar","Jakub","bez","starší žáci","46",3,0,2,0,3,"Huvar Jakub",3]
["2019-02-23","Český pohár - Grand Prix Ostrava","CP","j","Rapčanová","Alice","bez","starší žákyně","44",1,0,2,0,1,"Rapčanová Alice",1]
["2019-02-23","Český pohár - Grand Prix Ostrava","CP","j","Rapčanová","Silvie","bez","starší žákyně","40",0,0,1,0,0,"Rapčanová Silvie",0]
["2019-02-23","Český pohár - Grand Prix Ostrava","CP","j","Vavřínová","Pavla","bez","starší žákyně","52",1,0,2,0,1,"Vavřínová Pavla",1]
["2019-02-24","Český pohár - Grand Prix Ostrava","CP","j","Kuželová","Dominika",3,"starší žákyně","57",4,0,1,5,4,"Kuželová Dominika",9]
["2019-02-24","Český pohár - Grand Prix Ostrava","CP","j","Bulka","Vojtěch","bez","dorostenci","55",1,0,1,0,1,"Bulka Vojtěch",1]
["2019-02-24","Český pohár - Grand Prix Ostrava","CP","j","Křížek","Šimon","bez","dorostenci","60",1,0,1,0,1,"Křížek Šimon",1]
["2019-02-24","Český pohár - Grand Prix Ostrava","CP","j","Lindovský","Jiří","bez","dorostenci","60",2,0,1,0,2,"Lindovský Jiří",2]
["2019-02-24","Český pohár - Grand Prix Ostrava","CP","j","Malaczynski","Filip","bez","dorostenci","60",1,0,1,0,1,"Malaczynski Filip",1]
["2019-02-24","Český pohár - Grand Prix Ostrava","CP","j","Fráňa","Patrik",5,"dorostenci","46",1,0,2,3,1,"Fráňa Patrik",4]
["2019-02-24","Český pohár - Grand Prix Ostrava","CP","j","Kolář","Daniel","bez","dorostenci","60",0,0,1,0,0,"Kolář Daniel",0]
["2019-02-24","Český pohár - Grand Prix Ostrava","CP","j","Motyka","Dominik","bez","dorostenci","73",1,0,1,0,1,"Motyka Dominik",1]
["2019-02-24","Český pohár - Grand Prix Ostrava","CP","j","Turčínek","Tomáš","bez","dorostenci","73",0,0,1,0,0,"Turčínek Tomáš",0]
["2019-02-24","Český pohár - Grand Prix Ostrava","CP","j","Mojžíšek","Lukáš",3,"dorostenci","90",3,0,1,5,3,"Mojžíšek Lukáš",8]
["2019-02-24","Český pohár - Grand Prix Ostrava","CP","j","Hotárek","Tomáš","bez","dorostenci","55",0,0,1,0,0,"Hotárek Tomáš",0]
["2019-02-24","Český pohár - Grand Prix Ostrava","CP","j","Otáhalová","Magdaléna",9,"dorostenky","52",1,0,1,0,1,"Otáhalová Magdaléna",1]
["2019-02-24","Český pohár - Grand Prix Ostrava","CP","j","Václavková","Tereza",2,"dorostenky","52",3,0,1,7,3,"Václavková Tereza",10]
["2019-02-24","Český pohár - Grand Prix Ostrava","CP","j","Čerchlová","Markéta",3,"dorostenky","+70",1,0,2,5,1,"Čerchlová Markéta",6]
["2019-02-24","Český pohár - Grand Prix Ostrava","CP","j","Benáčková","Denisa","bez","dorostenky","57",0,0,1,0,0,"Benáčková Denisa",0]
["2019-02-24","Český pohár - Grand Prix Ostrava","CP","j","Meixner","Tomáš",1,"dorostenci","50",4,0,0,10,4,"Meixner Tomáš",14]
["2019-02-24","Český pohár - Grand Prix Ostrava","CP","j","Silvestr","Matěj",1,"muži","81",4,0,0,10,4,"Silvestr Matěj",14]
["2019-02-24","Český pohár - Grand Prix Ostrava","CP","j","Šimek","Daniel","bez","muži","66",0,0,2,0,0,"Šimek Daniel",0]
["2019-02-24","Český pohár - Grand Prix Ostrava","CP","j","Šmatelka","Ondřej",7,"muži","73",3,0,2,2,3,"Šmatelka Ondřej",5]
["2019-02-24","Český pohár - Grand Prix Ostrava","CP","j","Pustějovský","Tomáš","bez","muži","90",0,0,2,0,0,"Pustějovský Tomáš",0]
["2019-02-24","Český pohár - Grand Prix Ostrava","CP","j","Polášková","Kristýna",3,"ženy","63",2,0,1,5,2,"Polášková Kristýna",7]
["2019-02-24","Český pohár - Grand Prix Ostrava","CP","j","Chlopčík","Ondřej","bez","muži","81",0,0,2,0,0,"Chlopčík Ondřej",0]
["2019-02-24","Český pohár - Grand Prix Ostrava","CP","j","Gřešek","Vít","bez","muži","90",0,0,2,0,0,"Gřešek Vít",0]
["2019-02-24","Český pohár - Grand Prix Ostrava","CP","j","Pavlica","Tomáš",1,"muži","100",3,0,1,10,3,"Pavlica Tomáš",13]
["2019-02-28","Extraliga mužů - 1. kolo Ostrava","EXL","d","Kohn","Tomáš",6,"muži","66",0,0,2,5,0,"Kohn Tomáš",5]
["2019-02-28","Extraliga mužů - 1. kolo Ostrava","EXL","d","Pustějovský","Tomáš",null,"muži","90",0,0,1,0,0,"Pustějovský Tomáš",0]
["2019-02-28","Extraliga mužů - 1. kolo Ostrava","EXL","d","Silvestr","Matěj",null,"muži","81",1,0,0,0,2,"Silvestr Matěj",2]
["2019-03-09","ECC Zagreb","EJU","j","Meixner","Tomáš","bez","dorostenci","50",0,0,1,0,0,"Meixner Tomáš",0]
["2019-03-09","ECC Zagreb","EJU","j","Václavková","Tereza","bez","dorostenky","52",0,0,1,0,0,"Václavková Tereza",0]
["2019-03-09","Slezský pohár Opava","VC","j","To","Vojtěch",1,"mláďata","22",3,0,0,6,3,"To Vojtěch",9]
["2019-03-09","Slezský pohár Opava","VC","j","Nuhlíček","Michal",3,"mláďata","30",3,0,1,3,3,"Nuhlíček Michal",6]
["2019-03-09","Slezský pohár Opava","VC","j","Šelong","Tadeáš","bez","mláďata","30",0,0,3,0,0,"Šelong Tadeáš",0]
["2019-03-09","Slezský pohár Opava","VC","j","Macháček","Tomáš","bez","mláďata","33",0,0,2,0,0,"Macháček Tomáš",0]
["2019-03-09","Slezský pohár Opava","VC","j","Kret","Matyáš",2,"mláďata","36",1,0,1,5,1,"Kret Matyáš",6]
["2019-03-09","Slezský pohár Opava","VC","j","Škoda","Melichar",1,"mláďata","+52",2,0,0,6,2,"Škoda Melichar",8]
["2019-03-09","Slezský pohár Opava","VC","j","Ciora","Jakub",2,"mláďata","30",3,0,2,5,3,"Ciora Jakub",8]
["2019-03-09","Slezský pohár Opava","VC","j","Kuluris","Manolis",3,"mláďata","33",3,0,1,3,3,"Kuluris Manolis",6]
["2019-03-09","Slezský pohár Opava","VC","j","Huvar","Matyáš",1,"mláďata","40",4,0,0,6,4,"Huvar Matyáš",10]
["2019-03-09","Slezský pohár Opava","VC","j","Bartošic","Sebastian",2,"mladší žáci","34",3,0,2,5,3,"Bartošic Sebastian",8]
["2019-03-09","Slezský pohár Opava","VC","j","Nuhlíček","Jakub",3,"mladší žáci","34",2,0,2,3,2,"Nuhlíček Jakub",5]
["2019-03-09","Slezský pohár Opava","VC","j","Kanclíř","Šimon","bez","mladší žáci","38",0,0,1,0,0,"Kanclíř Šimon",0]
["2019-03-09","Slezský pohár Opava","VC","j","Plaček","Viktor",3,"mladší žáci","42",2,0,1,3,2,"Plaček Viktor",5]
["2019-03-09","Slezský pohár Opava","VC","j","Románek","Jakub",3,"mladší žáci","50",1,0,2,3,1,"Románek Jakub",4]
["2019-03-09","Slezský pohár Opava","VC","j","Galamboš","Kristián",3,"mladší žáci","60",2,0,1,3,2,"Galamboš Kristián",5]
["2019-03-09","Slezský pohár Opava","VC","j","Kocmanová","Lucie",1,"mladší žákyně","33",2,0,0,6,2,"Kocmanová Lucie",8]
["2019-03-09","Slezský pohár Opava","VC","j","Fojtík","Jiří Václav","bez","mladší žáci","30",0,0,2,0,0,"Fojtík Jiří Václav",0]
["2019-03-09","Slezský pohár Opava","VC","j","Valošek","Jakub","bez","mladší žáci","34",1,0,2,0,1,"Valošek Jakub",1]
["2019-03-09","Slezský pohár Opava","VC","j","To","Adam","bez","mladší žáci","38",0,0,2,0,0,"To Adam",0]
["2019-03-09","Slezský pohár Opava","VC","j","Zwilling","Šimon",2,"mladší žáci","46",3,0,1,{"$f":"IF(ISNA(VLOOKUP(C201&G201,$V$3:$W$95,2,FALSE)),0,VLOOKUP(C201&G201,$V$3:$W$95,2,FALSE))","v":5},{"$f":"IF(D201=\"d\",SUM(J201*2,K201),J201)","v":3},{"$f":"E201&\" \"&F201","v":"Zwilling Šimon"},{"$f":"SUM(M201,N201)","v":8}]
["2019-03-09","Slezský pohár Opava","VC","j","Malinovský","Jiří",3,"mladší žáci","46",1,0,2,3,1,"Malinovský Jiří",4]
["2019-03-09","Slezský pohár Opava","VC","j","Vlk","František",1,"mladší žáci","50",4,0,1,6,4,"Vlk František",10]
["2019-03-09","Slezský pohár Opava","VC","j","Šimkovič","Ondřej",3,"mladší žáci","50",2,0,2,3,2,"Šimkovič Ondřej",5]
["2019-03-09","Slezský pohár Opava","VC","j","Buček","Dan","bez","mladší žáci","55",0,0,2,0,0,"Buček Dan",0]
["2019-03-09","Slezský pohár Opava","VC","j","Bukovjanová","Charlotte",3,"mladší žákyně","44",2,0,2,3,2,"Bukovjanová Charlotte",5]
["2019-03-09","Slezský pohár Opava","VC","j","Kaszperová","Kristýna",2,"mladší žákyně","44",3,0,1,5,3,"Kaszperová Kristýna",8]
["2019-03-09","Slezský pohár Opava","VC","j","Murin","Jan","bez","mladší žáci","38",0,0,1,0,0,"Murin Jan",0]
["2019-03-09","Slezský pohár Opava","VC","j","Pavlík","Lukáš",2,"mladší žáci","60",2,0,2,5,2,"Pavlík Lukáš",7]
["2019-03-09","Slezský pohár Opava","VC","j","Turek","Jakub","bez","mladší žáci","38",2,0,2,0,2,"Turek Jakub",2]
["2019-03-09","Slezský pohár Opava","VC","j","Schwarz","Šimon",1,"mladší žáci","55",3,0,1,6,3,"Schwarz Šimon",9]
["2019-03-09","Slezský pohár Opava","VC","j","Kobiernicki","Marek","bez","starší žáci","55",0,0,2,0,0,"Kobiernicki Marek",0]
["2019-03-09","Slezský pohár Opava","VC","j","Bernacký","Mikuláš",3,"starší žáci","+73",1,0,2,3,1,"Bernacký Mikuláš",4]
["2019-03-09","Slezský pohár Opava","VC","j","Vontor","Tomáš",1,"starší žáci","38",3,0,0,6,3,"Vontor Tomáš",9]
["2019-03-09","Slezský pohár Opava","VC","j","Čebík","Filip",1,"starší žáci","46",3,0,0,6,3,"Čebík Filip",9]
["2019-03-09","Slezský pohár Opava","VC","j","Meixner","Michal",2,"starší žáci","46",2,0,1,5,2,"Meixner Michal",7]
["2019-03-09","Slezský pohár Opava","VC","j","Kolář","Vojtěch",5,"starší žáci","55",1,0,2,0,1,"Kolář Vojtěch",1]
["2019-03-09","Slezský pohár Opava","VC","j","Tomek","David",3,"starší žáci","60",1,0,2,3,1,"Tomek David",4]
["2019-03-09","Slezský pohár Opava","VC","j","Neckář","Matěj","bez","starší žáci","66",0,0,4,0,0,"Neckář Matěj",0]
["2019-03-09","Slezský pohár Opava","VC","j","Čerchla","Michal",2,"starší žáci","66",2,0,2,5,2,"Čerchla Michal",7]
["2019-03-09","Slezský pohár Opava","VC","j","Fulneček","Šimon",1,"starší žáci","73",2,0,0,6,2,"Fulneček Šimon",8]
["2019-03-09","Slezský pohár Opava","VC","j","Rapčanová","Silvie",2,"starší žákyně","40",0,0,2,5,0,"Rapčanová Silvie",5]
["2019-03-09","Slezský pohár Opava","VC","j","Rapčanová","Alice",2,"starší žákyně","44",3,0,1,5,3,"Rapčanová Alice",8]
["2019-03-09","Slezský pohár Opava","VC","j","Vavřínová","Pavla",4,"starší žákyně","52",1,0,3,0,1,"Vavřínová Pavla",1]
["2019-03-09","Slezský pohár Opava","VC","j","Kuželová","Dominika",1,"starší žákyně","57",4,0,0,6,4,"Kuželová Dominika",10]
["2019-03-01","Evropský pohár Praha","EJU","j","Polášková","Kristýna","bez","ženy","63",0,0,1,0,0,"Polášková Kristýna",0]
["2019-03-16","ECJ Coimbra - Portugalsko","EJU","j","Polášková","Kristýna",7,"juniorky","63",3,0,2,15,3,"Polášková Kristýna",18]
["2019-03-17","Český pohár - Jablonec nad Nisou","CP","j","Meixner","Tomáš",1,"dorostenci","50",4,0,0,10,4,"Meixner Tomáš",14]
["2019-03-17","Český pohár - Jablonec nad Nisou","CP","j","Fráňa","Patrik","bez","dorostenci","50",0,0,2,0,0,"Fráňa Patrik",0]
["2019-03-17","Český pohár - Jablonec nad Nisou","CP","j","Bulka","Vojtěch",5,"dorostenci","55",3,0,2,3,3,"Bulka Vojtěch",6]
["2019-03-17","Český pohár - Jablonec nad Nisou","CP","j","Kunc","Matěj",9,"dorostenci","55",1,0,2,0,1,"Kunc Matěj",1]
["2019-03-17","Český pohár - Jablonec nad Nisou","CP","j","Křížek","Šimon",9,"dorostenci","60",1,0,2,0,1,"Křížek Šimon",1]
["2019-03-17","Český pohár - Jablonec nad Nisou","CP","j","Kolář","Daniel","bez","dorostenci","60",0,0,2,0,0,"Kolář Daniel",0]
["2019-03-17","Český pohár - Jablonec nad Nisou","CP","j","Lindovský","Jiří",2,"dorostenci","60",4,0,1,7,4,"Lindovský Jiří",11]
["2019-03-17","Český pohár - Jablonec nad Nisou","CP","j","Malaczynski","Filip","bez","dorostenci","60",1,0,1,0,1,"Malaczynski Filip",1]
["2019-03-17","Český pohár - Jablonec nad Nisou","CP","j","Kršňák","Filip",7,"dorostenci","66",3,0,2,2,3,"Kršňák Filip",5]
["2019-03-17","Český pohár - Jablonec nad Nisou","CP","j","Motyka","Dominik",3,"dorostenci","73",4,0,1,5,4,"Motyka Dominik",9]
["2019-03-17","Český pohár - Jablonec nad Nisou","CP","j","Pavlica","Lukáš",5,"dorostenci","90",2,0,2,3,2,"Pavlica Lukáš",5]
["2019-03-17","Český pohár - Jablonec nad Nisou","CP","j","Václavková","Tereza",1,"dorostenky","52",4,0,0,10,4,"Václavková Tereza",14]
["2019-03-17","Český pohár - Jablonec nad Nisou","CP","j","Otáhalová","Magdaléna",5,"dorostenky","52",2,0,2,3,2,"Otáhalová Magdaléna",5]
["2019-03-17","Český pohár - Jablonec nad Nisou","CP","j","Kuželová","Dominika",5,"dorostenky","57",3,0,2,3,3,"Kuželová Dominika",6]
["2019-03-17","Český pohár - Jablonec nad Nisou","CP","j","Čerchlová","Markéta",2,"dorostenky","+73",2,0,1,7,2,"Čerchlová Markéta",9]
["2019-03-17","Český pohár - Jablonec nad Nisou","CP","j","Benáčková","Denisa","bez","dorostenky","57",0,0,1,0,0,"Benáčková Denisa",0]
["2019-03-16","Český pohár - Jablonec nad Nisou","CP","j","Buranyč","Filip","bez","starší žáci","38",0,0,1,0,0,"Buranyč Filip",0]
["2019-03-16","Český pohár - Jablonec nad Nisou","CP","j","Caletka","Michal","bez","starší žáci","50",1,0,1,0,1,"Caletka Michal",1]
["2019-03-16","Český pohár - Jablonec nad Nisou","CP","j","Caletka","Petr","bez","starší žáci","55",0,0,1,0,0,"Caletka Petr",0]
["2019-03-16","Český pohár - Jablonec nad Nisou","CP","j","Čebík","Filip","bez","starší žáci","50",1,0,1,0,1,"Čebík Filip",1]
["2019-03-16","Český pohár - Jablonec nad Nisou","CP","j","Čech","Jiří","bez","starší žáci","60",0,0,2,0,0,"Čech Jiří",0]
["2019-03-16","Český pohár - Jablonec nad Nisou","CP","j","Fulneček","Šimon","bez","starší žáci","73",1,0,2,0,1,"Fulneček Šimon",1]
["2019-03-16","Český pohár - Jablonec nad Nisou","CP","j","Huvar","Jakub",7,"starší žáci","46",3,0,2,2,3,"Huvar Jakub",5]
["2019-03-16","Český pohár - Jablonec nad Nisou","CP","j","Kolář","Vojtěch","bez","starší žáci","55",0,0,1,0,0,"Kolář Vojtěch",0]
["2019-03-16","Český pohár - Jablonec nad Nisou","CP","j","Kuzník","Tadeáš","bez","starší žáci","55",1,0,1,0,1,"Kuzník Tadeáš",1]
["2019-03-16","Český pohár - Jablonec nad Nisou","CP","j","Meixner","Michal","bez","starší žáci","46",1,0,1,0,1,"Meixner Michal",1]
["2019-03-16","Český pohár - Jablonec nad Nisou","CP","j","Tomek","David","bez","starší žáci","66",2,0,2,0,2,"Tomek David",2]
["2019-03-16","Český pohár - Jablonec nad Nisou","CP","j","Vontor","Tomáš",1,"starší žáci","38",5,0,0,10,5,"Vontor Tomáš",15]
["2019-03-16","Český pohár - Jablonec nad Nisou","CP","j","Kuželová","Dominika",1,"starší žákyně","57",4,0,0,10,4,"Kuželová Dominika",14]
["2019-03-16","Český pohár - Jablonec nad Nisou","CP","j","Rapčanová","Alice",3,"starší žákyně","44",3,0,1,5,3,"Rapčanová Alice",8]
["2019-03-16","Český pohár - Jablonec nad Nisou","CP","j","Rapčanová","Silvie",1,"starší žákyně","40",3,0,0,10,3,"Rapčanová Silvie",13]
["2019-03-16","Český pohár - Jablonec nad Nisou","CP","j","Vavřínová","Pavla","bez","starší žákyně","52",0,0,1,0,0,"Vavřínová Pavla",0]
["2019-03-23","MT U16 POL Poznaň ","MT","j","Kuželová","Dominika","bez","starší žákyně","57",1,0,2,0,1,"Kuželová Dominika",1]
["2019-03-23","ECJ Athény (GRE)","EJU","j","Polášková","Kristýna",9,"juniorky","63",1,0,2,10,1,"Polášková Kristýna",11]
["2019-03-02","Mistrovství euroregionu Beskydy","VC","j","Ciora","Jakub",2,"mláďata","30",3,0,1,5,3,"Ciora Jakub",8]
["2019-03-02","Mistrovství euroregionu Beskydy","VC","j","Huvar","Matyáš",1,"mláďata","40",4,0,0,6,4,"Huvar Matyáš",10]
["2019-03-02","Mistrovství euroregionu Beskydy","VC","j","Stark","Vojtěch",3,"mláďata","44",1,0,2,3,1,"Stark Vojtěch",4]
["2019-03-02","Mistrovství euroregionu Beskydy","VC","j","Kožušník","Václav",2,"mláďata","44",2,0,1,{"$f":"IF(ISNA(VLOOKUP(C265&G265,$V$3:$W$95,2,FALSE)),0,VLOOKUP(C265&G265,$V$3:$W$95,2,FALSE))","v":5},{"$f":"IF(D265=\"d\",SUM(J265*2,K265),J265)","v":2},{"$f":"E265&\" \"&F265","v":"Kožušník Václav"},{"$f":"SUM(M265,N265)","v":7}]
["2019-03-02","Mistrovství euroregionu Beskydy","VC","j","Kanclíř","Šimon",5,"mladší žáci","38",1,0,2,0,1,"Kanclíř Šimon",1]
["2019-03-02","Mistrovství euroregionu Beskydy","VC","j","Plaček","Viktor",2,"mladší žáci","42",3,0,1,5,3,"Plaček Viktor",8]
["2019-03-02","Mistrovství euroregionu Beskydy","VC","j","Malinovský","Jiří","bez","mladší žáci","46",1,0,2,0,1,"Malinovský Jiří",1]
["2019-03-02","Mistrovství euroregionu Beskydy","VC","j","Zwilling","Šimon",2,"mladší žáci","46",4,0,1,5,4,"Zwilling Šimon",9]
["2019-03-02","Mistrovství euroregionu Beskydy","VC","j","Pospíšil","Jan",1,"mladší žáci","46",5,0,0,6,5,"Pospíšil Jan",11]
["2019-03-02","Mistrovství euroregionu Beskydy","VC","j","Caletka","Michal",3,"starší žáci","50",1,0,2,3,1,"Caletka Michal",4]
["2019-03-02","Mistrovství euroregionu Beskydy","VC","j","Kožušník","Vojtěch","bez","starší žáci","50",0,0,3,0,0,"Kožušník Vojtěch",0]
["2019-03-02","Mistrovství euroregionu Beskydy","VC","j","Caletka","Petr",3,"starší žáci","55",1,0,2,3,1,"Caletka Petr",4]
["2019-03-02","Mistrovství euroregionu Beskydy","VC","j","Kolář","Vojtěch","bez","starší žáci","55",0,0,3,0,0,"Kolář Vojtěch",0]
["2019-03-02","Mistrovství euroregionu Beskydy","VC","j","Čech","Jiří","bez","starší žáci","60",0,0,2,0,0,"Čech Jiří",0]
["2019-03-02","Mistrovství euroregionu Beskydy","VC","j","Krischke","Fabien",3,"starší žáci","60",1,0,2,3,1,"Krischke Fabien",4]
["2019-03-02","Mistrovství euroregionu Beskydy","VC","j","Kolář","Daniel",1,"dorostenci","60",4,0,0,6,4,"Kolář Daniel",10]
["2019-03-30","GP Ostrava Memoriál Jana Stankoviče","CP","j","Martínková","Adéla",1,"ženy","70",2,0,0,10,2,"Martínková Adéla",12]
["2019-03-30","GP Ostrava Memoriál Jana Stankoviče","CP","j","Kohn","Tomáš",5,"muži","73",2,0,2,3,2,"Kohn Tomáš",5]
["2019-03-30","GP Ostrava Memoriál Jana Stankoviče","CP","j","Silvestr","Matěj",3,"muži","81",2,0,2,5,2,"Silvestr Matěj",7]
["2019-03-30","GP Ostrava Memoriál Jana Stankoviče","CP","j","Šimek","Daniel",5,"muži","66",1,0,2,3,1,"Šimek Daniel",4]
["2019-03-30","GP Ostrava Memoriál Jana Stankoviče","CP","j","Šmatelka","Ondřej","bez","muži","73",0,0,2,0,0,"Šmatelka Ondřej",0]
["2019-03-30","GP Ostrava Memoriál Jana Stankoviče","CP","j","Kohn","Pavel","bez","muži","73",0,0,1,0,0,"Kohn Pavel",0]
["2019-03-30","GP Ostrava Memoriál Jana Stankoviče","CP","j","Mojžíšek","Lukáš","bez","muži","90",0,0,2,0,0,"Mojžíšek Lukáš",0]
["2019-03-30","GP Ostrava Memoriál Jana Stankoviče","CP","j","Pustějovský","Tomáš",3,"muži","90",3,0,1,5,3,"Pustějovský Tomáš",8]
["2019-04-06","Moravská liga 2. kolo - Brno","PSO","d","Šimek","Daniel",null,"muži","66",5,0,0,0,10,"Šimek Daniel",10]
["2019-04-06","Moravská liga 2. kolo - Brno","PSO","d","Kohn","Tomáš",null,"muži","73",4,0,1,0,8,"Kohn Tomáš",8]
["2019-04-06","Moravská liga 2. kolo - Brno","PSO","d","Svoboda","Jiří",null,"muži","81",5,0,0,0,10,"Svoboda Jiří",10]
["2019-04-06","Moravská liga 2. kolo - Brno","PSO","d","Mojžíšek","Lukáš",null,"muži","90",2,0,1,0,4,"Mojžíšek Lukáš",4]
["2019-04-06","Moravská liga 2. kolo - Brno","PSO","d","Pustějovský","Tomáš",null,"muži","100",2,0,2,0,4,"Pustějovský Tomáš",4]
["2019-04-06","Moravská liga 2. kolo - Brno","PSO","d","Král","Jakub",1,"muži","+100",3,0,1,6,6,"Král Jakub",12]
["2019-04-06","ECC Teplice","EJU","j","Meixner","Tomáš","bez","dorostenci","50",0,0,1,0,0,"Meixner Tomáš",0]
["2019-04-06","ECC Teplice","EJU","j","Václavková","Tereza","bez","dorostenky","52",1,0,2,0,1,"Václavková Tereza",1]
["2019-04-06","ECC Teplice","EJU","j","Čerchlová","Markéta",9,"dorostenky","+70",1,0,2,10,1,"Čerchlová Markéta",11]
["2019-04-13","1. liga - muži - 1.kolo Ostrava","1.liga","d","Šimek","Daniel",null,"muži","66",3,0,1,0,6,"Šimek Daniel",6]
["2019-04-13","1. liga - muži - 1.kolo Ostrava","1.liga","d","Šeděnka","Richard",null,"muži","73",0,0,2,0,0,"Šeděnka Richard",0]
["2019-04-13","1. liga - muži - 1.kolo Ostrava","1.liga","d","Svoboda","Jiří",null,"muži","81",3,0,1,0,6,"Svoboda Jiří",6]
["2019-04-13","1. liga - muži - 1.kolo Ostrava","1.liga","d","Pravda","Jan",null,"muži","100",3,0,1,0,6,"Pravda Jan",6]
["2019-04-13","1. liga - muži - 1.kolo Ostrava","1.liga","d","Král","Jakub",4,"muži","+100",0,0,4,5,0,"Král Jakub",5]
["2019-04-14","MT U16 AUT / Rohrbach - výběr ČR U15","MT","j","Rapčanová","Silvie",4,"starší žákyně","40",1,0,3,3,1,"Rapčanová Silvie",4]
["2019-04-14","MT U16 AUT / Rohrbach - výběr ČR U15","MT","j","Vontor","Tomáš",2,"starší žáci","38",1,0,1,7,1,"Vontor Tomáš",8]
["2019-04-06","ECJ Lignano (ITA)","EJU","j","Silvestr","Matěj","bez","junioři","81",0,0,1,0,0,"Silvestr Matěj",0]
["2019-04-06","ECJ Lignano (ITA)","EJU","j","Polášková","Kristýna","bez","juniorky","63",0,0,1,0,0,"Polášková Kristýna",0]
["2019-04-19","Copenhagen Open Dánsko","MT","j","Valošek","Jakub",7,"mladší žáci","34",2,0,2,2,2,"Valošek Jakub",4]
["2019-04-19","Copenhagen Open Dánsko","MT","j","Mařec","Tomáš","bez","mladší žáci","38",0,0,2,0,0,"Mařec Tomáš",0]
["2019-04-19","Copenhagen Open Dánsko","MT","j","Zwilling","Šimon",1,"mladší žáci","46",2,0,0,10,2,"Zwilling Šimon",12]
["2019-04-19","Copenhagen Open Dánsko","MT","j","Kokešová","Alexandra",7,"dorostenky","52",2,0,2,2,2,"Kokešová Alexandra",4]
["2019-04-19","Copenhagen Open Dánsko","MT","j","Otáhalová","Magdaléna","bez","dorostenky","52",0,0,2,0,0,"Otáhalová Magdaléna",0]
["2019-04-19","Copenhagen Open Dánsko","MT","j","Čerchlová","Markéta",1,"dorostenky","+70",4,0,0,10,4,"Čerchlová Markéta",14]
["2019-04-19","Copenhagen Open Dánsko","MT","j","Václavková","Tereza",3,"dorostenky","52",3,0,1,5,3,"Václavková Tereza",8]
["2019-04-19","Copenhagen Open Dánsko","MT","j","Benáčková","Denisa","bez","dorostenky","57",0,0,2,0,0,"Benáčková Denisa",0]
["2019-04-19","Copenhagen Open Dánsko","MT","j","Fráňa","Patrik",3,"dorostenci","50",1,0,3,5,1,"Fráňa Patrik",6]
["2019-04-19","Copenhagen Open Dánsko","MT","j","Matýsek","Jan","bez","dorostenci","50",0,0,3,0,0,"Matýsek Jan",0]
["2019-04-19","Copenhagen Open Dánsko","MT","j","Kršňák","Filip",7,"dorostenci","66",4,0,2,2,4,"Kršňák Filip",6]
["2019-04-19","Copenhagen Open Dánsko","MT","j","Motyka","Dominik",7,"dorostenci","73",3,0,2,2,3,"Motyka Dominik",5]
["2019-04-19","Copenhagen Open Dánsko","MT","j","Lindovský","Jiří",7,"dorostenci","60",3,0,2,2,3,"Lindovský Jiří",5]
["2019-04-19","Copenhagen Open Dánsko","MT","j","Meixner","Tomáš",7,"dorostenci","55",3,0,2,2,3,"Meixner Tomáš",5]
["2019-04-19","Copenhagen Open Dánsko","MT","j","Mojžíšek","Lukáš","bez","dorostenci","+81",0,0,4,0,0,"Mojžíšek Lukáš",0]
["2019-04-19","Copenhagen Open Dánsko","MT","j","Křížek","Šimon",5,"dorostenci","60",4,0,2,3,4,"Křížek Šimon",7]
["2019-04-19","Copenhagen Open Dánsko","MT","j","Malaczynski","Filip","bez","dorostenci","60",1,0,2,0,1,"Malaczynski Filip",1]
["2019-04-20","Copenhagen Open Dánsko","MT","j","Kuželová","Dominika",3,"starší žákyně","57",4,0,1,5,4,"Kuželová Dominika",9]
["2019-04-20","Copenhagen Open Dánsko","MT","j","Rapčanová","Silvie",2,"starší žákyně","40",4,0,1,7,4,"Rapčanová Silvie",11]
["2019-04-20","Copenhagen Open Dánsko","MT","j","Rapčanová","Alice",3,"starší žákyně","44",2,0,2,5,2,"Rapčanová Alice",7]
["2019-04-20","Copenhagen Open Dánsko","MT","j","Vavřínová","Pavla",9,"starší žákyně","57",1,0,2,0,1,"Vavřínová Pavla",1]
["2019-04-20","Copenhagen Open Dánsko","MT","j","Kosťová","Barbora",7,"starší žákyně","57",1,0,2,2,1,"Kosťová Barbora",3]
["2019-04-20","Copenhagen Open Dánsko","MT","j","Meixner","Michal","bez","starší žáci","46",2,0,2,0,2,"Meixner Michal",2]
["2019-04-20","Copenhagen Open Dánsko","MT","j","Čerchla","Michal",1,"starší žáci","66",5,0,0,10,5,"Čerchla Michal",15]
["2019-04-20","Copenhagen Open Dánsko","MT","j","Čech","Jiří","bez","starší žáci","60",0,0,2,0,0,"Čech Jiří",0]
["2019-04-20","Copenhagen Open Dánsko","MT","j","Caletka","Petr",2,"starší žáci","55",3,0,1,{"$f":"IF(ISNA(VLOOKUP(C329&G329,$V$3:$W$95,2,FALSE)),0,VLOOKUP(C329&G329,$V$3:$W$95,2,FALSE))","v":7},{"$f":"IF(D329=\"d\",SUM(J329*2,K329),J329)","v":3},{"$f":"E329&\" \"&F329","v":"Caletka Petr"},{"$f":"SUM(M329,N329)","v":10}]
["2019-04-20","Copenhagen Open Dánsko","MT","j","Fulneček","Šimon",3,"starší žáci","+66",2,0,2,5,2,"Fulneček Šimon",7]
["2019-04-20","Copenhagen Open Dánsko","MT","j","Buranyč","Filip",9,"starší žáci","38",3,0,2,0,3,"Buranyč Filip",3]
["2019-04-20","Copenhagen Open Dánsko","MT","j","Tomek","David",3,"starší žáci","66",2,0,2,5,2,"Tomek David",7]
["2019-04-20","Copenhagen Open Dánsko","MT","j","Vontor","Tomáš",5,"starší žáci","38",3,0,2,3,3,"Vontor Tomáš",6]
["2019-04-20","Copenhagen Open Dánsko","MT","j","Huvar","Jakub","bez","starší žáci","46",2,0,2,0,2,"Huvar Jakub",2]
["2019-04-20","Copenhagen Open Dánsko","MT","j","Čebík","Filip",3,"starší žáci","50",5,0,1,5,5,"Čebík Filip",10]
["2019-04-20","Copenhagen Open Dánsko","MT","j","Šmatelka","Ondřej","bez","muži","73",1,0,2,0,1,"Šmatelka Ondřej",1]
["2019-04-20","Copenhagen Open Dánsko","MT","j","Pavlica","Tomáš",3,"junioři","90",2,0,2,5,2,"Pavlica Tomáš",7]
["2019-04-24","Extraliga mužů - 2. kolo","EXL","d","Silvestr","Matěj",null,"muži","90",1,0,0,0,2,"Silvestr Matěj",2]
["2019-04-24","Extraliga mužů - 2. kolo","EXL","d","Pustějovský","Tomáš",6,"muži","+90",0,0,1,5,0,"Pustějovský Tomáš",5]
["2019-04-27","MČR - Jablonec nad Nisou","MCR","j","Martínková","Adéla",3,"ženy","78",2,0,1,10,2,"Martínková Adéla",12]
["2019-04-27","MČR - Jablonec nad Nisou","MCR","j","Polášková","Kristýna",2,"ženy","63",2,0,1,15,2,"Polášková Kristýna",17]
["2019-04-27","MČR - Jablonec nad Nisou","MCR","j","Silvestr","Matěj",3,"muži","81",2,0,1,10,2,"Silvestr Matěj",12]
["2019-04-27","MČR - Jablonec nad Nisou","MCR","j","Šimek","Daniel",3,"muži","66",2,0,1,10,2,"Šimek Daniel",12]
["2019-04-27","MČR - Jablonec nad Nisou","MCR","j","Šmatelka","Ondřej","bez","muži","73",0,0,2,0,0,"Šmatelka Ondřej",0]
["2019-04-27","MČR - Jablonec nad Nisou","MCR","j","Svoboda","Jiří",3,"muži","90",3,0,1,10,3,"Svoboda Jiří",13]
["2019-04-27","MČR - Jablonec nad Nisou","MCR","j","Pustějovský","Tomáš","bez","muži","90",0,0,1,0,0,"Pustějovský Tomáš",0]
["2019-03-02","Kvalifikace na mistrovství Polska - Bytom","MVC","j","Malaczynski","Filip",2,"dorostenci","60",3,0,1,5,3,"Malaczynski Filip",8]
["2019-03-30","Kvalifikace na mistrovství Polska - Bytom","MVC","j","Malaczynski","Filip",5,"dorostenci","60",4,0,2,0,4,"Malaczynski Filip",4]
["2019-04-27","Open Masters 2019 Pov. Bystrica","MT","j","Černota","Jiří",1,"veteráni","81",2,0,1,10,2,"Černota Jiří",12]
["2019-04-27","32. Budapešť Cup 2019","MT","j","Seibert","Marian","bez","mladší žáci","45",0,0,1,0,0,"Seibert Marian",0]
["2019-04-27","32. Budapešť Cup 2019","MT","j","Baudiš","Michal","bez","mladší žáci","60",0,0,1,0,0,"Baudiš Michal",0]
["2019-04-27","32. Budapešť Cup 2019","MT","j","Šimkovič","Ondřej","bez","mladší žáci","49",0,0,1,0,0,"Šimkovič Ondřej",0]
["2019-04-27","32. Budapešť Cup 2019","MT","j","Štverka","Matyáš","bez","mladší žáci","54",0,0,1,0,0,"Štverka Matyáš",0]
["2019-04-27","32. Budapešť Cup 2019","MT","j","Kaszperová","Kristýna","bez","mladší žákyně","50",1,0,2,0,1,"Kaszperová Kristýna",1]
["2019-04-28","32. Budapešť Cup 2019","MT","j","Otáhalová","Magdaléna","bez","dorostenky","52",0,0,1,0,0,"Otáhalová Magdaléna",0]
["2019-04-28","32. Budapešť Cup 2019","MT","j","Kokešová","Alexandra","bez","dorostenky","52",1,0,1,0,1,"Kokešová Alexandra",1]
["2019-04-28","32. Budapešť Cup 2019","MT","j","Huvar","Matyáš",1,"mláďata","39",4,0,0,10,4,"Huvar Matyáš",14]
["2019-04-28","32. Budapešť Cup 2019","MT","j","Kuželová","Dominika","bez","starší žákyně","57",1,0,2,0,1,"Kuželová Dominika",1]
["2019-04-28","32. Budapešť Cup 2019","MT","j","Vavřínová","Pavla","bez","starší žákyně","57",1,0,2,0,1,"Vavřínová Pavla",1]
["2019-04-28","32. Budapešť Cup 2019","MT","j","Rapčanová","Silvie","bez","starší žákyně","40",0,0,1,0,0,"Rapčanová Silvie",0]
["2019-04-28","32. Budapešť Cup 2019","MT","j","Rapčanová","Alice","bez","starší žákyně","44",0,0,1,0,0,"Rapčanová Alice",0]
["2019-04-28","32. Budapešť Cup 2019","MT","j","Fulneček","Šimon","bez","starší žáci","73",2,0,2,0,2,"Fulneček Šimon",2]
["2019-04-28","32. Budapešť Cup 2019","MT","j","Tomek","David","bez","starší žáci","66",0,0,1,0,0,"Tomek David",0]
["2019-04-28","32. Budapešť Cup 2019","MT","j","Čerchla","Michal","bez","starší žáci","66",0,0,1,0,0,"Čerchla Michal",0]
["2019-04-28","32. Budapešť Cup 2019","MT","j","Caletka","Petr","bez","starší žáci","55",1,0,1,0,1,"Caletka Petr",1]
["2019-04-28","32. Budapešť Cup 2019","MT","j","Čebík","Filip","bez","starší žáci","50",0,0,1,0,0,"Čebík Filip",0]
["2019-04-28","32. Budapešť Cup 2019","MT","j","Huvar","Jakub","bez","starší žáci","45",1,0,1,0,1,"Huvar Jakub",1]
["2019-04-28","32. Budapešť Cup 2019","MT","j","Meixner","Michal","bez","starší žáci","45",0,0,1,0,0,"Meixner Michal",0]
["2019-04-28","32. Budapešť Cup 2019","MT","j","Vontor","Tomáš",7,"starší žáci","40",3,0,2,2,3,"Vontor Tomáš",5]
["2019-04-13","Velká cena Ostravy","VC","j","To","Vojtěch",3,"mláďata",null,1,0,2,3,1,"To Vojtěch",4]
["2019-04-13","Velká cena Ostravy","VC","j","Šelong","Tadeáš",4,"mláďata",null,0,0,3,0,0,"Šelong Tadeáš",0]
["2019-04-13","Velká cena Ostravy","VC","j","Kret","Matyáš",4,"mláďata",null,1,0,3,0,1,"Kret Matyáš",1]
["2019-04-13","Velká cena Ostravy","VC","j","Macháček","Tomáš",3,"mláďata",null,1,0,2,3,1,"Macháček Tomáš",4]
["2019-04-13","Velká cena Ostravy","VC","j","Škoda","Melichar",1,"mláďata",null,2,0,0,6,2,"Škoda Melichar",8]
["2019-04-13","Velká cena Ostravy","VC","j","Huvar","Matyáš",1,"mláďata","38",2,0,0,6,2,"Huvar Matyáš",8]
["2019-04-13","Velká cena Ostravy","VC","j","Bechný","Adam",2,"mláďata","28",2,0,1,5,2,"Bechný Adam",7]
["2019-04-13","Velká cena Ostravy","VC","j","Malík","Jakub","bez","mláďata","34",0,0,4,0,0,"Malík Jakub",0]
["2019-04-13","Velká cena Ostravy","VC","j","Nuhlíček","Jakub","bez","mladší žáci","38",0,0,1,0,0,"Nuhlíček Jakub",0]
["2019-04-13","Velká cena Ostravy","VC","j","Kanclíř","Šimon",1,"mladší žáci","38",4,0,0,6,4,"Kanclíř Šimon",10]
["2019-04-13","Velká cena Ostravy","VC","j","Plaček","Viktor",3,"mladší žáci","42",2,0,1,3,2,"Plaček Viktor",5]
["2019-04-13","Velká cena Ostravy","VC","j","Románek","Jakub","bez","mladší žáci","50",0,0,2,0,0,"Románek Jakub",0]
["2019-04-13","Velká cena Ostravy","VC","j","Kocmanová","Lucie",3,"mladší žákyně","33",1,0,2,3,1,"Kocmanová Lucie",4]
["2019-04-13","Velká cena Ostravy","VC","j","Ryška","Filip","bez","mladší žáci","42",0,0,2,0,0,"Ryška Filip",0]
["2019-04-13","Velká cena Ostravy","VC","j","Turek","Jakub","bez","mladší žáci","38",1,0,1,0,1,"Turek Jakub",1]
["2019-04-13","Velká cena Ostravy","VC","j","Baudiš","Michal",1,"mladší žáci","60",2,0,0,6,2,"Baudiš Michal",8]
["2019-04-13","Velká cena Ostravy","VC","j","Fojtík","Jiří Václav",1,"mladší žáci","30",2,0,0,6,2,"Fojtík Jiří Václav",8]
["2019-04-13","Velká cena Ostravy","VC","j","Valošek","Jakub",3,"mladší žáci","34",3,0,1,3,3,"Valošek Jakub",6]
["2019-04-13","Velká cena Ostravy","VC","j","To","Adam","bez","mladší žáci","38",1,0,2,0,1,"To Adam",1]
["2019-04-13","Velká cena Ostravy","VC","j","Zwilling","Šimon",3,"mladší žáci","46",2,0,1,3,2,"Zwilling Šimon",5]
["2019-04-13","Velká cena Ostravy","VC","j","Malinovský","Jiří",2,"mladší žáci","46",2,0,1,5,2,"Malinovský Jiří",7]
["2019-04-13","Velká cena Ostravy","VC","j","Vlk","František",3,"mladší žáci","50",3,0,1,3,3,"Vlk František",6]
["2019-04-13","Velká cena Ostravy","VC","j","Šimkovič","Ondřej",7,"mladší žáci","50",1,0,2,0,1,"Šimkovič Ondřej",1]
["2019-04-13","Velká cena Ostravy","VC","j","Buček","Dan","bez","mladší žáci","55",0,0,3,{"$f":"IF(ISNA(VLOOKUP(C393&G393,$V$3:$W$95,2,FALSE)),0,VLOOKUP(C393&G393,$V$3:$W$95,2,FALSE))","v":0},{"$f":"IF(D393=\"d\",SUM(J393*2,K393),J393)","v":0},{"$f":"E393&\" \"&F393","v":"Buček Dan"},{"$f":"SUM(M393,N393)","v":0}]
["2019-04-13","Velká cena Ostravy","VC","j","Bukovjanová","Charlotte",2,"mladší žákyně","48",1,0,1,5,1,"Bukovjanová Charlotte",6]
["2019-04-13","Velká cena Ostravy","VC","j","Kulhánek","Adam","bez","mladší žáci","50",0,0,2,0,0,"Kulhánek Adam",0]
["2019-04-13","Velká cena Ostravy","VC","j","Seibert","Marian",1,"mladší žáci","46",3,0,0,6,3,"Seibert Marian",9]
["2019-04-13","Velká cena Ostravy","VC","j","Žáček","Radim","bez","starší žáci","55",0,0,3,0,0,"Žáček Radim",0]
["2019-04-13","Velká cena Ostravy","VC","j","Bechný","Martin","bez","mladší žáci","38",0,0,1,0,0,"Bechný Martin",0]
["2019-04-13","Velká cena Ostravy","VC","j","Fojtík","Daniel","bez","starší žáci","42",0,0,2,0,0,"Fojtík Daniel",0]
["2019-04-13","Velká cena Ostravy","VC","j","Kožušník","Vojtěch","bez","starší žáci","50",0,0,3,0,0,"Kožušník Vojtěch",0]
["2019-04-13","Velká cena Ostravy","VC","j","Rapčanová","Alice",2,"starší žákyně","44",2,0,1,5,2,"Rapčanová Alice",7]
["2019-04-13","Velká cena Ostravy","VC","j","Čerchla","Michal",2,"starší žáci","66",1,0,1,5,1,"Čerchla Michal",6]
["2019-04-13","Velká cena Ostravy","VC","j","Huvar","Jakub",1,"starší žáci","46",2,0,0,6,2,"Huvar Jakub",8]
["2019-04-13","Velká cena Ostravy","VC","j","Fulneček","Šimon",1,"starší žáci","73",2,0,0,6,2,"Fulneček Šimon",8]
["2019-04-13","Velká cena Ostravy","VC","j","Kuželová","Dominika",2,"starší žákyně","63",2,0,1,5,2,"Kuželová Dominika",7]
["2019-04-13","Velká cena Ostravy","VC","j","Čebík","Filip",2,"starší žáci","50",2,0,1,5,2,"Čebík Filip",7]
["2019-04-13","Velká cena Ostravy","VC","j","Caletka","Michal",3,"starší žáci","50",1,0,2,3,1,"Caletka Michal",4]
["2019-04-13","Velká cena Ostravy","VC","j","Caletka","Petr",2,"starší žáci","55",4,0,1,5,4,"Caletka Petr",9]
["2019-04-13","Velká cena Ostravy","VC","j","Čech","Jiří",3,"starší žáci","60",1,0,2,3,1,"Čech Jiří",4]
["2019-04-13","Velká cena Ostravy","VC","j","Kokešová","Alexandra",1,"dorostenky","52",2,0,0,6,2,"Kokešová Alexandra",8]
["2019-04-13","Velká cena Ostravy","VC","j","Kolář","Daniel","bez","dorostenci","60",0,0,2,0,0,"Kolář Daniel",0]
["2019-03-22","Grand prix Pezinok","MT","j","Plaček","Viktor","bez","mladší žáci","42",0,0,1,0,0,"Plaček Viktor",0]
["2019-03-22","Grand prix Pezinok","MT","j","Valošek","Jakub","bez","mladší žáci","34",1,0,2,0,1,"Valošek Jakub",1]
["2019-03-22","Grand prix Pezinok","MT","j","To","Adam","bez","mladší žáci","38",0,0,1,0,0,"To Adam",0]
["2019-03-22","Grand prix Pezinok","MT","j","Zwilling","Šimon","bez","mladší žáci","46",0,0,1,0,0,"Zwilling Šimon",0]
["2019-03-22","Grand prix Pezinok","MT","j","Malinovský","Jiří","bez","mladší žáci","42",1,0,2,0,1,"Malinovský Jiří",1]
["2019-03-22","Grand prix Pezinok","MT","j","Šimkovič","Ondřej","bez","mladší žáci","50",0,0,1,0,0,"Šimkovič Ondřej",0]
["2019-03-22","Grand prix Pezinok","MT","j","Bukovjanová","Charlotte",5,"mladší žákyně","44",1,0,2,3,1,"Bukovjanová Charlotte",4]
["2019-03-22","Grand prix Pezinok","MT","j","Štverka","Matyáš","bez","mladší žáci","55",1,0,2,0,1,"Štverka Matyáš",1]
["2019-03-22","Grand prix Pezinok","MT","j","Seibert","Marian",5,"mladší žáci","46",3,0,2,3,3,"Seibert Marian",6]
["2019-05-04","Krajský přebor Ostrava","PK","j","Fráňa","Patrik",3,"dorostenci","50",1,0,2,3,1,"Fráňa Patrik",4]
["2019-05-04","Krajský přebor Ostrava","PK","j","Čebík","Filip",2,"dorostenci","50",2,0,1,5,2,"Čebík Filip",7]
["2019-05-04","Krajský přebor Ostrava","PK","j","Čerchla","Michal","bez","dorostenci","66",0,0,2,0,0,"Čerchla Michal",0]
["2019-05-04","Krajský přebor Ostrava","PK","j","Kolář","Daniel","bez","dorostenci","66",0,0,2,0,0,"Kolář Daniel",0]
["2019-05-04","Krajský přebor Ostrava","PK","j","Kršňák","Filip",2,"dorostenci","66",2,0,1,5,2,"Kršňák Filip",7]
["2019-05-04","Krajský přebor Ostrava","PK","j","Fulneček","Šimon","bez","dorostenci","73",1,0,3,0,1,"Fulneček Šimon",1]
["2019-05-04","Krajský přebor Ostrava","PK","j","Pustka","Robin",5,"dorostenci","66",1,0,2,0,1,"Pustka Robin",1]
["2019-05-04","Krajský přebor Ostrava","PK","j","Turčínek","Tomáš",3,"dorostenci","73",2,0,2,3,2,"Turčínek Tomáš",5]
["2019-05-04","Krajský přebor Ostrava","PK","j","Mojžíšek","Lukáš",2,"dorostenci","90",2,0,1,5,2,"Mojžíšek Lukáš",7]
["2019-05-04","Krajský přebor Ostrava","PK","j","Kunc","Matěj",1,"dorostenci","55",3,0,0,6,3,"Kunc Matěj",9]
["2019-05-04","Krajský přebor Ostrava","PK","j","Bulka","Vojtěch",1,"dorostenci","60",3,0,0,6,3,"Bulka Vojtěch",9]
["2019-05-04","Krajský přebor Ostrava","PK","j","Kuželová","Dominika",2,"dorostenky","63",4,0,1,5,4,"Kuželová Dominika",9]
["2019-05-04","Krajský přebor Ostrava","PK","j","Benáčková","Denisa","bez","dorostenky","63",1,0,2,0,1,"Benáčková Denisa",1]
["2019-05-04","Krajský přebor Ostrava","PK","j","Otáhalová","Magdaléna","bez","dorostenky","52",0,0,2,0,0,"Otáhalová Magdaléna",0]
["2019-05-04","Krajský přebor Ostrava","PK","j","Kokešová","Alexandra",3,"dorostenky","52",1,0,2,3,1,"Kokešová Alexandra",4]
["2019-05-04","Krajský přebor Ostrava","PK","j","Blažej","Jan",2,"junioři","66",0,0,2,5,0,"Blažej Jan",5]
["2019-05-04","Krajský přebor Ostrava","PK","j","Mojžíšek","Lukáš",2,"junioři","90",0,0,2,5,0,"Mojžíšek Lukáš",5]
["2019-05-04","Krajský přebor Ostrava","PK","j","Blažej","Jan","bez","muži","73",0,0,3,0,0,"Blažej Jan",0]
["2019-05-04","Krajský přebor Ostrava","PK","j","Kohn","Pavel",2,"muži","73",2,0,1,5,2,"Kohn Pavel",7]
["2019-05-04","Moravská liga 3. kolo - Veselí nad Moravou","PSO","d","Šimek","Daniel",null,"muži","66",5,0,0,0,10,"Šimek Daniel",10]
["2019-05-04","Moravská liga 3. kolo - Veselí nad Moravou","PSO","d","Kohn","Tomáš",1,"muži","73",2,0,1,6,4,"Kohn Tomáš",10]
["2019-05-04","Moravská liga 3. kolo - Veselí nad Moravou","PSO","d","Šmatelka","Ondřej",null,"muži","73",0,0,2,0,0,"Šmatelka Ondřej",0]
["2019-05-04","Moravská liga 3. kolo - Veselí nad Moravou","PSO","d","Silvestr","Matěj",null,"muži","81",4,0,0,0,8,"Silvestr Matěj",8]
["2019-05-04","Moravská liga 3. kolo - Veselí nad Moravou","PSO","d","Svoboda","Jiří",null,"muži","90",3,0,1,0,6,"Svoboda Jiří",6]
["2019-05-04","Moravská liga 3. kolo - Veselí nad Moravou","PSO","d","Pustějovský","Tomáš",null,"muži","100",4,0,0,0,8,"Pustějovský Tomáš",8]
["2019-05-04","Moravská liga 3. kolo - Veselí nad Moravou","PSO","d","Raška","Michael",1,"muži","+100",3,0,2,6,6,"Raška Michael",12]
["2019-05-11","Ilioupolis Cup Atény","MT","j","Bechný","Adam",3,"mláďata","27",4,0,1,5,4,"Bechný Adam",9]
["2019-05-11","Ilioupolis Cup Atény","MT","j","Přichystal","Leon",2,"mláďata","30",3,0,1,7,3,"Přichystal Leon",10]
["2019-05-11","Ilioupolis Cup Atény","MT","j","Ciora","Jakub",3,"mláďata","30",3,0,1,5,3,"Ciora Jakub",8]
["2019-05-11","Ilioupolis Cup Atény","MT","j","Kuluris","Manolis","bez","mláďata","34",0,0,2,0,0,"Kuluris Manolis",0]
["2019-05-11","Ilioupolis Cup Atény","MT","j","Kaszperová","Kristýna",3,"mladší žákyně","52",3,0,1,5,3,"Kaszperová Kristýna",8]
["2019-05-11","Ilioupolis Cup Atény","MT","j","Valošek","Jakub",3,"mladší žáci","34",2,0,1,5,2,"Valošek Jakub",7]
["2019-05-11","Ilioupolis Cup Atény","MT","j","Vlk","František",5,"mladší žáci","45",1,0,2,3,1,"Vlk František",4]
["2019-05-11","Ilioupolis Cup Atény","MT","j","Mařec","Tomáš","bez","mladší žáci","38",0,0,2,0,0,"Mařec Tomáš",0]
["2019-05-11","ECJ Kaunas (LIT)","EJU","j","Silvestr","Matěj","bez","junioři","81",0,0,1,0,0,"Silvestr Matěj",0]
["2019-05-11","ECJ Kaunas (LIT)","EJU","j","Polášková","Kristýna","bez","juniorky","63",1,0,2,0,1,"Polášková Kristýna",1]
["2019-05-04","Yurtov Cup Grodno (BLR)","MT","j","Václavková","Tereza",3,"dorostenky","52",2,0,1,{"$f":"IF(ISNA(VLOOKUP(C457&G457,$V$3:$W$95,2,FALSE)),0,VLOOKUP(C457&G457,$V$3:$W$95,2,FALSE))","v":5},{"$f":"IF(D457=\"d\",SUM(J457*2,K457),J457)","v":2},{"$f":"E457&\" \"&F457","v":"Václavková Tereza"},{"$f":"SUM(M457,N457)","v":7}]
["2019-05-04","Yurtov Cup Grodno (BLR)","MT","j","Meixner","Tomáš",5,"dorostenci","55",2,0,2,3,2,"Meixner Tomáš",5]
["2019-05-04","Yurtov Cup Grodno (BLR)","MT","j","Čerchlová","Markéta",1,"dorostenky","+70",2,0,0,10,2,"Čerchlová Markéta",12]
["2019-05-04","Yurtov Cup Grodno (BLR)","MT","j","Malaczynski","Filip","bez","dorostenci","60",0,0,1,0,0,"Malaczynski Filip",0]
["2019-05-04","Yurtov Cup Grodno (BLR)","MT","j","Křížek","Šimon","bez","dorostenci","60",0,0,1,0,0,"Křížek Šimon",0]
["2019-05-04","Yurtov Cup Grodno (BLR)","MT","j","Lindovský","Jiří",12,"dorostenci","60",1,0,2,0,1,"Lindovský Jiří",1]
["2019-05-11","Krajský přebor žáků Raškovice","PK","j","Kocmanová","Lucie",3,"mladší žákyně","33",1,0,2,3,1,"Kocmanová Lucie",4]
["2019-05-11","Krajský přebor žáků Raškovice","PK","j","Skalková","Elen",4,"mladší žákyně","33",0,0,3,0,0,"Skalková Elen",0]
["2019-05-11","Krajský přebor žáků Raškovice","PK","j","Bukovjanová","Charlotte",1,"mladší žákyně","48",2,0,2,6,2,"Bukovjanová Charlotte",8]
["2019-05-11","Krajský přebor žáků Raškovice","PK","j","Bartošic","Sebastian",5,"mladší žáci","38",2,0,2,0,2,"Bartošic Sebastian",2]
["2019-05-11","Krajský přebor žáků Raškovice","PK","j","Kanclíř","Šimon","bez","mladší žáci","38",0,0,2,0,0,"Kanclíř Šimon",0]
["2019-05-11","Krajský přebor žáků Raškovice","PK","j","Murin","Jan",4,"mladší žáci","42",2,0,1,0,2,"Murin Jan",2]
["2019-05-11","Krajský přebor žáků Raškovice","PK","j","Ryška","Filip","bez","mladší žáci","42",1,0,2,0,1,"Ryška Filip",1]
["2019-05-11","Krajský přebor žáků Raškovice","PK","j","Turek","Jakub",3,"mladší žáci","42",2,0,1,3,2,"Turek Jakub",5]
["2019-05-11","Krajský přebor žáků Raškovice","PK","j","Plaček","Viktor",3,"mladší žáci","42",3,0,1,3,3,"Plaček Viktor",6]
["2019-05-11","Krajský přebor žáků Raškovice","PK","j","Seibert","Marian",1,"mladší žáci","46",4,0,2,6,4,"Seibert Marian",10]
["2019-05-11","Krajský přebor žáků Raškovice","PK","j","Malinovský","Jiří",3,"mladší žáci","46",2,0,2,3,2,"Malinovský Jiří",5]
["2019-05-11","Krajský přebor žáků Raškovice","PK","j","Šimkovič","Ondřej",3,"mladší žáci","50",2,0,1,3,2,"Šimkovič Ondřej",5]
["2019-05-11","Krajský přebor žáků Raškovice","PK","j","Zwilling","Šimon",1,"mladší žáci","50",3,0,0,6,3,"Zwilling Šimon",9]
["2019-05-11","Krajský přebor žáků Raškovice","PK","j","Pospíšil","Jan",2,"mladší žáci","50",2,0,1,5,2,"Pospíšil Jan",7]
["2019-05-11","Krajský přebor žáků Raškovice","PK","j","Kulhánek","Adam",3,"mladší žáci","50",2,0,1,3,2,"Kulhánek Adam",5]
["2019-05-11","Krajský přebor žáků Raškovice","PK","j","Románek","Jakub",5,"mladší žáci","50",1,0,2,0,1,"Románek Jakub",1]
["2019-05-11","Krajský přebor žáků Raškovice","PK","j","Štverka","Matyáš",1,"mladší žáci","55",2,0,1,6,2,"Štverka Matyáš",8]
["2019-05-11","Krajský přebor žáků Raškovice","PK","j","Dryšl","Adam","bez","mladší žáci","60",1,0,2,0,1,"Dryšl Adam",1]
["2019-05-11","Krajský přebor žáků Raškovice","PK","j","Baudiš","Michal",1,"mladší žáci","60",4,0,0,6,4,"Baudiš Michal",10]
["2019-05-11","Krajský přebor žáků Raškovice","PK","j","Galamboš","Kristián",3,"mladší žáci","60",2,0,2,3,2,"Galamboš Kristián",5]
["2019-05-11","Krajský přebor žáků Raškovice","PK","j","Pavlík","Lukáš",2,"mladší žáci","66",1,0,2,5,1,"Pavlík Lukáš",6]
["2019-05-11","Krajský přebor žáků Raškovice","PK","j","Rapčanová","Alice",2,"starší žákyně","44",0,0,2,5,0,"Rapčanová Alice",5]
["2019-05-11","Krajský přebor žáků Raškovice","PK","j","Fojtík","Daniel",2,"starší žáci","46",0,0,2,5,0,"Fojtík Daniel",5]
["2019-05-11","Krajský přebor žáků Raškovice","PK","j","Kolář","Vojtěch",3,"starší žáci","55",3,0,2,3,3,"Kolář Vojtěch",6]
["2019-05-11","Krajský přebor žáků Raškovice","PK","j","Čech","Jiří",5,"starší žáci","60",1,0,4,0,1,"Čech Jiří",1]
["2019-05-25","Dětský turnaj Wolbromski","MVC","j","Bechný","Adam",1,"mláďata","29",3,0,0,6,3,"Bechný Adam",9]
["2019-05-25","Dětský turnaj Wolbromski","MVC","j","Přichystal","Leon",1,"mláďata","30",4,0,0,6,4,"Přichystal Leon",10]
["2019-05-25","Dětský turnaj Wolbromski","MVC","j","Kuluris","Manolis","bez","mláďata","35",1,0,2,0,1,"Kuluris Manolis",1]
["2019-05-25","Dětský turnaj Wolbromski","MVC","j","Škoda","Melichar",2,"mláďata","+58",1,0,1,5,1,"Škoda Melichar",6]
["2019-05-25","Dětský turnaj Wolbromski","MVC","j","Stark","Vojtěch",2,"mláďata","45",1,0,1,5,1,"Stark Vojtěch",6]
["2019-04-14","MT U16 AUT / Rohrbach - výběr ČR U15","MT","d","Rapčanová","Silvie",1,"starší žákyně","40",1,0,3,10,2,"Rapčanová Silvie",12]
["2019-04-14","MT U16 AUT / Rohrbach - výběr ČR U15","MT","d","Vontor","Tomáš",1,"starší žáci","38",4,0,0,10,8,"Vontor Tomáš",18]
["2019-05-25","Český pohár -  Velká cena N. Bydžova","CP","j","Buranyč","Filip","bez","starší žáci","38",0,0,2,0,0,"Buranyč Filip",0]
["2019-05-25","Český pohár -  Velká cena N. Bydžova","CP","j","Caletka","Michal","bez","starší žáci","50",0,0,1,0,0,"Caletka Michal",0]
["2019-05-25","Český pohár -  Velká cena N. Bydžova","CP","j","Caletka","Petr","bez","starší žáci","55",0,0,1,0,0,"Caletka Petr",0]
["2019-05-25","Český pohár -  Velká cena N. Bydžova","CP","j","Čebík","Filip","bez","starší žáci","50",0,0,1,0,0,"Čebík Filip",0]
["2019-05-25","Český pohár -  Velká cena N. Bydžova","CP","j","Čech","Jiří","bez","starší žáci","55",0,0,2,0,0,"Čech Jiří",0]
["2019-05-25","Český pohár -  Velká cena N. Bydžova","CP","j","Čerchla","Michal",7,"starší žáci","66",3,0,2,2,3,"Čerchla Michal",5]
["2019-05-25","Český pohár -  Velká cena N. Bydžova","CP","j","Fulneček","Šimon",3,"starší žáci","73",3,0,1,5,3,"Fulneček Šimon",8]
["2019-05-25","Český pohár -  Velká cena N. Bydžova","CP","j","Huvar","Jakub",3,"starší žáci","46",4,0,1,5,4,"Huvar Jakub",9]
["2019-05-25","Český pohár -  Velká cena N. Bydžova","CP","j","Kolář","Vojtěch","bez","starší žáci","55",0,0,1,0,0,"Kolář Vojtěch",0]
["2019-05-25","Český pohár -  Velká cena N. Bydžova","CP","j","Kuzník","Tadeáš","bez","starší žáci","55",0,0,1,0,0,"Kuzník Tadeáš",0]
["2019-05-25","Český pohár -  Velká cena N. Bydžova","CP","j","Kuželová","Dominika",2,"starší žákyně","63",3,0,1,7,3,"Kuželová Dominika",10]
["2019-05-25","Český pohár -  Velká cena N. Bydžova","CP","j","Meixner","Michal",7,"starší žáci","46",3,0,2,2,3,"Meixner Michal",5]
["2019-05-25","Český pohár -  Velká cena N. Bydžova","CP","j","Rapčanová","Alice",1,"starší žákyně","44",3,0,0,10,3,"Rapčanová Alice",13]
["2019-05-25","Český pohár -  Velká cena N. Bydžova","CP","j","Rapčanová","Silvie",2,"starší žákyně","40",3,0,1,7,3,"Rapčanová Silvie",10]
["2019-05-25","Český pohár -  Velká cena N. Bydžova","CP","j","Tomek","David",5,"starší žáci","66",3,0,2,3,3,"Tomek David",6]
["2019-05-25","Český pohár -  Velká cena N. Bydžova","CP","j","Vontor","Tomáš",5,"starší žáci","42",4,0,2,3,4,"Vontor Tomáš",7]
["2019-05-11","Thüringer Messe Cup-2019 - Erfurt","MT","j","Kuželová","Dominika","bez","starší žákyně","57",3,0,2,0,3,"Kuželová Dominika",3]
["2019-05-11","Thüringer Messe Cup-2019 - Erfurt","MT","j","Rapčanová","Silvie","bez","starší žákyně","40",1,0,2,0,1,"Rapčanová Silvie",1]
["2019-05-11","Thüringer Messe Cup-2019 - Erfurt","MT","j","Vontor","Tomáš",5,"starší žáci","38",2,0,2,3,2,"Vontor Tomáš",5]
["2019-05-11","Thüringer Messe Cup-2019 - Erfurt","MT","j","Meixner","Michal","bez","starší žáci","46",0,0,1,0,0,"Meixner Michal",0]
["2019-05-11","Thüringer Messe Cup-2019 - Erfurt","MT","j","Huvar","Jakub","bez","starší žáci","46",0,0,1,0,0,"Huvar Jakub",0]
["2019-05-11","Thüringer Messe Cup-2019 - Erfurt","MT","j","Čebík","Filip","bez","starší žáci","50",1,0,1,0,1,"Čebík Filip",1]
["2019-05-11","Thüringer Messe Cup-2019 - Erfurt","MT","j","Fulneček","Šimon","bez","starší žáci","73",0,0,1,0,0,"Fulneček Šimon",0]
["2019-05-11","Thüringer Messe Cup-2019 - Erfurt","MT","j","Motyka","Dominik","bez","dorostenci","73",2,0,2,0,2,"Motyka Dominik",2]
["2019-05-11","Thüringer Messe Cup-2019 - Erfurt","MT","j","Lindovský","Jiří","bez","dorostenci","60",1,0,2,0,1,"Lindovský Jiří",1]
["2019-05-11","Thüringer Messe Cup-2019 - Erfurt","MT","j","Kršňák","Filip","bez","dorostenci","66",2,0,2,0,2,"Kršňák Filip",2]
["2019-05-11","Thüringer Messe Cup-2019 - Erfurt","MT","j","Křížek","Šimon","bez","dorostenci","60",1,0,1,{"$f":"IF(ISNA(VLOOKUP(C521&G521,$V$3:$W$95,2,FALSE)),0,VLOOKUP(C521&G521,$V$3:$W$95,2,FALSE))","v":0},{"$f":"IF(D521=\"d\",SUM(J521*2,K521),J521)","v":1},{"$f":"E521&\" \"&F521","v":"Křížek Šimon"},{"$f":"SUM(M521,N521)","v":1}]
["2019-05-25","Český pohár -  Velká cena N. Bydžova","CP","j","Matýsek","Jan","bez","dorostenci","50",0,0,1,0,0,"Matýsek Jan",0]
["2019-05-25","Český pohár -  Velká cena N. Bydžova","CP","j","Meixner","Tomáš",3,"dorostenci","55",3,0,1,5,3,"Meixner Tomáš",8]
["2019-05-25","Český pohár -  Velká cena N. Bydžova","CP","j","Malaczynski","Filip",5,"dorostenci","60",3,0,2,3,3,"Malaczynski Filip",6]
["2019-05-25","Český pohár -  Velká cena N. Bydžova","CP","j","Křížek","Šimon",3,"dorostenci","60",4,0,1,5,4,"Křížek Šimon",9]
["2019-05-25","Český pohár -  Velká cena N. Bydžova","CP","j","Lindovský","Jiří",5,"dorostenci","60",2,0,2,3,2,"Lindovský Jiří",5]
["2019-05-25","Český pohár -  Velká cena N. Bydžova","CP","j","Kršňák","Filip","bez","dorostenci","66",2,0,2,0,2,"Kršňák Filip",2]
["2019-05-25","Český pohár -  Velká cena N. Bydžova","CP","j","Kokešová","Alexandra",1,"dorostenky","52",4,0,0,10,4,"Kokešová Alexandra",14]
["2019-05-25","Český pohár -  Velká cena N. Bydžova","CP","j","Václavková","Tereza",2,"dorostenky","57",3,0,1,7,3,"Václavková Tereza",10]
["2019-05-25","Český pohár -  Velká cena N. Bydžova","CP","j","Otáhalová","Magdaléna","bez","dorostenky","57",0,0,2,0,0,"Otáhalová Magdaléna",0]
["2019-05-25","Český pohár -  Velká cena N. Bydžova","CP","j","Benáčková","Denisa","bez","dorostenky","57",0,0,1,0,0,"Benáčková Denisa",0]
["2019-05-17","EP Bielsko Biala","EJU","j","Václavková","Tereza",9,"dorostenky","52",2,0,2,10,2,"Václavková Tereza",12]
["2019-05-17","EP Bielsko Biala","EJU","j","Meixner","Tomáš",12,"dorostenci","55",1,0,2,0,1,"Meixner Tomáš",1]
["2019-05-17","EP Bielsko Biala","EJU","j","Čerchlová","Markéta","bez","dorostenky","+70",0,0,2,0,0,"Čerchlová Markéta",0]
["2019-05-17","EP Bielsko Biala","EJU","j","Motyka","Dominik","bez","dorostenci","73",0,0,1,0,0,"Motyka Dominik",0]
["2019-05-17","EP Bielsko Biala","EJU","j","Lindovský","Jiří","bez","dorostenci","60",0,0,1,0,0,"Lindovský Jiří",0]
["2019-05-31","EP Leibnitz","EJU","j","Polášková","Kristýna","bez","juniorky","63",0,0,1,0,0,"Polášková Kristýna",0]
["2019-06-01","Mistrovství města Rybník . 2. kolo","MVC","j","Huvar","Matyáš",2,"mláďata","42",4,0,1,5,4,"Huvar Matyáš",9]
["2019-06-01","Mistrovství města Rybník . 2. kolo","MVC","j","Ciora","Jakub",3,"mláďata","30",2,0,1,3,2,"Ciora Jakub",5]
["2019-06-01","Mistrovství města Rybník . 2. kolo","MVC","j","Kuluris","Manolis",5,"mláďata","34",1,0,2,0,1,"Kuluris Manolis",1]
["2019-06-01","Mistrovství města Rybník . 2. kolo","MVC","j","Vlk","František",1,"mladší žáci","46",3,0,0,6,3,"Vlk František",9]
["2019-06-01","Mistrovství města Rybník . 2. kolo","MVC","j","Mařec","Tomáš",3,"mladší žáci","38",2,0,1,3,2,"Mařec Tomáš",5]
["2019-06-01","Mistrovství města Rybník . 2. kolo","MVC","j","Valošek","Jakub",3,"mladší žáci","34",2,0,1,3,2,"Valošek Jakub",5]
["2019-06-01","Mistrovství města Rybník . 2. kolo","MVC","j","Buroň","Petr","bez","mláďata","30",0,0,2,0,0,"Buroň Petr",0]
["2019-06-01","Mistrovství města Rybník . 2. kolo","MVC","j","Vaněk","David",1,"mláďata","26",4,0,0,6,4,"Vaněk David",10]
["2019-06-01","Mistrovství města Rybník . 2. kolo","MVC","j","Bechný","Adam",1,"mláďata","29",5,0,0,6,5,"Bechný Adam",11]
["2019-06-01","Mistrovství města Rybník . 2. kolo","MVC","j","Krčmář","Michal",3,"mláďata","27",1,0,2,3,1,"Krčmář Michal",4]
["2019-06-01","Dorostenecká liga - 2. kolo Čáslav","DL","d","Mojžíšek","Lukáš",null,"dorostenci","90",4,0,1,0,8,"Mojžíšek Lukáš",8]
["2019-06-01","Dorostenecká liga - 2. kolo Čáslav","DL","d","Motyka","Dominik",null,"dorostenci","73",3,0,1,0,6,"Motyka Dominik",6]
["2019-06-01","Dorostenecká liga - 2. kolo Čáslav","DL","d","Meixner","Tomáš",null,"dorostenci","55",3,0,1,0,6,"Meixner Tomáš",6]
["2019-06-01","Dorostenecká liga - 2. kolo Čáslav","DL","d","Pavlica","Lukáš",null,"dorostenci","90",1,0,1,0,2,"Pavlica Lukáš",2]
["2019-06-01","Dorostenecká liga - 2. kolo Čáslav","DL","d","Křížek","Šimon",null,"dorostenci","60",1,0,1,0,2,"Křížek Šimon",2]
["2019-06-01","Dorostenecká liga - 2. kolo Čáslav","DL","d","Lindovský","Jiří",null,"dorostenci","60",1,0,2,0,2,"Lindovský Jiří",2]
["2019-06-01","Dorostenecká liga - 2. kolo Čáslav","DL","d","Malaczynski","Filip",null,"dorostenci","60",3,0,0,0,6,"Malaczynski Filip",6]
["2019-06-01","Dorostenecká liga - 2. kolo Čáslav","DL","d","Kršňák","Filip",null,"dorostenci","66",0,0,2,0,0,"Kršňák Filip",0]
["2019-06-01","Dorostenecká liga - 2. kolo Čáslav","DL","d","Čebík","Filip",null,"dorostenci","50",2,0,0,0,4,"Čebík Filip",4]
["2019-06-01","Dorostenecká liga - 2. kolo Čáslav","DL","d","Kunc","Matěj",6,"dorostenci","55",1,0,0,5,2,"Kunc Matěj",7]
["2019-06-01","Dorostenecká liga - 2. kolo Čáslav","DL","d","Fráňa","Patrik",6,"dorostenci","50",1,0,2,5,2,"Fráňa Patrik",7]
["2019-06-09","Závišický pohár","MC","j","To","Vojtěch",1,"mláďata","23",2,0,0,4,2,"To Vojtěch",6]
["2019-06-09","Závišický pohár","MC","j","Šelong","Tadeáš",2,"mláďata","32,7",2,0,1,3,2,"Šelong Tadeáš",5]
["2019-06-09","Závišický pohár","MC","j","Nuhlíček","Michal",1,"mláďata","32,7",3,0,0,4,3,"Nuhlíček Michal",7]
["2019-06-09","Závišický pohár","MC","j","Litvik","Šimon",4,"mláďata","32,7",0,0,3,0,0,"Litvik Šimon",0]
["2019-06-09","Závišický pohár","MC","j","Jančata","Deniel",2,"mláďata","30,5",2,0,1,3,2,"Jančata Deniel",5]
["2019-06-09","Závišický pohár","MC","j","Pizzato","Alessandro",4,"mláďata","35",0,0,3,0,0,"Pizzato Alessandro",0]
["2019-06-09","Závišický pohár","MC","j","Kret","Matyáš",1,"mláďata","35",3,0,0,4,3,"Kret Matyáš",7]
["2019-06-09","Závišický pohár","MC","j","Nytra","Sebastián",2,"mláďata","40",2,0,1,3,2,"Nytra Sebastián",5]
["2019-06-09","Závišický pohár","MC","j","Stark","Vojtěch",4,"mláďata","44",0,0,3,0,0,"Stark Vojtěch",0]
["2019-06-09","Závišický pohár","MC","j","Škoda","Melichar",1,"mláďata","58",2,0,0,4,2,"Škoda Melichar",6]
["2019-06-15","1. liga - muži - 2. kolo Mohelnice","1.liga","d","Šimek","Daniel",null,"muži","66",3,0,1,0,6,"Šimek Daniel",6]
["2019-06-15","1. liga - muži - 2. kolo Mohelnice","1.liga","d","Kohn","Pavel",null,"muži","70",0,0,2,0,0,"Kohn Pavel",0]
["2019-06-15","1. liga - muži - 2. kolo Mohelnice","1.liga","d","Svoboda","Jiří",null,"muži","81",4,0,0,0,8,"Svoboda Jiří",8]
["2019-06-15","1. liga - muži - 2. kolo Mohelnice","1.liga","d","Mojžíšek","Lukáš",4,"muži","90",0,0,3,5,0,"Mojžíšek Lukáš",5]
["2019-06-15","1. liga - muži - 2. kolo Mohelnice","1.liga","d","Pravda","Jan",null,"muži","100",2,0,2,0,4,"Pravda Jan",4]
["2019-06-15","1. liga - muži - 2. kolo Mohelnice","1.liga","d","Raška","Michael",4,"muži","100",4,0,0,5,8,"Raška Michael",13]
["2019-06-27","Extraliga mužů - 3. kolo Praha","EXL","d","Silvestr","Matěj",6,"muži","81",0,0,2,5,0,"Silvestr Matěj",5]
["2019-06-27","Extraliga mužů - 3. kolo Praha","EXL","d","Šimek","Daniel",null,"muži","66",0,0,0,0,0,"Šimek Daniel",0]
["2019-07-20","EP Praha","EJU","j","Polášková","Kristýna",9,"juniorky","63",1,0,2,10,1,"Polášková Kristýna",11]
["2019-07-20","EP Praha","EJU","j","Šimek","Daniel","bez","junioři","66",0,0,2,0,0,"Šimek Daniel",0]
["2019-07-20","EP Praha","EJU","j","Silvestr","Matěj","bez","junioři","90",1,0,1,0,1,"Silvestr Matěj",1]
["2019-08-03","ECJ Poznaň","EJU","j","Silvestr","Matěj","bez","junioři","90",1,0,1,0,1,"Silvestr Matěj",1]
["2019-08-03","ECJ Poznaň","EJU","j","Polášková","Kristýna",3,"juniorky","63",3,0,1,25,3,"Polášková Kristýna",28]
["2019-06-01","MT Györ HUN","MT","j","Kuželová","Dominika",3,"starší žákyně",null,3,0,1,5,3,"Kuželová Dominika",8]
["2019-06-01","MT Györ HUN","MT","j","Vontor","Tomáš","bez","starší žáci",null,0,0,1,0,0,"Vontor Tomáš",0]
["2019-09-14","MT Lipsko","MT","j","Rapčanová","Silvie",1,"starší žákyně","39",3,0,1,10,3,"Rapčanová Silvie",13]
["2019-09-14","MT Lipsko","MT","j","Rapčanová","Alice","bez","starší žákyně","47",1,0,2,{"$f":"IF(ISNA(VLOOKUP(C585&G585,$V$3:$W$95,2,FALSE)),0,VLOOKUP(C585&G585,$V$3:$W$95,2,FALSE))","v":0},{"$f":"IF(D585=\"d\",SUM(J585*2,K585),J585)","v":1},{"$f":"E585&\" \"&F585","v":"Rapčanová Alice"},{"$f":"SUM(M585,N585)","v":1}]
["2019-09-14","MT Lipsko","MT","j","Vavřínová","Pavla",5,"starší žákyně","56",2,0,2,3,2,"Vavřínová Pavla",5]
["2019-09-14","MT Lipsko","MT","j","Otáhalová","Magdaléna",5,"dorostenky","52",2,0,2,3,2,"Otáhalová Magdaléna",5]
["2019-09-14","MT Lipsko","MT","j","Kuželová","Dominika",7,"starší žákyně","63",2,0,2,2,2,"Kuželová Dominika",4]
["2019-09-14","Český pohár - Brno Open","CP","j","Matýsek","Jan","bez","dorostenci","50",0,0,1,0,0,"Matýsek Jan",0]
["2019-09-14","Český pohár - Brno Open","CP","j","Meixner","Tomáš",3,"dorostenci","55",3,0,1,5,3,"Meixner Tomáš",8]
["2019-09-14","Český pohár - Brno Open","CP","j","Malaczynski","Filip","bez","dorostenci","60",1,0,2,0,1,"Malaczynski Filip",1]
["2019-09-14","Český pohár - Brno Open","CP","j","Křížek","Šimon","bez","dorostenci","60",1,0,1,0,1,"Křížek Šimon",1]
["2019-09-14","Český pohár - Brno Open","CP","j","Lindovský","Jiří","bez","dorostenci","60",0,0,1,0,0,"Lindovský Jiří",0]
["2019-09-14","Český pohár - Brno Open","CP","j","Kršňák","Filip","bez","dorostenci","66",1,0,1,0,1,"Kršňák Filip",1]
["2019-09-14","Český pohár - Brno Open","CP","j","Kolář","Daniel","bez","dorostenci","66",0,0,1,0,0,"Kolář Daniel",0]
["2019-09-14","Český pohár - Brno Open","CP","j","Fulneček","Šimon","bez","dorostenci","73",0,0,1,0,0,"Fulneček Šimon",0]
["2019-09-14","Český pohár - Brno Open","CP","j","Mojžíšek","Lukáš",2,"dorostenci","90",3,0,1,7,3,"Mojžíšek Lukáš",10]
["2019-09-14","Český pohár - Brno Open","CP","j","Pavlica","Lukáš",7,"dorostenci","90",1,0,2,2,1,"Pavlica Lukáš",3]
["2019-09-14","Český pohár - Brno Open","CP","j","Motyka","Dominik","bez","dorostenci","73",2,0,2,0,2,"Motyka Dominik",2]
["2019-09-14","Český pohár - Brno Open","CP","j","Václavková","Tereza",3,"dorostenky","57",3,0,1,5,3,"Václavková Tereza",8]
["2019-09-14","Český pohár - Brno Open","CP","j","Benáčková","Denisa","bez","dorostenky","63",0,0,1,0,0,"Benáčková Denisa",0]
["2019-09-14","Český pohár - Brno Open","CP","j","Čerchlová","Markéta",5,"dorostenky","+70",1,0,2,3,1,"Čerchlová Markéta",4]
["2019-09-14","Český pohár - Brno Open","CP","j","Šmatelka","Ondřej","bez","muži","73",0,0,2,0,0,"Šmatelka Ondřej",0]
["2019-09-14","Český pohár - Brno Open","CP","j","Kohn","Pavel","bez","muži","73",0,0,1,0,0,"Kohn Pavel",0]
["2019-09-14","Český pohár - Brno Open","CP","j","Kohn","Tomáš","bez","muži","73",0,0,1,0,0,"Kohn Tomáš",0]
["2019-09-14","Český pohár - Brno Open","CP","j","Svoboda","Jiří","bez","muži","81",0,0,1,0,0,"Svoboda Jiří",0]
["2019-09-15","Český pohár - Brno Open","CP","j","Malinovský","Jiří","bez","mladší žáci","46",1,0,1,0,1,"Malinovský Jiří",1]
["2019-09-15","Český pohár - Brno Open","CP","j","Šimkovič","Ondřej","bez","mladší žáci","50",1,0,2,0,1,"Šimkovič Ondřej",1]
["2019-09-15","Český pohár - Brno Open","CP","j","Bukovjanová","Charlotte",9,"mladší žákyně","48",1,0,2,0,1,"Bukovjanová Charlotte",1]
["2019-09-15","Český pohár - Brno Open","CP","j","Kaszperová","Kristýna",5,"mladší žákyně","52",1,0,2,3,1,"Kaszperová Kristýna",4]
["2019-09-15","Český pohár - Brno Open","CP","j","Schwarz","Šimon",3,"mladší žáci","60",3,0,1,5,3,"Schwarz Šimon",8]
["2019-09-15","Český pohár - Brno Open","CP","j","Dryšl","Adam","bez","mladší žáci","50",0,0,1,0,0,"Dryšl Adam",0]
["2019-09-15","Český pohár - Brno Open","CP","j","Valošek","Jakub","bez","mladší žáci","38",2,0,1,0,2,"Valošek Jakub",2]
["2019-09-15","Český pohár - Brno Open","CP","j","Vlk","František","bez","mladší žáci","55",1,0,2,0,1,"Vlk František",1]
["2019-09-15","Český pohár - Brno Open","CP","j","Mařec","Tomáš","bez","mladší žáci","38",1,0,1,0,1,"Mařec Tomáš",1]
["2019-09-15","Český pohár - Brno Open","CP","j","Pospíšil","Jan","bez","mladší žáci","50",1,0,2,0,1,"Pospíšil Jan",1]
["2019-09-21","Velká cena Ostravy","VC","j","Huvar","Matyáš",1,"mláďata","44",2,0,0,6,2,"Huvar Matyáš",8]
["2019-09-21","Velká cena Ostravy","VC","j","Buroň","Petr","bez","mláďata","30",0,0,2,0,0,"Buroň Petr",0]
["2019-09-21","Velká cena Ostravy","VC","j","Kolář","Václav","bez","mladší žáci","38",0,0,2,0,0,"Kolář Václav",0]
["2019-09-21","Velká cena Ostravy","VC","j","Malinovský","Jiří",3,"mladší žáci","46",0,0,2,3,0,"Malinovský Jiří",3]
["2019-09-21","Velká cena Ostravy","VC","j","Salinger","David",1,"mladší žáci","46",2,0,0,6,2,"Salinger David",8]
["2019-09-21","Velká cena Ostravy","VC","j","Šimkovič","Ondřej","bez","mladší žáci","50",0,0,2,0,0,"Šimkovič Ondřej",0]
["2019-09-21","Velká cena Ostravy","VC","j","Kulhánek","Adam",5,"mladší žáci","50",1,0,2,0,1,"Kulhánek Adam",1]
["2019-09-21","Velká cena Ostravy","VC","j","Kaszperová","Kristýna",1,"mladší žákyně","52",2,0,1,6,2,"Kaszperová Kristýna",8]
["2019-09-21","Velká cena Ostravy","VC","j","Kolář","Vojtěch",3,"starší žáci","55",1,0,2,3,1,"Kolář Vojtěch",4]
["2019-09-21","Velká cena Ostravy","VC","j","Čech","Jiří",2,"starší žáci","55",2,0,1,5,2,"Čech Jiří",7]
["2019-09-21","Velká cena Ostravy","VC","j","Žáček","Radim","bez","starší žáci","60",0,0,3,0,0,"Žáček Radim",0]
["2019-09-21","Velká cena Ostravy","VC","j","Tomek","David",2,"starší žáci","66",3,0,1,5,3,"Tomek David",8]
["2019-09-21","Velká cena Ostravy","VC","j","Pupíková","Adéla",2,"starší žákyně","+63",0,0,2,5,0,"Pupíková Adéla",5]
["2019-09-21","Velká cena Ostravy","VC","j","Kolář","Daniel",5,"dorostenci","73",0,0,4,0,0,"Kolář Daniel",0]
["2019-09-21","Velká cena Ostravy","VC","j","Jančata","Deniel",3,"mláďata","33",1,0,2,3,1,"Jančata Deniel",4]
["2019-09-21","Velká cena Ostravy","VC","j","Stark","Vojtěch",2,"mláďata","44",1,0,1,5,1,"Stark Vojtěch",6]
["2019-09-21","Velká cena Ostravy","VC","j","Murin","Jan","bez","mladší žáci","42",0,0,3,0,0,"Murin Jan",0]
["2019-09-21","Velká cena Ostravy","VC","j","Pospíšil","Jan",2,"mladší žáci","50",2,0,1,5,2,"Pospíšil Jan",7]
["2019-09-21","Velká cena Ostravy","VC","j","Pavlík","Lukáš",1,"mladší žáci","66",2,0,0,6,2,"Pavlík Lukáš",8]
["2019-09-21","Velká cena Ostravy","VC","j","Beníček","Adam",3,"mladší žáci","66",0,0,2,3,0,"Beníček Adam",3]
["2019-09-21","Velká cena Ostravy","VC","j","Hort","Maximilián",4,"starší žáci","55",0,0,3,0,0,"Hort Maximilián",0]
["2019-09-21","Velká cena Ostravy","VC","j","Bernacký","Mikuláš",4,"starší žáci","73",0,0,3,0,0,"Bernacký Mikuláš",0]
["2019-09-21","Velká cena Ostravy","VC","j","Kret","Matyáš",3,"mláďata","36",2,0,2,3,2,"Kret Matyáš",5]
["2019-09-21","Velká cena Ostravy","VC","j","Nytra","Sebastián",3,"mláďata","30",0,0,2,3,0,"Nytra Sebastián",3]
["2019-09-21","Velká cena Ostravy","VC","j","Škoda","Melichar",1,"mláďata","+52",2,0,0,6,2,"Škoda Melichar",8]
["2019-09-21","Velká cena Ostravy","VC","j","Kanclíř","Šimon",1,"mladší žáci","42",5,0,0,6,5,"Kanclíř Šimon",11]
["2019-09-21","Velká cena Ostravy","VC","j","Plaček","Viktor",2,"mladší žáci","46",1,0,1,5,1,"Plaček Viktor",6]
["2019-09-21","Velká cena Ostravy","VC","j","Galamboš","Kristián",2,"mladší žáci","66",1,0,1,5,1,"Galamboš Kristián",6]
["2019-09-21","Velká cena Ostravy","VC","j","Kocmanová","Lucie",2,"mladší žákyně","36",1,0,1,5,1,"Kocmanová Lucie",6]
["2019-09-21","Velká cena Ostravy","VC","j","Ciora","Jakub",1,"mláďata","33",3,0,0,6,3,"Ciora Jakub",9]
["2019-09-21","Velká cena Ostravy","VC","j","Vlk","František",3,"mladší žáci","55",1,0,1,3,1,"Vlk František",4]
["2019-09-21","Velká cena Ostravy","VC","j","Turek","Jakub",3,"mladší žáci","42",2,0,2,3,2,"Turek Jakub",5]
["2019-09-21","Velká cena Ostravy","VC","j","Baudiš","Michal",2,"mladší žáci","60",1,0,1,{"$f":"IF(ISNA(VLOOKUP(C649&G649,$V$3:$W$95,2,FALSE)),0,VLOOKUP(C649&G649,$V$3:$W$95,2,FALSE))","v":5},{"$f":"IF(D649=\"d\",SUM(J649*2,K649),J649)","v":1},{"$f":"E649&\" \"&F649","v":"Baudiš Michal"},{"$f":"SUM(M649,N649)","v":6}]
["2019-09-21","Velká cena Ostravy","VC","j","Schwarz","Šimon",1,"mladší žáci","60",2,0,0,6,2,"Schwarz Šimon",8]
["2019-09-21","Velká cena Ostravy","VC","j","Zwilling","Šimon",1,"mladší žáci","55",1,0,1,6,1,"Zwilling Šimon",7]
["2019-09-21","Velká cena Ostravy","VC","j","Dryšl","Adam","bez","mladší žáci","50",1,0,2,0,1,"Dryšl Adam",1]
["2019-09-21","Velká cena Ostravy","VC","j","Válek","Matěj","bez","starší žáci","46",1,0,3,0,1,"Válek Matěj",1]
["2019-09-21","Velká cena Ostravy","VC","j","Kožušník","Vojtěch",3,"starší žáci","50",1,0,2,3,1,"Kožušník Vojtěch",4]
["2019-09-21","Velká cena Ostravy","VC","j","Volná","Tereza",3,"starší žákyně","57",0,0,2,3,0,"Volná Tereza",3]
["2019-06-24","Olympiáda dětí a mládeže - Liberec","CP","d","Vontor","Tomáš",1,"starší žáci","42",3,0,0,10,6,"Vontor Tomáš",16]
["2019-06-24","Olympiáda dětí a mládeže - Liberec","CP","d","Huvar","Jakub",1,"starší žáci","46",3,0,2,10,6,"Huvar Jakub",16]
["2019-06-24","Olympiáda dětí a mládeže - Liberec","CP","d","Čebík","Filip",1,"starší žáci","50",3,0,1,10,6,"Čebík Filip",16]
["2019-06-24","Olympiáda dětí a mládeže - Liberec","CP","d","Rapčanová","Alice",1,"starší žákyně","44",1,0,0,10,2,"Rapčanová Alice",12]
["2019-06-24","Olympiáda dětí a mládeže - Liberec","CP","d","Kuželová","Dominika",1,"starší žákyně","57",5,0,0,10,10,"Kuželová Dominika",20]
["2019-09-21","Dorostenecká liga - 3. kolo Brno","DL","d","Mojžíšek","Lukáš",null,"dorostenci","90",3,0,2,0,6,"Mojžíšek Lukáš",6]
["2019-09-21","Dorostenecká liga - 3. kolo Brno","DL","d","Meixner","Tomáš",null,"dorostenci","55",5,0,0,0,10,"Meixner Tomáš",10]
["2019-09-21","Dorostenecká liga - 3. kolo Brno","DL","d","Motyka","Dominik",6,"dorostenci","73",3,0,2,5,6,"Motyka Dominik",11]
["2019-09-21","Dorostenecká liga - 3. kolo Brno","DL","d","Čebík","Filip",null,"dorostenci","50",3,0,2,0,6,"Čebík Filip",6]
["2019-09-21","Dorostenecká liga - 3. kolo Brno","DL","d","Malaczynski","Filip",null,"dorostenci","60",0,0,3,0,0,"Malaczynski Filip",0]
["2019-09-21","Dorostenecká liga - 3. kolo Brno","DL","d","Pavlica","Lukáš",null,"dorostenci","90",1,0,3,0,2,"Pavlica Lukáš",2]
["2019-09-21","Dorostenecká liga - 3. kolo Brno","DL","d","Lindovský","Jiří",null,"dorostenci","66",1,0,4,0,2,"Lindovský Jiří",2]
["2019-09-21","Dorostenecká liga - 3. kolo Brno","DL","d","Křížek","Šimon",null,"dorostenci","60",0,0,2,0,0,"Křížek Šimon",0]
["2019-09-21","1. liga - muži - 3. kolo Hranice na Moravě","1.liga","d","Šimek","Daniel",4,"muži","66",3,0,1,5,6,"Šimek Daniel",11]
["2019-09-21","1. liga - muži - 3. kolo Hranice na Moravě","1.liga","d","Šeděnka","Richard",4,"muži","73",0,0,2,5,0,"Šeděnka Richard",5]
["2019-09-21","1. liga - muži - 3. kolo Hranice na Moravě","1.liga","d","Kohn","Pavel",4,"muži","73",2,0,1,5,4,"Kohn Pavel",9]
["2019-09-21","1. liga - muži - 3. kolo Hranice na Moravě","1.liga","d","Svoboda","Jiří",4,"muži","81",4,0,1,5,8,"Svoboda Jiří",13]
["2019-09-21","1. liga - muži - 3. kolo Hranice na Moravě","1.liga","d","Pravda","Jan",4,"muži","100",4,0,1,5,8,"Pravda Jan",13]
["2019-09-21","1. liga - muži - 3. kolo Hranice na Moravě","1.liga","d","Pavlica","Tomáš",4,"muži","90",0,0,2,5,0,"Pavlica Tomáš",5]
["2019-09-28","XXI. Warszawa Judo Open","MT","j","Vontor","Tomáš","bez","starší žáci","42",0,0,2,0,0,"Vontor Tomáš",0]
["2019-09-28","XXI. Warszawa Judo Open","MT","j","Huvar","Jakub","bez","starší žáci","46",0,0,2,0,0,"Huvar Jakub",0]
["2019-09-28","XXI. Warszawa Judo Open","MT","j","Meixner","Michal","bez","starší žáci","46",2,0,2,0,2,"Meixner Michal",2]
["2019-09-28","XXI. Warszawa Judo Open","MT","j","Čebík","Filip","bez","starší žáci","55",1,0,1,0,1,"Čebík Filip",1]
["2019-09-28","XXI. Warszawa Judo Open","MT","j","Fulneček","Šimon","bez","starší žáci","81",0,0,1,0,0,"Fulneček Šimon",0]
["2019-09-28","XXI. Warszawa Judo Open","MT","j","Rapčanová","Silvie","bez","starší žákyně","40",0,0,1,0,0,"Rapčanová Silvie",0]
["2019-09-28","XXI. Warszawa Judo Open","MT","j","Kuželová","Dominika","bez","starší žákyně","57",1,0,2,0,1,"Kuželová Dominika",1]
["2019-09-28","XXI. Warszawa Judo Open","MT","j","Meixner","Tomáš","bez","dorostenci","55",1,0,1,0,1,"Meixner Tomáš",1]
["2019-09-28","XXI. Warszawa Judo Open","MT","j","Malaczynski","Filip","bez","dorostenci","60",1,0,2,0,1,"Malaczynski Filip",1]
["2019-09-28","XXI. Warszawa Judo Open","MT","j","Křížek","Šimon","bez","dorostenci","60",2,0,1,0,2,"Křížek Šimon",2]
["2019-09-28","XXI. Warszawa Judo Open","MT","j","Lindovský","Jiří","bez","dorostenci","60",1,0,1,0,1,"Lindovský Jiří",1]
["2019-09-28","XXI. Warszawa Judo Open","MT","j","Motyka","Dominik",3,"dorostenci","73",5,0,1,5,5,"Motyka Dominik",10]
["2019-09-28","XXI. Warszawa Judo Open","MT","j","Václavková","Tereza","bez","dorostenky","57",1,0,1,0,1,"Václavková Tereza",1]
["2019-09-28","XXI. Warszawa Judo Open","MT","j","Čerchlová","Markéta",3,"dorostenky","+70",3,0,1,5,3,"Čerchlová Markéta",8]
["2019-09-28","XXI. Warszawa Judo Open","MT","j","Šimek","Daniel","bez","junioři","66",1,0,1,0,1,"Šimek Daniel",1]
["2019-09-28","XXI. Warszawa Judo Open","MT","j","Pavlica","Tomáš","bez","junioři","90",0,0,1,0,0,"Pavlica Tomáš",0]
["2019-09-21","MT Francie","MT","d","Rapčanová","Silvie",2,"starší žákyně","40",4,1,0,7,9,"Rapčanová Silvie",16]
["2019-09-21","MT Francie","MT","d","Rapčanová","Alice",2,"starší žákyně","48",2,1,2,7,5,"Rapčanová Alice",12]
["2019-09-21","MT Francie","MT","d","Bukovjanová","Charlotte",2,"starší žákyně","52",2,0,3,7,4,"Bukovjanová Charlotte",11]
["2019-09-21","MT Francie","MT","d","Vavřínová","Pavla",2,"starší žákyně","57",5,0,0,7,10,"Vavřínová Pavla",17]
["2019-10-05","Grand Prix Považská Bystrica","MT","j","Škoda","Melichar",2,"mláďata","+50",3,0,1,7,3,"Škoda Melichar",10]
["2019-10-05","Grand Prix Považská Bystrica","MT","j","Románek","Jakub","bez","mladší žáci","55",0,0,2,0,0,"Románek Jakub",0]
["2019-10-05","Grand Prix Považská Bystrica","MT","j","Kanclíř","Šimon","bez","mladší žáci","42",0,0,1,0,0,"Kanclíř Šimon",0]
["2019-10-05","Grand Prix Považská Bystrica","MT","j","Zwilling","Šimon",3,"mladší žáci","55",3,0,1,5,3,"Zwilling Šimon",8]
["2019-10-05","Grand Prix Považská Bystrica","MT","j","Mařec","Tomáš","bez","mladší žáci","38",2,0,2,0,2,"Mařec Tomáš",2]
["2019-10-05","Grand Prix Považská Bystrica","MT","j","Vlk","František","bez","mladší žáci","55",1,0,2,0,1,"Vlk František",1]
["2019-10-05","Grand Prix Považská Bystrica","MT","j","Bechný","Adam","bez","mláďata","30",0,0,1,0,0,"Bechný Adam",0]
["2019-10-05","Grand Prix Považská Bystrica","MT","j","Ciora","Jakub","bez","mláďata","34",1,0,2,0,1,"Ciora Jakub",1]
["2019-10-05","Grand Prix Považská Bystrica","MT","j","Bravanský","Marek","bez","mláďata","38",0,0,2,0,0,"Bravanský Marek",0]
["2019-10-05","Grand Prix Považská Bystrica","MT","j","Přichystal","Leon","bez","mláďata","32",2,0,2,0,2,"Přichystal Leon",2]
["2019-10-05","Grand Prix Považská Bystrica","MT","j","Kuluris","Manolis","bez","mláďata","38",2,0,2,0,2,"Kuluris Manolis",2]
["2019-10-05","Grand Prix Považská Bystrica","MT","j","Valošek","Jakub","bez","mladší žáci","38",2,0,2,0,2,"Valošek Jakub",2]
["2019-10-05","Grand Prix Považská Bystrica","MT","j","Huvar","Matyáš",1,"mláďata","42",3,0,0,10,3,"Huvar Matyáš",13]
["2019-10-05","Grand Prix Považská Bystrica","MT","j","Buroň","Petr","bez","mláďata","34",0,0,1,0,0,"Buroň Petr",0]
["2019-10-05","Grand Prix Považská Bystrica","MT","j","Šimkovič","Ondřej",5,"mladší žáci","55",1,0,2,3,1,"Šimkovič Ondřej",4]
["2019-10-05","Grand Prix Považská Bystrica","MT","j","Salinger","David",5,"mladší žáci","50",1,0,2,3,1,"Salinger David",4]
["2019-10-05","Grand Prix Považská Bystrica","MT","j","Kulhánek","Adam",3,"mladší žáci","55",3,0,1,5,3,"Kulhánek Adam",8]
["2019-10-05","Grand Prix Považská Bystrica","MT","j","Bukovjanová","Charlotte",2,"mladší žákyně","48",2,0,1,7,2,"Bukovjanová Charlotte",9]
["2019-10-05","Grand Prix Považská Bystrica","MT","j","Pospíšil","Jan",3,"mladší žáci","50",2,0,1,{"$f":"IF(ISNA(VLOOKUP(C713&G713,$V$3:$W$95,2,FALSE)),0,VLOOKUP(C713&G713,$V$3:$W$95,2,FALSE))","v":5},{"$f":"IF(D713=\"d\",SUM(J713*2,K713),J713)","v":2},{"$f":"E713&\" \"&F713","v":"Pospíšil Jan"},{"$f":"SUM(M713,N713)","v":7}]
["2019-10-05","Grand Prix Považská Bystrica","MT","j","Beníček","Adam",4,"mladší žáci","50",1,0,3,3,1,"Beníček Adam",4]
["2019-10-05","Röntgen Kanizsa Cup Maďarsko","MVC","j","Galamboš","Kristián",2,"mladší žáci","+60",0,0,2,5,0,"Galamboš Kristián",5]
["2019-10-05","Röntgen Kanizsa Cup Maďarsko","MVC","j","Plaček","Viktor",3,"mladší žáci","45",1,0,2,3,1,"Plaček Viktor",4]
["2019-10-05","Röntgen Kanizsa Cup Maďarsko","MVC","j","Kocmanová","Lucie",1,"mladší žákyně","36",2,0,0,6,2,"Kocmanová Lucie",8]
["2019-10-05","Röntgen Kanizsa Cup Maďarsko","MVC","j","Kaszperová","Kristýna",1,"mladší žákyně","49",4,0,0,6,4,"Kaszperová Kristýna",10]
["2019-10-12","Turnaj Benjamínků Štamberk","MC","j","To","Vojtěch",2,"mláďata","24",2,0,2,3,2,"To Vojtěch",5]
["2019-10-12","Turnaj Benjamínků Štamberk","MC","j","Jančata","Deniel","bez","mláďata","31",1,0,2,0,1,"Jančata Deniel",1]
["2019-10-12","Turnaj Benjamínků Štamberk","MC","j","Přichystal","Leon",2,"mláďata","31",3,0,2,3,3,"Přichystal Leon",6]
["2019-10-12","Turnaj Benjamínků Štamberk","MC","j","Buroň","Petr","bez","mláďata","31",0,0,2,0,0,"Buroň Petr",0]
["2019-10-12","Turnaj Benjamínků Štamberk","MC","j","Šelong","Tadeáš",4,"mláďata","32",1,0,3,0,1,"Šelong Tadeáš",1]
["2019-10-12","Turnaj Benjamínků Štamberk","MC","j","Berka","Daniel","bez","mláďata","33",0,0,3,0,0,"Berka Daniel",0]
["2019-10-12","Turnaj Benjamínků Štamberk","MC","j","Ciora","Jakub",1,"mláďata","33,9",4,0,0,4,4,"Ciora Jakub",8]
["2019-10-12","Turnaj Benjamínků Štamberk","MC","j","Kuluris","Manolis",1,"mláďata","34,9",4,0,0,4,4,"Kuluris Manolis",8]
["2019-10-12","Turnaj Benjamínků Štamberk","MC","j","Hon","Sebastián",4,"mláďata","38,3",1,0,3,0,1,"Hon Sebastián",1]
["2019-10-12","Turnaj Benjamínků Štamberk","MC","j","Stark","Vojtěch",2,"mláďata","52,9",1,0,1,3,1,"Stark Vojtěch",4]
["2019-09-15","Český pohár - Brno Open","CP","j","Vontor","Tomáš",2,"starší žáci","42",3,0,1,7,3,"Vontor Tomáš",10]
["2019-09-15","Český pohár - Brno Open","CP","j","Meixner","Michal","bez","starší žáci","46",2,0,2,0,2,"Meixner Michal",2]
["2019-09-15","Český pohár - Brno Open","CP","j","Huvar","Jakub",5,"starší žáci","46",3,0,2,3,3,"Huvar Jakub",6]
["2019-09-15","Český pohár - Brno Open","CP","j","Čebík","Filip",5,"starší žáci","50",5,0,2,3,5,"Čebík Filip",8]
["2019-09-15","Český pohár - Brno Open","CP","j","Kolář","Vojtěch","bez","starší žáci","55",0,0,2,0,0,"Kolář Vojtěch",0]
["2019-09-15","Český pohár - Brno Open","CP","j","Caletka","Michal","bez","starší žáci","55",2,0,1,0,2,"Caletka Michal",2]
["2019-09-15","Český pohár - Brno Open","CP","j","Caletka","Petr","bez","starší žáci","55",0,0,1,0,0,"Caletka Petr",0]
["2019-09-15","Český pohár - Brno Open","CP","j","Čech","Jiří","bez","starší žáci","55",0,0,1,0,0,"Čech Jiří",0]
["2019-09-15","Český pohár - Brno Open","CP","j","Kuzník","Tadeáš","bez","starší žáci","60",3,0,2,0,3,"Kuzník Tadeáš",3]
["2019-09-15","Český pohár - Brno Open","CP","j","Tomek","David","bez","starší žáci","66",0,0,1,0,0,"Tomek David",0]
["2019-09-15","Český pohár - Brno Open","CP","j","Fulneček","Šimon",3,"starší žáci","73",4,0,1,5,4,"Fulneček Šimon",9]
["2019-09-15","Český pohár - Brno Open","CP","j","Čerchla","Michal","bez","starší žáci","73",1,0,2,0,1,"Čerchla Michal",1]
["2019-09-15","Český pohár - Brno Open","CP","j","Rapčanová","Silvie","bez","starší žákyně","40",0,0,2,0,0,"Rapčanová Silvie",0]
["2019-09-15","Český pohár - Brno Open","CP","j","Rapčanová","Alice","bez","starší žákyně","48",2,0,2,0,2,"Rapčanová Alice",2]
["2019-09-15","Český pohár - Brno Open","CP","j","Vavřínová","Pavla","bez","starší žákyně","57",0,0,1,0,0,"Vavřínová Pavla",0]
["2019-09-15","Český pohár - Brno Open","CP","j","Kuželová","Dominika",2,"starší žákyně","63",2,0,1,7,2,"Kuželová Dominika",9]
["2019-09-15","Český pohár - Brno Open","CP","j","Šimek","Daniel","bez","junioři","66",0,0,1,0,0,"Šimek Daniel",0]
["2019-09-15","Český pohár - Brno Open","CP","j","Pavlica","Tomáš",7,"junioři","90",1,0,2,2,1,"Pavlica Tomáš",3]
["2019-09-15","Český pohár - Brno Open","CP","j","Martínková","Adéla",1,"juniorky","78",2,0,0,10,2,"Martínková Adéla",12]
["2019-10-12","Moravská liga 4. kolo - Ostrava","PSO","d","Šimek","Daniel",1,"muži","66",5,0,1,6,10,"Šimek Daniel",16]
["2019-10-12","Moravská liga 4. kolo - Ostrava","PSO","d","Šmatelka","Ondřej",1,"muži","73",1,0,5,6,2,"Šmatelka Ondřej",8]
["2019-10-12","Moravská liga 4. kolo - Ostrava","PSO","d","Svoboda","Jiří",1,"muži","81",5,0,1,6,10,"Svoboda Jiří",16]
["2019-10-12","Moravská liga 4. kolo - Ostrava","PSO","d","Pavlica","Tomáš",1,"muži","90",1,0,2,6,2,"Pavlica Tomáš",8]
["2019-10-12","Moravská liga 4. kolo - Ostrava","PSO","d","Mojžíšek","Lukáš",1,"muži","90",1,0,2,6,2,"Mojžíšek Lukáš",8]
["2019-10-12","Moravská liga 4. kolo - Ostrava","PSO","d","Silvestr","Matěj",1,"muži","100",6,0,0,6,12,"Silvestr Matěj",18]
["2019-10-12","Moravská liga 4. kolo - Ostrava","PSO","d","Pustějovský","Tomáš",1,"muži","+100",5,0,1,6,10,"Pustějovský Tomáš",16]
["2019-10-19","Přebor ČR mladší žáci a žákyně","PCR","j","Kanclíř","Šimon","bez","mladší žáci","42",0,0,1,0,0,"Kanclíř Šimon",0]
["2019-10-19","Přebor ČR mladší žáci a žákyně","PCR","j","Plaček","Viktor","bez","mladší žáci","46",0,0,1,0,0,"Plaček Viktor",0]
["2019-10-19","Přebor ČR mladší žáci a žákyně","PCR","j","Galamboš","Kristián",5,"mladší žáci","66",3,0,2,3,3,"Galamboš Kristián",6]
["2019-10-19","Přebor ČR mladší žáci a žákyně","PCR","j","Pospíšil","Jan",2,"mladší žáci","50",4,0,1,7,4,"Pospíšil Jan",11]
["2019-10-19","Přebor ČR mladší žáci a žákyně","PCR","j","Pavlík","Lukáš",3,"mladší žáci","66",3,0,1,5,3,"Pavlík Lukáš",8]
["2019-10-19","Přebor ČR mladší žáci a žákyně","PCR","j","Malinovský","Jiří","bez","mladší žáci","46",0,0,1,0,0,"Malinovský Jiří",0]
["2019-10-19","Přebor ČR mladší žáci a žákyně","PCR","j","Vlk","František","bez","mladší žáci","55",1,0,2,0,1,"Vlk František",1]
["2019-10-19","Přebor ČR mladší žáci a žákyně","PCR","j","Zwilling","Šimon",7,"mladší žáci","55",2,0,2,2,2,"Zwilling Šimon",4]
["2019-10-19","Přebor ČR mladší žáci a žákyně","PCR","j","Baudiš","Michal",2,"mladší žáci","60",3,0,1,7,3,"Baudiš Michal",10]
["2019-10-19","Přebor ČR mladší žáci a žákyně","PCR","j","Schwarz","Šimon",3,"mladší žáci","60",4,0,1,5,4,"Schwarz Šimon",9]
["2019-10-19","Přebor ČR mladší žáci a žákyně","PCR","j","Turek","Jakub","bez","mladší žáci","49",0,0,2,0,0,"Turek Jakub",0]
["2019-10-19","Přebor ČR mladší žáci a žákyně","PCR","j","Kocmanová","Lucie",5,"mladší žákyně","36",1,0,2,3,1,"Kocmanová Lucie",4]
["2019-10-19","Přebor ČR mladší žáci a žákyně","PCR","j","Bukovjanová","Charlotte",7,"mladší žákyně","48",3,0,2,2,3,"Bukovjanová Charlotte",5]
["2019-10-19","Přebor ČR mladší žáci a žákyně","PCR","j","Kaszperová","Kristýna",5,"mladší žákyně","52",2,0,2,3,2,"Kaszperová Kristýna",5]
["2019-10-26","Krajský přebor mláďat","PK","j","To","Vojtěch",5,"mláďata","27",2,0,2,0,2,"To Vojtěch",2]
["2019-10-26","Krajský přebor mláďat","PK","j","Karbula","Ondřej",7,"mláďata","30",2,0,2,0,2,"Karbula Ondřej",2]
["2019-10-26","Krajský přebor mláďat","PK","j","Bechný","Adam",3,"mláďata","30",3,0,1,3,3,"Bechný Adam",6]
["2019-10-26","Krajský přebor mláďat","PK","j","Nuhlíček","Michal","bez","mláďata","33",1,0,2,0,1,"Nuhlíček Michal",1]
["2019-10-26","Krajský přebor mláďat","PK","j","Přichystal","Leon","bez","mláďata","33",0,0,1,0,0,"Přichystal Leon",0]
["2019-10-26","Krajský přebor mláďat","PK","j","Ciora","Jakub",1,"mláďata","33",4,0,0,6,4,"Ciora Jakub",10]
["2019-10-26","Krajský přebor mláďat","PK","j","Musial","Šimon","bez","mláďata","33",0,0,1,0,0,"Musial Šimon",0]
["2019-10-26","Krajský přebor mláďat","PK","j","Šelong","Tadeáš",7,"mláďata","33",1,0,2,0,1,"Šelong Tadeáš",1]
["2019-10-26","Krajský přebor mláďat","PK","j","Staněk","Patrik",5,"mláďata","33",1,0,2,{"$f":"IF(ISNA(VLOOKUP(C777&G777,$V$3:$W$95,2,FALSE)),0,VLOOKUP(C777&G777,$V$3:$W$95,2,FALSE))","v":0},{"$f":"IF(D777=\"d\",SUM(J777*2,K777),J777)","v":1},{"$f":"E777&\" \"&F777","v":"Staněk Patrik"},{"$f":"SUM(M777,N777)","v":1}]
["2019-10-26","Krajský přebor mláďat","PK","j","Stránský","David",5,"mláďata","33",2,0,2,0,2,"Stránský David",2]
["2019-10-26","Krajský přebor mláďat","PK","j","Berka","Daniel","bez","mláďata","33",0,0,2,0,0,"Berka Daniel",0]
["2019-10-26","Krajský přebor mláďat","PK","j","Buroň","Petr","bez","mláďata","33",0,0,1,0,0,"Buroň Petr",0]
["2019-10-26","Krajský přebor mláďat","PK","j","Bystrianský","Jan","bez","mláďata","33",0,0,2,0,0,"Bystrianský Jan",0]
["2019-10-26","Krajský přebor mláďat","PK","j","Gutiqi","Ryan",7,"mláďata","33",1,0,2,0,1,"Gutiqi Ryan",1]
["2019-10-26","Krajský přebor mláďat","PK","j","Kret","Matyáš",3,"mláďata","36",2,0,1,3,2,"Kret Matyáš",5]
["2019-10-26","Krajský přebor mláďat","PK","j","Kuluris","Manolis",2,"mláďata","36",3,0,2,5,3,"Kuluris Manolis",8]
["2019-10-26","Krajský přebor mláďat","PK","j","Nytra","Sebastián","bez","mláďata","40",1,0,2,0,1,"Nytra Sebastián",1]
["2019-10-26","Krajský přebor mláďat","PK","j","Hon","Sebastián","bez","mláďata","40",0,0,3,0,0,"Hon Sebastián",0]
["2019-10-26","Krajský přebor mláďat","PK","j","Baron","Daniel",2,"mláďata","44",1,0,1,5,1,"Baron Daniel",6]
["2019-10-26","Krajský přebor mláďat","PK","j","Huvar","Matyáš",1,"mláďata","44",2,0,0,6,2,"Huvar Matyáš",8]
["2019-10-26","Krajský přebor mláďat","PK","j","Stark","Vojtěch",2,"mláďata","52",3,0,1,5,3,"Stark Vojtěch",8]
["2019-10-26","Krajský přebor mláďat","PK","j","Škoda","Melichar",2,"mláďata","+52",2,0,1,5,2,"Škoda Melichar",7]
["2019-10-26","IJF Cadets Tour - Koper","EJU","j","Meixner","Tomáš",9,"dorostenci","55",1,0,2,10,1,"Meixner Tomáš",11]
["2019-10-26","IJF Cadets Tour - Koper","EJU","j","Václavková","Tereza",9,"dorostenky","57",2,0,2,10,2,"Václavková Tereza",12]
["2019-10-05","Mistrovství ČR juniorů a juniorek","MCR","j","Šimek","Daniel","bez","junioři","66",0,0,2,0,0,"Šimek Daniel",0]
["2019-10-05","Mistrovství ČR juniorů a juniorek","MCR","j","Silvestr","Matěj",5,"junioři","90",1,0,2,7,1,"Silvestr Matěj",8]
["2019-10-05","Mistrovství ČR juniorů a juniorek","MCR","j","Pavlica","Tomáš","bez","junioři","90",0,0,2,0,0,"Pavlica Tomáš",0]
["2019-10-05","Mistrovství ČR juniorů a juniorek","MCR","j","Martínková","Adéla",1,"juniorky","78",5,0,0,20,5,"Martínková Adéla",25]
["2019-10-05","Mistrovství ČR juniorů a juniorek","MCR","j","Polášková","Kristýna",2,"juniorky","63",2,0,1,15,2,"Polášková Kristýna",17]
["2019-10-05","Mistrovství ČR juniorů a juniorek","MCR","j","Čerchlová","Markéta",1,"juniorky","+78",2,0,0,20,2,"Čerchlová Markéta",22]
["2019-10-06","Mistrovství ČR družstev ženy","MCR","d","Polášková","Kristýna",3,"ženy","63",3,0,1,10,6,"Polášková Kristýna",16]
["2019-10-06","Mistrovství ČR družstev ženy","MCR","d","Martínková","Adéla",3,"ženy","+70",0,0,3,10,0,"Martínková Adéla",10]
["2019-10-06","Mistrovství ČR družstev ženy","MCR","d","Čerchlová","Markéta",3,"ženy","+70",1,0,0,10,2,"Čerchlová Markéta",12]
["2019-10-06","Přebor ČR družstev starších žákyň","PCR","d","Rapčanová","Silvie",3,"starší žákyně","44",2,0,0,5,4,"Rapčanová Silvie",9]
["2019-10-06","Přebor ČR družstev starších žákyň","PCR","d","Kuželová","Dominika",3,"starší žákyně","63",1,0,2,5,2,"Kuželová Dominika",7]
["2019-10-20","Přebor ČR starší žáci a žákyně","PCR","j","Vontor","Tomáš",2,"starší žáci","42",3,0,1,7,3,"Vontor Tomáš",10]
["2019-10-20","Přebor ČR starší žáci a žákyně","PCR","j","Huvar","Jakub",3,"starší žáci","46",5,0,1,5,5,"Huvar Jakub",10]
["2019-10-20","Přebor ČR starší žáci a žákyně","PCR","j","Meixner","Michal",7,"starší žáci","46",1,0,2,2,1,"Meixner Michal",3]
["2019-10-20","Přebor ČR starší žáci a žákyně","PCR","j","Čebík","Filip","bez","starší žáci","50",0,0,1,0,0,"Čebík Filip",0]
["2019-10-20","Přebor ČR starší žáci a žákyně","PCR","j","Čerchla","Michal","bez","starší žáci","66",0,0,2,0,0,"Čerchla Michal",0]
["2019-10-20","Přebor ČR starší žáci a žákyně","PCR","j","Tomek","David",7,"starší žáci","66",1,0,2,2,1,"Tomek David",3]
["2019-10-20","Přebor ČR starší žáci a žákyně","PCR","j","Fulneček","Šimon",3,"starší žáci","73",2,0,1,5,2,"Fulneček Šimon",7]
["2019-10-20","Přebor ČR starší žáci a žákyně","PCR","j","Rapčanová","Silvie",3,"starší žákyně","40",2,0,1,5,2,"Rapčanová Silvie",7]
["2019-10-20","Přebor ČR starší žáci a žákyně","PCR","j","Rapčanová","Alice",5,"starší žákyně","44",1,0,2,3,1,"Rapčanová Alice",4]
["2019-10-20","Přebor ČR starší žáci a žákyně","PCR","j","Vavřínová","Pavla","bez","starší žákyně","52",2,0,2,0,2,"Vavřínová Pavla",2]
["2019-10-20","Přebor ČR starší žáci a žákyně","PCR","j","Kosťová","Barbora","bez","starší žákyně","57",0,0,1,0,0,"Kosťová Barbora",0]
["2019-10-20","Přebor ČR starší žáci a žákyně","PCR","j","Kuželová","Dominika",7,"starší žákyně","57",2,0,2,2,2,"Kuželová Dominika",4]
["2019-11-03","Přebor ČR družstev starší žáci","PCR","d","Neuwirt","Petr","bez","starší žáci","38",0,0,1,0,0,"Neuwirt Petr",0]
["2019-11-03","Přebor ČR družstev starší žáci","PCR","d","Vontor","Tomáš","bez","starší žáci","42",1,0,0,0,2,"Vontor Tomáš",2]
["2019-11-03","Přebor ČR družstev starší žáci","PCR","d","Huvar","Jakub","bez","starší žáci","46",0,0,1,0,0,"Huvar Jakub",0]
["2019-11-03","Přebor ČR družstev starší žáci","PCR","d","Čebík","Filip","bez","starší žáci","50",1,0,0,0,2,"Čebík Filip",2]
["2019-11-03","Přebor ČR družstev starší žáci","PCR","d","Kuzník","Tadeáš","bez","starší žáci","60",0,0,1,0,0,"Kuzník Tadeáš",0]
["2019-11-03","Přebor ČR družstev starší žáci","PCR","d","Tomek","David","bez","starší žáci","66",0,0,1,0,0,"Tomek David",0]
["2019-11-03","Přebor ČR družstev starší žáci","PCR","d","Fulneček","Šimon","bez","starší žáci","73",1,0,0,0,2,"Fulneček Šimon",2]
["2019-11-03","Mistrovství ČR družstev dorostenek","MCR","d","Otáhalová","Magdaléna",3,"dorostenky","52",1,0,1,10,2,"Otáhalová Magdaléna",12]
["2019-11-03","Mistrovství ČR družstev dorostenek","MCR","d","Václavková","Tereza",3,"dorostenky","57",1,0,1,10,2,"Václavková Tereza",12]
["2019-11-03","Mistrovství ČR družstev dorostenek","MCR","d","Čerchlová","Markéta",3,"dorostenky","+70",1,0,2,10,2,"Čerchlová Markéta",12]
["2019-11-03","Mistrovství ČR družstev dorostenek","MCR","d","Kuželová","Dominika",3,"dorostenky","63",0,0,1,10,0,"Kuželová Dominika",10]
["2019-11-03","Mistrovství ČR družstev dorostenek","MCR","d","Kokešová","Alexandra",3,"dorostenky","52",0,0,1,10,0,"Kokešová Alexandra",10]
["2019-11-09","MT Bytom","MT","j","Meixner","Tomáš","bez","dorostenci","60",0,0,1,0,0,"Meixner Tomáš",0]
["2019-11-09","MT Bytom","MT","j","Malaczynski","Filip",5,"dorostenci","60",3,0,2,3,3,"Malaczynski Filip",6]
["2019-11-10","MT Borsa Open (BIH)","MT","j","Kokešová","Alexandra",7,"dorostenky","52",2,0,2,2,2,"Kokešová Alexandra",4]
["2019-11-10","MT Borsa Open (BIH)","MT","j","Čerchlová","Markéta",2,"dorostenky","+70",2,0,1,7,2,"Čerchlová Markéta",9]
["2019-11-10","MT Borsa Open (BIH)","MT","j","Křížek","Šimon",5,"dorostenci","60",3,0,2,3,3,"Křížek Šimon",6]
["2019-11-10","MT Borsa Open (BIH)","MT","j","Lindovský","Jiří","bez","dorostenci","66",1,0,1,0,1,"Lindovský Jiří",1]
["2019-11-10","MT Borsa Open (BIH)","MT","j","Mojžíšek","Lukáš",2,"dorostenci","90",3,0,1,7,3,"Mojžíšek Lukáš",10]
["2019-11-16","Memoriál Saši Jurečky ","VC","j","Vontor","Tomáš",3,"starší žáci","46",2,0,1,3,2,"Vontor Tomáš",5]
["2019-11-16","Memoriál Saši Jurečky ","VC","j","Meixner","Michal",1,"starší žáci","46",3,0,0,6,3,"Meixner Michal",9]
["2019-11-16","Memoriál Saši Jurečky ","VC","j","Lavrukhin","Dobrynia",5,"starší žáci","46",1,0,2,0,1,"Lavrukhin Dobrynia",1]
["2019-11-16","Memoriál Saši Jurečky ","VC","j","Caletka","Petr",2,"starší žáci","55",3,0,1,5,3,"Caletka Petr",8]
["2019-11-16","Memoriál Saši Jurečky ","VC","j","Čebík","Filip",1,"starší žáci","55",4,0,0,6,4,"Čebík Filip",10]
["2019-11-16","Memoriál Saši Jurečky ","VC","j","Kožušník","Vojtěch","bez","starší žáci","55",0,0,4,0,0,"Kožušník Vojtěch",0]
["2019-11-16","Memoriál Saši Jurečky ","VC","j","Čech","Jiří","bez","starší žáci","60",0,0,2,{"$f":"IF(ISNA(VLOOKUP(C841&G841,$V$3:$W$95,2,FALSE)),0,VLOOKUP(C841&G841,$V$3:$W$95,2,FALSE))","v":0},{"$f":"IF(D841=\"d\",SUM(J841*2,K841),J841)","v":0},{"$f":"E841&\" \"&F841","v":"Čech Jiří"},{"$f":"SUM(M841,N841)","v":0}]
["2019-11-16","Memoriál Saši Jurečky ","VC","j","Tomek","David",2,"starší žáci","66",2,0,1,5,2,"Tomek David",7]
["2019-11-16","Memoriál Saši Jurečky ","VC","j","Pospíšil","Jan",2,"mladší žáci","50",3,0,1,5,3,"Pospíšil Jan",8]
["2019-11-16","Memoriál Saši Jurečky ","VC","j","Čebík","Filip",2,"dorostenci","55",2,0,1,5,2,"Čebík Filip",7]
["2019-11-23","Velká cena Karviné","VC","j","Schwarz","Šimon",2,"mladší žáci","60",0,0,2,5,0,"Schwarz Šimon",5]
["2019-11-23","Velká cena Karviné","VC","j","Baudiš","Michal",1,"mladší žáci","60",2,0,0,6,2,"Baudiš Michal",8]
["2019-11-23","Velká cena Karviné","VC","j","Kulhánek","Adam",1,"mladší žáci","55",5,0,0,6,5,"Kulhánek Adam",11]
["2019-11-23","Velká cena Karviné","VC","j","Kanclíř","Šimon",3,"mladší žáci","42",3,0,1,3,3,"Kanclíř Šimon",6]
["2019-11-23","Velká cena Karviné","VC","j","To","Adam",3,"mladší žáci","38",2,0,2,3,2,"To Adam",5]
["2019-11-23","Velká cena Karviné","VC","j","Salinger","David",3,"mladší žáci","46",1,0,2,3,1,"Salinger David",4]
["2019-11-23","Velká cena Karviné","VC","j","Vlk","František","bez","mladší žáci","55",0,0,3,0,0,"Vlk František",0]
["2019-11-23","Velká cena Karviné","VC","j","Pospíšil","Jan",1,"mladší žáci","50",3,0,0,6,3,"Pospíšil Jan",9]
["2019-11-23","Velká cena Karviné","VC","j","Šimkovič","Ondřej",3,"mladší žáci","50",1,0,2,3,1,"Šimkovič Ondřej",4]
["2019-11-23","Velká cena Karviné","VC","j","Zwilling","Šimon",2,"mladší žáci","55",4,0,1,5,4,"Zwilling Šimon",9]
["2019-11-23","Velká cena Karviné","VC","j","Valošek","Jakub","bez","mladší žáci","38",1,0,2,0,1,"Valošek Jakub",1]
["2019-11-23","Velká cena Karviné","VC","j","Dryšl","Adam",2,"mladší žáci","46",3,0,1,5,3,"Dryšl Adam",8]
["2019-11-23","Velká cena Karviné","VC","j","Čech","Jiří",2,"starší žáci","60",3,0,1,5,3,"Čech Jiří",8]
["2019-11-23","Velká cena Karviné","VC","j","Křenek","Jakub","bez","starší žáci","60",0,0,3,0,0,"Křenek Jakub",0]
["2019-11-23","Velká cena Karviné","VC","j","Huvar","Jakub",1,"starší žáci","50",4,0,0,6,4,"Huvar Jakub",10]
["2019-11-23","Velká cena Karviné","VC","j","Caletka","Petr",1,"starší žáci","55",4,0,0,6,4,"Caletka Petr",10]
["2019-11-23","Velká cena Karviné","VC","j","Caletka","Michal",3,"starší žáci","55",2,0,1,3,2,"Caletka Michal",5]
["2019-11-23","Velká cena Karviné","VC","j","Močkořová","Adéla",2,"starší žákyně","+63",0,0,2,5,0,"Močkořová Adéla",5]
["2019-11-23","Velká cena Karviné","VC","j","Volná","Tereza",3,"starší žákyně","52",1,0,2,3,1,"Volná Tereza",4]
["2019-11-15","MT Gyor","MT","j","Meixner","Tomáš","bez","dorostenci","55",0,0,1,0,0,"Meixner Tomáš",0]
["2019-11-24","MT Olešnica","MT","j","Martínková","Adéla","bez","juniorky","78",0,0,2,0,0,"Martínková Adéla",0]
["2019-11-02","MČR dorostenců a dorostenek","MCR","j","Meixner","Tomáš",2,"dorostenci","55",2,0,1,15,2,"Meixner Tomáš",17]
["2019-11-02","MČR dorostenců a dorostenek","MCR","j","Kunc","Matěj","bez","dorostenci","55",0,0,2,0,0,"Kunc Matěj",0]
["2019-11-02","MČR dorostenců a dorostenek","MCR","j","Křížek","Šimon","bez","dorostenci","60",0,0,1,0,0,"Křížek Šimon",0]
["2019-11-02","MČR dorostenců a dorostenek","MCR","j","Malaczynski","Filip","bez","dorostenci","60",0,0,1,0,0,"Malaczynski Filip",0]
["2019-11-02","MČR dorostenců a dorostenek","MCR","j","Lindovský","Jiří",9,"dorostenci","60",1,0,2,0,1,"Lindovský Jiří",1]
["2019-11-02","MČR dorostenců a dorostenek","MCR","j","Kršňák","Filip",9,"dorostenci","66",1,0,2,0,1,"Kršňák Filip",1]
["2019-11-02","MČR dorostenců a dorostenek","MCR","j","Motyka","Dominik","bez","dorostenci","73",0,0,1,0,0,"Motyka Dominik",0]
["2019-11-02","MČR dorostenců a dorostenek","MCR","j","Mojžíšek","Lukáš",2,"dorostenci","90",4,0,1,15,4,"Mojžíšek Lukáš",19]
["2019-11-02","MČR dorostenců a dorostenek","MCR","j","Otáhalová","Magdaléna",9,"dorostenky","52",1,0,2,0,1,"Otáhalová Magdaléna",1]
["2019-11-02","MČR dorostenců a dorostenek","MCR","j","Kokešová","Alexandra","bez","dorostenky","52",0,0,2,0,0,"Kokešová Alexandra",0]
["2019-11-02","MČR dorostenců a dorostenek","MCR","j","Václavková","Tereza",7,"dorostenky","57",2,0,2,5,2,"Václavková Tereza",7]
["2019-11-02","MČR dorostenců a dorostenek","MCR","j","Kuželová","Dominika",5,"dorostenky","63",3,0,2,7,3,"Kuželová Dominika",10]
["2019-11-02","MČR dorostenců a dorostenek","MCR","j","Čerchlová","Markéta",2,"dorostenky","+70",2,0,1,15,2,"Čerchlová Markéta",17]
["2019-11-30","Memoriál Edwarda faciejewa","MVC","j","To","Vojtěch",2,"mláďata","25",4,0,1,5,4,"To Vojtěch",9]
["2019-11-30","Memoriál Edwarda faciejewa","MVC","j","Bechný","Adam",5,"mláďata","30",4,0,2,0,4,"Bechný Adam",4]
["2019-11-30","Memoriál Edwarda faciejewa","MVC","j","Bystrianský","Jan","bez","mláďata","30",0,0,1,0,0,"Bystrianský Jan",0]
["2019-11-30","Memoriál Edwarda faciejewa","MVC","j","Buroň","Petr","bez","mláďata","30",1,0,2,0,1,"Buroň Petr",1]
["2019-11-30","Memoriál Edwarda faciejewa","MVC","j","Přichystal","Leon","bez","mláďata","33",1,0,2,0,1,"Přichystal Leon",1]
["2019-11-30","Memoriál Edwarda faciejewa","MVC","j","Ciora","Jakub",5,"mláďata","36",2,0,2,0,2,"Ciora Jakub",2]
["2019-11-30","Memoriál Edwarda faciejewa","MVC","j","Kuluris","Manolis",7,"mláďata","36",2,0,2,0,2,"Kuluris Manolis",2]
["2019-11-30","Memoriál Edwarda faciejewa","MVC","j","Malík","Jakub","bez","mláďata","36",1,0,2,0,1,"Malík Jakub",1]
["2019-11-30","Memoriál Edwarda faciejewa","MVC","j","Nytra","Sebastián","bez","mláďata","39",0,0,2,0,0,"Nytra Sebastián",0]
["2019-11-30","Memoriál Edwarda faciejewa","MVC","j","Stark","Vojtěch",3,"mláďata","51",2,0,2,3,2,"Stark Vojtěch",5]
["2019-11-30","Memoriál Edwarda faciejewa","MVC","j","Škoda","Melichar",1,"mláďata","+51",2,0,0,6,2,"Škoda Melichar",8]
["2019-11-30","Memoriál Edwarda faciejewa","MVC","j","Foldynová","Mariana","bez","mláďata","25",0,0,2,0,0,"Foldynová Mariana",0]
["2019-11-23","Dorostenecká liga - 4. kolo Liberec","DL","d","Mojžíšek","Lukáš",6,"dorostenci","90",1,0,4,5,2,"Mojžíšek Lukáš",7]
["2019-11-23","Dorostenecká liga - 4. kolo Liberec","DL","d","Meixner","Tomáš",6,"dorostenci","55",3,0,1,5,6,"Meixner Tomáš",11]
["2019-11-23","Dorostenecká liga - 4. kolo Liberec","DL","d","Čebík","Filip",6,"dorostenci","50",4,0,1,5,8,"Čebík Filip",13]
["2019-11-23","Dorostenecká liga - 4. kolo Liberec","DL","d","Pavlica","Lukáš",6,"dorostenci","90",1,0,4,5,2,"Pavlica Lukáš",7]
["2019-11-23","Dorostenecká liga - 4. kolo Liberec","DL","d","Malaczynski","Filip",6,"dorostenci","60",0,0,3,5,0,"Malaczynski Filip",5]
["2019-11-23","Dorostenecká liga - 4. kolo Liberec","DL","d","Lindovský","Jiří",6,"dorostenci","66",1,0,2,5,2,"Lindovský Jiří",7]
["2019-11-23","Dorostenecká liga - 4. kolo Liberec","DL","d","Křížek","Šimon",6,"dorostenci","60",1,0,2,5,2,"Křížek Šimon",7]
["2019-11-23","Dorostenecká liga - 4. kolo Liberec","DL","d","Kršňák","Filip",6,"dorostenci","66",0,0,2,5,0,"Kršňák Filip",5]
["2019-11-23","Dorostenecká liga - 4. kolo Liberec","DL","d","Fulneček","Šimon",6,"dorostenci","+73",0,0,2,5,0,"Fulneček Šimon",5]
["2019-11-16","Memoriál Saši Jurečky ","VC","j","Baudiš","Michal",1,"mladší žáci","60",2,0,0,6,2,"Baudiš Michal",8]
["2019-11-16","Memoriál Saši Jurečky ","VC","j","Zwilling","Šimon",3,"mladší žáci","55",3,0,1,3,3,"Zwilling Šimon",6]
["2019-11-16","Memoriál Saši Jurečky ","VC","j","Savelyev","Sam","bez","mladší žáci","38",1,0,2,0,1,"Savelyev Sam",1]
["2019-11-16","Memoriál Saši Jurečky ","VC","j","Vlk","František","bez","mladší žáci","55",2,0,1,0,2,"Vlk František",2]
["2019-11-16","Memoriál Saši Jurečky ","VC","j","Románek","Jakub","bez","mladší žáci","55",0,0,2,0,0,"Románek Jakub",0]
["2019-11-16","Memoriál Saši Jurečky ","VC","j","Salinger","David","bez","mladší žáci","46",1,0,3,{"$f":"IF(ISNA(VLOOKUP(C905&G905,$V$3:$W$95,2,FALSE)),0,VLOOKUP(C905&G905,$V$3:$W$95,2,FALSE))","v":0},{"$f":"IF(D905=\"d\",SUM(J905*2,K905),J905)","v":1},{"$f":"E905&\" \"&F905","v":"Salinger David"},{"$f":"SUM(M905,N905)","v":1}]
["2019-11-16","Memoriál Saši Jurečky ","VC","j","Plaček","Viktor",3,"mladší žáci","46",2,0,1,3,2,"Plaček Viktor",5]
["2019-12-08","Pohár starosty Dobré","VC","j","Bechný","Adam",2,"mláďata","30",3,0,1,5,3,"Bechný Adam",8]
["2019-12-08","Pohár starosty Dobré","VC","j","Bravanský","Marek","bez","mláďata","40",0,0,2,0,0,"Bravanský Marek",0]
["2019-12-08","Pohár starosty Dobré","VC","j","Kuluris","Manolis",3,"mláďata","36",3,0,1,3,3,"Kuluris Manolis",6]
["2019-12-08","Pohár starosty Dobré","VC","j","Ciora","Jakub","bez","mláďata","36",1,0,2,0,1,"Ciora Jakub",1]
["2019-12-08","Pohár starosty Dobré","VC","j","Boček","Petr",4,"mláďata","27",0,0,3,0,0,"Boček Petr",0]
["2019-12-08","Pohár starosty Dobré","VC","j","Valošek","Jakub",3,"mladší žáci","38",2,0,1,3,2,"Valošek Jakub",5]
["2019-12-08","Pohár starosty Dobré","VC","j","Zwilling","Šimon",3,"mladší žáci","55",2,0,1,3,2,"Zwilling Šimon",5]
["2019-12-08","Pohár starosty Dobré","VC","j","Dryšl","Adam",2,"mladší žáci","50",2,0,1,5,2,"Dryšl Adam",7]
["2019-12-08","Pohár starosty Dobré","VC","j","Mařec","Tomáš","bez","mladší žáci","38",0,0,2,0,0,"Mařec Tomáš",0]
["2019-12-08","Pohár starosty Dobré","VC","j","Baudiš","Michal",1,"mladší žáci","60",3,0,0,{"$f":"IF(ISNA(VLOOKUP(C916&G916,$V$3:$W$95,2,FALSE)),0,VLOOKUP(C916&G916,$V$3:$W$95,2,FALSE))","v":6},{"$f":"IF(D916=\"d\",SUM(J916*2,K916),J916)","v":3},{"$f":"E916&\" \"&F916","v":"Baudiš Michal"},{"$f":"SUM(M916,N916)","v":9}]
["2019-12-08","Pohár starosty Dobré","VC","j","Vlk","František",1,"mladší žáci","55",3,0,1,6,3,"Vlk František",9]
["2019-12-08","Pohár starosty Dobré","VC","j","Kielbasová","Tereza",4,"starší žákyně","57",0,0,3,0,0,"Kielbasová Tereza",0]
["2019-12-08","Pohár starosty Dobré","VC","j","Volná","Tereza",2,"starší žákyně","52",0,0,2,5,0,"Volná Tereza",5]
["2019-12-08","Pohár starosty Dobré","VC","j","Berka","Daniel","bez","mláďata","33",1,0,2,0,1,"Berka Daniel",1]
["2019-12-08","Pohár starosty Dobré","VC","j","Bystrianský","Jan","bez","mláďata","30",1,0,2,0,1,"Bystrianský Jan",1]
["2019-12-08","Pohár starosty Dobré","VC","j","Nuhlíček","Michal","bez","mláďata","33",1,0,2,0,1,"Nuhlíček Michal",1]
["2019-12-08","Pohár starosty Dobré","VC","j","Nytra","Sebastián",5,"mláďata","40",2,0,2,0,2,"Nytra Sebastián",2]
["2019-12-08","Pohár starosty Dobré","VC","j","Musial","Šimon","bez","mláďata","33",0,0,1,0,0,"Musial Šimon",0]
["2019-12-08","Pohár starosty Dobré","VC","j","Kret","Matyáš",2,"mláďata","27",1,0,2,5,1,"Kret Matyáš",6]
["2019-12-08","Pohár starosty Dobré","VC","j","Hon","Sebastián","bez","mláďata","40",0,0,2,0,0,"Hon Sebastián",0]
["2019-12-08","Pohár starosty Dobré","VC","j","Nuhlíček","Jakub",5,"mladší žáci","38",2,0,2,0,2,"Nuhlíček Jakub",2]
["2019-12-08","Pohár starosty Dobré","VC","j","Stark","Vojtěch",1,"mláďata","52",4,0,0,6,4,"Stark Vojtěch",10]
["2019-12-08","Pohár starosty Dobré","VC","j","Šotola","Kryštof",3,"mladší žáci","60",1,0,2,3,1,"Šotola Kryštof",4]
["2019-12-08","Pohár starosty Dobré","VC","j","Murin","Jan",3,"mladší žáci","46",2,0,2,3,2,"Murin Jan",5]
["2019-12-08","Pohár starosty Dobré","VC","j","Kobiernicki","Marek","bez","starší žáci","60",0,0,2,0,0,"Kobiernicki Marek",0]
["2019-12-08","Pohár starosty Dobré","VC","j","Baron","Daniel","bez","mláďata","48",0,0,3,0,0,"Baron Daniel",0]
["2019-12-08","Pohár starosty Dobré","VC","j","Škoda","Melichar",2,"mláďata","+55",3,0,1,5,3,"Škoda Melichar",8]
["2019-12-08","Pohár starosty Dobré","VC","j","Kanclíř","Šimon",3,"mladší žáci","42",3,0,1,3,3,"Kanclíř Šimon",6]
["2019-12-08","Pohár starosty Dobré","VC","j","To","Adam","bez","mladší žáci","38",0,0,2,0,0,"To Adam",0]
["2019-12-08","Pohár starosty Dobré","VC","j","Caletka","Petr",1,"starší žáci","55",5,0,0,6,5,"Caletka Petr",11]
["2019-12-08","Pohár starosty Dobré","VC","j","Caletka","Michal",2,"starší žáci","55",3,0,2,5,3,"Caletka Michal",8]
["2019-12-08","Pohár starosty Dobré","VC","j","Čech","Jiří",3,"starší žáci","60",2,0,1,3,2,"Čech Jiří",5]
["2019-12-08","Pohár starosty Dobré","VC","j","Močkořová","Adéla",2,"starší žákyně","+63",0,0,2,5,0,"Močkořová Adéla",5]
["2019-09-28","Mezinárodní mistrovství ČR","MT","j","Černota","Jiří",1,"veteráni","81",2,0,0,10,2,"Černota Jiří",12]
["2019-09-28","Mezinárodní mistrovství ČR","MT","j","Moravec","Vlastimil",2,"veteráni","73",1,0,1,7,1,"Moravec Vlastimil",8]
["2019-09-28","Mezinárodní mistrovství ČR","MT","j","Morav","Dominik",3,"veteráni","90",2,0,1,5,2,"Morav Dominik",7]
[null,null,null,null,null,null,null,null,null,null,null,null,0,0," ",0]
[null,null,null,null,null,null,null,null,null,null,null,null,0,0," ",0]
[null,null,null,null,null,null,null,null,null,null,null,null,0,0," ",0]
[null,null,null,null,null,null,null,null,null,null,null,null,0,0," ",0]
[null,null,null,null,null,null,null,null,null,null,null,null,0,0," ",0]
[null,null,null,null,null,null,null,null,null,null,null,null,0,0," ",0]
[null,null,null,null,null,null,null,null,null,null,null,null,0,0," ",0]
[null,null,null,null,null,null,null,null,null,null,null,null,0,0," ",0]
[null,null,null,null,null,null,null,null,null,null,null,null,0,0," ",0]
[null,null,null,null,null,null,null,null,null,null,null,null,0,0," ",0]
[null,null,null,null,null,null,null,null,null,null,null,null,0,0," ",0]
[null,null,null,null,null,null,null,null,null,null,null,null,0,0," ",0]
[null,null,null,null,null,null,null,null,null,null,null,null,0,0," ",0]
[null,null,null,null,null,null,null,null,null,null,null,null,0,0," ",0]
[null,null,null,null,null,null,null,null,null,null,null,null,0,0," ",0]
[null,null,null,null,null,null,null,null,null,null,null,null,0,0," ",0]
[null,null,null,null,null,null,null,null,null,null,null,null,0,0," ",0]
[null,null,null,null,null,null,null,null,null,null,null,null,0,0," ",0]
[null,null,null,null,null,null,null,null,null,null,null,null,0,0," ",0]
[null,null,null,null,null,null,null,null,null,null,null,null,{"$f":"IF(ISNA(VLOOKUP(C962&G962,$V$3:$W$95,2,FALSE)),0,VLOOKUP(C962&G962,$V$3:$W$95,2,FALSE))","v":0},0,{"$f":"E962&\" \"&F962","v":" "},0]
[null,null,null,null,null,null,null,null,null,null,null,null,0,{"$f":"IF(D963=\"d\",SUM(J963*2,K963),J963)","v":0}," ",{"$f":"SUM(M963,N963)","v":0}]
[null,null,null,null,null,null,null,null,null,null,null,null,0,0," ",0]
[null,null,null,null,null,null,null,null,null,null,null,null,0,0," ",0]
[null,null,null,null,null,null,null,null,null,null,null,null,0,0," ",0]
[null,null,null,null,null,null,null,null,null,null,null,null,0,0," ",0]
[null,null,null,null,null,null,null,null,null,null,null,null,0,0," ",0]
[null,null,null,null,null,null,null,null,null,null,null,null,0,0," ",0]
[null,null,null,null,null,null,null,null,null,null,null,null,0,0," ",0]
[null,null,null,null,null,null,null,null,null,null,null,null,0,0," ",0]
[null,null,null,null,null,null,null,null,null,null,null,null,0,0," ",0]
[null,null,null,null,null,null,null,null,null,null,null,null,0,0," ",0]
[null,null,null,null,null,null,null,null,null,null,null,null,0,0," ",0]
[null,null,null,null,null,null,null,null,null,null,null,null,0,0," ",0]
[null,null,null,null,null,null,null,null,null,null,null,null,0,0," ",0]
[null,null,null,null,null,null,null,null,null,null,null,null,0,0," ",0]
[null,null,null,null,null,null,null,null,null,null,null,null,0,0," ",0]
[null,null,null,null,null,null,null,null,null,null,null,null,0,0," ",0]
[null,null,null,null,null,null,null,null,null,null,null,null,0,0," ",0]
[null,null,null,null,null,null,null,null,null,null,null,null,0,0," ",0]
[null,null,null,null,null,null,null,null,null,null,null,null,0,0," ",0]
[null,null,null,null,null,null,null,null,null,null,null,null,0,0," ",0]
[null,null,null,null,null,null,null,"mláďata",null,null,null,null,0,0," ",0]
[null,null,null,null,null,null,null,"mladší žákyně",null,null,null,null,0,0," ",0]
[null,null,null,null,null,null,null,"mladší žáci",null,null,null,null,0,0," ",0]
[null,null,null,null,null,null,null,"starší žákyně",null,null,null,null,0,0," ",0]
[null,null,null,null,null,null,null,"starší žáci",null,null,null,null,0,0," ",0]
[null,null,null,null,null,null,null,"dorostenky",null,null,null,null,0,0," ",0]
[null,null,null,null,null,null,null,"dorostenci",null,null,null,null,0,0," ",0]
[null,null,null,null,null,null,null,"juniorky",null,null,null,null,0,0," ",0]
[null,null,null,null,null,null,null,"junioři",null,null,null,null,0,0," ",0]
[null,null,null,null,null,null,null,"ženy",null,null,null,null,0,0," ",0]
[null,null,null,null,null,null,null,"muži",null,null,null,null,0,0," ",0]
[null,null,null,null,null,null,null,"veteráni",null,null,null,null,0,0," ",0]
[null,null,null,null,null,null,null,"kata",null,null,null,null,0,0," ",0]

{"sheet":"knt_tab","index":2,"n_rows":150,"n_cols":41,"rows_kept":150,"cut":false,"hidden":true,"merged":[]}
["kategorie","(Vše)",null,"kategorie","mláďata",null,"kategorie","mladší žáci",null,"kategorie","mladší žákyně",null,"kategorie","starší žáci",null,"kategorie","starší žákyně",null,"kategorie","dorostenci",null,"kategorie","dorostenky",null,"kategorie","junioři",null,"kategorie","juniorky",null,"kategorie","muži",null,"kategorie","ženy",null,"kategorie","veteráni",null,"kategorie","kata"]
[]
["Součet z body",null,null,"Součet z body",null,null,"Součet z body",null,null,"Součet z body",null,null,"Součet z body",null,null,"Součet z body",null,null,"Součet z body",null,null,"Součet z body",null,null,"Součet z body",null,null,"Součet z body",null,null,"Součet z body",null,null,"Součet z body",null,null,"Součet z body",null,null,"Součet z body"]
["zavodnik","Celkem",null,"zavodnik","Celkem",null,"zavodnik","Celkem",null,"zavodnik","Celkem",null,"zavodnik","Celkem",null,"zavodnik","Celkem",null,"zavodnik","Celkem",null,"zavodnik","Celkem",null,"zavodnik","Celkem",null,"zavodnik","Celkem",null,"zavodnik","Celkem",null,"zavodnik","Celkem",null,"zavodnik","Celkem",null,"zavodnik","Celkem"]
["Kuželová Dominika",158,null,"Huvar Matyáš",106,null,"Zwilling Šimon",84,null,"Kocmanová Lucie",48,null,"Vontor Tomáš",121,null,"Kuželová Dominika",123,null,"Meixner Tomáš",133,null,"Václavková Tereza",131,null,"Silvestr Matěj",10,null,"Polášková Kristýna",96,null,"Svoboda Jiří",80,null,"Martínková Adéla",53,null,"Černota Jiří",24,null," ",0]
["Čerchlová Markéta",152,null,"Škoda Melichar",80,null,"Baudiš Michal",69,null,"Kaszperová Kristýna",44,null,"Čebík Filip",79,null,"Rapčanová Silvie",109,null,"Mojžíšek Lukáš",91,null,"Čerchlová Markéta",118,null,"Pavlica Tomáš",10,null,"Martínková Adéla",37,null,"Šimek Daniel",77,null,"Polášková Kristýna",48,null,"Moravec Vlastimil",8]
["Polášková Kristýna",144,null,"Bechný Adam",63,null,"Pospíšil Jan",62,null,"Bukovjanová Charlotte",39,null,"Huvar Jakub",76,null,"Rapčanová Alice",80,null,"Motyka Dominik",63,null,"Kokešová Alexandra",54,null,"Blažej Jan",5,null,"Čerchlová Markéta",22,null,"Silvestr Matěj",72,null,"Čerchlová Markéta",12,null,"Morav Dominik",7]
["Meixner Tomáš",133,null,"Ciora Jakub",61,null,"Vlk František",47,null,"Skalková Elen",0,null,"Fulneček Šimon",60,null,"Vavřínová Pavla",36,null,"Malaczynski Filip",51,null,"Kuželová Dominika",35,null,"Mojžíšek Lukáš",5,null," ",0,null,"Pustějovský Tomáš",44,null," ",0,null," ",0]
["Václavková Tereza",131,null,"Stark Vojtěch",52,null,"Valošek Jakub",39,null," ",0,null,"Caletka Petr",53,null,"Volná Tereza",12,null,"Lindovský Jiří",49,null,"Otáhalová Magdaléna",24,null,"Pustějovský Tomáš",4,null,null,null,null,"Kohn Tomáš",28]
["Čebík Filip",124,null,"To Vojtěch",43,null,"Schwarz Šimon",39,null,null,null,null,"Tomek David",43,null,"Bukovjanová Charlotte",11,null,"Křížek Šimon",47,null,"Benáčková Denisa",1,null,"Šimek Daniel",3,null,null,null,null,"Pavlica Tomáš",26]
["Vontor Tomáš",121,null,"Kuluris Manolis",39,null,"Plaček Viktor",39,null,null,null,null,"Čerchla Michal",35,null,"Močkořová Adéla",10,null,"Čebík Filip",45,null," ",0,null," ",0,null,null,null,null,"Raška Michael",25]
["Mojžíšek Lukáš",115,null,"Kret Matyáš",31,null,"Seibert Marian",35,null,null,null,null,"Meixner Michal",34,null,"Pupíková Adéla",5,null,"Kršňák Filip",37,null,null,null,null,null,null,null,null,null,null,"Pravda Jan",23]
["Rapčanová Silvie",109,null,"Přichystal Leon",30,null,"Kanclíř Šimon",35,null,null,null,null,"Čech Jiří",25,null,"Kosťová Barbora",4,null,"Fráňa Patrik",26,null,null,null,null,null,null,null,null,null,null,"Mojžíšek Lukáš",19]
["Huvar Matyáš",106,null,"Nuhlíček Michal",29,null,"Pavlík Lukáš",29,null,null,null,null,"Caletka Michal",24,null,"Kielbasová Tereza",0,null,"Bulka Vojtěch",25,null,null,null,null,null,null,null,null,null,null,"Šeděnka Richard",18]
["Martínková Adéla",90,null,"Nytra Sebastián",11,null,"Galamboš Kristián",27,null,null,null,null,"Kolář Vojtěch",11,null," ",0,null,"Kunc Matěj",24,null,null,null,null,null,null,null,null,null,null,"Král Jakub",17]
["Zwilling Šimon",84,null,"Jančata Deniel",10,null,"Kulhánek Adam",25,null,null,null,null,"Neckář Matěj",6,null,null,null,null,"Pavlica Lukáš",23,null,null,null,null,null,null,null,null,null,null,"Kohn Pavel",16]
["Silvestr Matěj",82,null,"Vaněk David",10,null,"Malinovský Jiří",22,null,null,null,null,"Kuzník Tadeáš",6,null,null,null,null,"Kolář Daniel",10,null,null,null,null,null,null,null,null,null,null,"Šmatelka Ondřej",16]
["Šimek Daniel",80,null,"Šelong Tadeáš",8,null,"Šimkovič Ondřej",20,null,null,null,null,"Fojtík Daniel",5,null,null,null,null,"Fulneček Šimon",6,null,null,null,null,null,null,null,null,null,null,"Gřešek Vít",8]
["Rapčanová Alice",80,null,"Kožušník Václav",7,null,"Dryšl Adam",18,null,null,null,null,"Kožušník Vojtěch",4,null,null,null,null,"Turčínek Tomáš",5,null,null,null,null,null,null,null,null,null,null,"Chlopčík Ondřej",0]
["Škoda Melichar",80,null,"Baron Daniel",6,null,"Salinger David",17,null,null,null,null,"Krischke Fabien",4,null,null,null,null,"Pustka Robin",1,null,null,null,null,null,null,null,null,null,null," ",0]
["Svoboda Jiří",80,null,"Macháček Tomáš",4,null,"Mařec Tomáš",14,null,null,null,null,"Bernacký Mikuláš",4,null,null,null,null," ",0,null,null,null,null,null,null,null,null,null,null,"Blažej Jan",0]
["Huvar Jakub",76,null,"Krčmář Michal",4,null,"Turek Jakub",13,null,null,null,null,"Buranyč Filip",4,null,null,null,null,"Čerchla Michal",0]
["Baudiš Michal",69,null,"Karbula Ondřej",2,null,"Bartošic Sebastian",10,null,null,null,null,"Válek Matěj",1,null,null,null,null,"Tycar Štěpán",0]
["Fulneček Šimon",66,null,"Stránský David",2,null,"Štverka Matyáš",9,null,null,null,null,"Lavrukhin Dobrynia",1,null,null,null,null,"Hotárek Tomáš",0]
["Bechný Adam",63,null,"Staněk Patrik",1,null,"Fojtík Jiří Václav",8,null,null,null,null,"Neuwirt Petr",0,null,null,null,null,"Matýsek Jan",0]
["Motyka Dominik",63,null,"Bystrianský Jan",1,null,"Nuhlíček Jakub",8,null,null,null,null,"Žáček Radim",0]
["Pospíšil Jan",62,null,"Malík Jakub",1,null,"To Adam",7,null,null,null,null,"Hort Maximilián",0]
["Ciora Jakub",61,null,"Buroň Petr",1,null,"Beníček Adam",7,null,null,null,null,"Kobiernicki Marek",0]
["Kokešová Alexandra",54,null,"Hon Sebastián",1,null,"Murin Jan",7,null,null,null,null," ",0]
["Caletka Petr",53,null,"Berka Daniel",1,null,"Románek Jakub",5,null,null,null,null,"Křenek Jakub",0]
["Stark Vojtěch",52,null,"Gutiqi Ryan",1,null,"Šotola Kryštof",4]
["Malaczynski Filip",51,null,"Musial Šimon",0,null,"Ryška Filip",1]
["Bukovjanová Charlotte",50,null,"Foldynová Mariana",0,null,"Savelyev Sam",1]
["Lindovský Jiří",49,null,"Pizzato Alessandro",0,null," ",0]
["Pustějovský Tomáš",48,null,"Bravanský Marek",0,null,"Buček Dan",0]
["Kocmanová Lucie",48,null,"Boček Petr",0,null,"Kolář Václav",0]
["Křížek Šimon",47,null,"Litvik Šimon",0,null,"Bechný Martin",0]
["Vlk František",47,null," ",0]
["Kaszperová Kristýna",44]
["To Vojtěch",43]
["Tomek David",43]
["Kuluris Manolis",39]
["Valošek Jakub",39]
["Plaček Viktor",39]
["Schwarz Šimon",39]
["Kršňák Filip",37]
["Pavlica Tomáš",36]
["Vavřínová Pavla",36]
["Kanclíř Šimon",35]
["Seibert Marian",35]
["Čerchla Michal",35]
["Meixner Michal",34]
["Kret Matyáš",31]
["Přichystal Leon",30]
["Pavlík Lukáš",29]
["Nuhlíček Michal",29]
["Kohn Tomáš",28]
["Galamboš Kristián",27]
["Fráňa Patrik",26]
["Bulka Vojtěch",25]
["Kulhánek Adam",25]
["Raška Michael",25]
["Čech Jiří",25]
["Otáhalová Magdaléna",24]
["Caletka Michal",24]
["Černota Jiří",24]
["Kunc Matěj",24]
["Pravda Jan",23]
["Pavlica Lukáš",23]
["Malinovský Jiří",22]
["Šimkovič Ondřej",20]
["Dryšl Adam",18]
["Šeděnka Richard",18]
["Salinger David",17]
["Král Jakub",17]
["Šmatelka Ondřej",16]
["Kohn Pavel",16]
["Mařec Tomáš",14]
["Turek Jakub",13]
["Volná Tereza",12]
["Nytra Sebastián",11]
["Kolář Vojtěch",11]
["Kolář Daniel",10]
["Jančata Deniel",10]
["Vaněk David",10]
["Močkořová Adéla",10]
["Bartošic Sebastian",10]
["Štverka Matyáš",9]
["Moravec Vlastimil",8]
["Šelong Tadeáš",8]
["Nuhlíček Jakub",8]
["Fojtík Jiří Václav",8]
["Gřešek Vít",8]
["Morav Dominik",7]
["Murin Jan",7]
["Beníček Adam",7]
["To Adam",7]
["Kožušník Václav",7]
["Baron Daniel",6]
["Kuzník Tadeáš",6]
["Neckář Matěj",6]
["Turčínek Tomáš",5]
["Blažej Jan",5]
["Pupíková Adéla",5]
["Románek Jakub",5]
["Fojtík Daniel",5]
["Kosťová Barbora",4]
["Kožušník Vojtěch",4]
["Krčmář Michal",4]
["Buranyč Filip",4]
["Šotola Kryštof",4]
["Bernacký Mikuláš",4]
["Krischke Fabien",4]
["Macháček Tomáš",4]
["Stránský David",2]
["Karbula Ondřej",2]
["Berka Daniel",1]
["Benáčková Denisa",1]
["Lavrukhin Dobrynia",1]
["Gutiqi Ryan",1]
["Hon Sebastián",1]
["Pustka Robin",1]
["Staněk Patrik",1]
["Malík Jakub",1]
["Bystrianský Jan",1]
["Buroň Petr",1]
["Savelyev Sam",1]
["Ryška Filip",1]
["Válek Matěj",1]
["Litvik Šimon",0]
["Kolář Václav",0]
["Pizzato Alessandro",0]
["Boček Petr",0]
["Neuwirt Petr",0]
["Křenek Jakub",0]
["Foldynová Mariana",0]
[" ",0]
["Musial Šimon",0]
["Bechný Martin",0]
["Skalková Elen",0]
["Hort Maximilián",0]
["Žáček Radim",0]
["Kobiernicki Marek",0]
["Tycar Štěpán",0]
["Hotárek Tomáš",0]
["Chlopčík Ondřej",0]
["Buček Dan",0]
["Bravanský Marek",0]
["Kielbasová Tereza",0]
["Matýsek Jan",0]

{"sheet":"ranking","index":3,"n_rows":63,"n_cols":23,"rows_kept":63,"cut":false,"hidden":false,"merged":[[0,0,0,22]]}
["Pořadí úspěšnosti závodníků v r. 2019"]
["celkem oddíl",null,null,null,"celkem oddíl - pokračování",null,null,null,"celkem oddíl - pokračování",null,null,null,"kata",null,null,null,"starší žáci",null,null,null,"mladší žáci - pokračování"]
["Pořadí","Příjmení","body",null,{"$f":"IF(F3=\"\",\"\",IF(G3=C63,A63,61))","v":60},{"$f":"IF(ISERR(GETPIVOTDATA(\"body\",knt_tab!$A$3,\"zavodnik\",knt_tab!A65)),\"\",IF(GETPIVOTDATA(\"body\",knt_tab!$A$3,\"zavodnik\",knt_tab!A65)=0,\"\",knt_tab!A65))","v":"Caletka Michal"},{"$f":"IF(F3=\"\",\"\",GETPIVOTDATA(\"body\",knt_tab!$A$3,\"zavodnik\",F3))","v":24},null,{"$f":"IF(J3=\"\",\"\",IF(K3=G62,E62,ROW(I3)-ROW($I$3)+122))","v":113},{"$f":"IF(ISERR(GETPIVOTDATA(\"body\",knt_tab!$A$3,\"zavodnik\",knt_tab!A126)),\"\",IF(GETPIVOTDATA(\"body\",knt_tab!$A$3,\"zavodnik\",knt_tab!A126)=0,\"\",knt_tab!A126))","v":"Buroň Petr"},{"$f":"IF(J3=\"\",\"\",GETPIVOTDATA(\"body\",knt_tab!$A$3,\"zavodnik\",J3))","v":1},null,"Pořadí","Příjmení","body",null,"Pořadí","Příjmení","body",null,{"$f":"IF(V3=\"\",\"\",IF(W3=S63,Q63,ROW(U3)-ROW($U$2)+17))","v":18},{"$f":"IF(ISERR(GETPIVOTDATA(\"body\",knt_tab!$G$3,\"zavodnik\",knt_tab!G22)),\"\",IF(GETPIVOTDATA(\"body\",knt_tab!$G$3,\"zavodnik\",knt_tab!G22)=0,\"\",knt_tab!G22))","v":"Turek Jakub"},{"$f":"IF(V3=\"\",\"\",GETPIVOTDATA(\"body\",knt_tab!$G$3,\"zavodnik\",V3))","v":13}]
[1,{"$f":"IF(ISERR(GETPIVOTDATA(\"body\",knt_tab!$A$3,\"zavodnik\",knt_tab!A5)),\"\",IF(GETPIVOTDATA(\"body\",knt_tab!$A$3,\"zavodnik\",knt_tab!A5)=0,\"\",knt_tab!A5))","v":"Kuželová Dominika"},{"$f":"IF(B4=\"\",\"\",GETPIVOTDATA(\"body\",knt_tab!$A$3,\"zavodnik\",B4))","v":158},null,{"$f":"IF(F4=\"\",\"\",IF(G4=G3,E3,ROW(E4)-ROW($E$3)+61))","v":60},{"$f":"IF(ISERR(GETPIVOTDATA(\"body\",knt_tab!$A$3,\"zavodnik\",knt_tab!A66)),\"\",IF(GETPIVOTDATA(\"body\",knt_tab!$A$3,\"zavodnik\",knt_tab!A66)=0,\"\",knt_tab!A66))","v":"Černota Jiří"},{"$f":"IF(F4=\"\",\"\",GETPIVOTDATA(\"body\",knt_tab!$A$3,\"zavodnik\",F4))","v":24},null,{"$f":"IF(J4=\"\",\"\",IF(K4=K3,I3,ROW(I4)-ROW($I$3)+122))","v":113},{"$f":"IF(ISERR(GETPIVOTDATA(\"body\",knt_tab!$A$3,\"zavodnik\",knt_tab!A127)),\"\",IF(GETPIVOTDATA(\"body\",knt_tab!$A$3,\"zavodnik\",knt_tab!A127)=0,\"\",knt_tab!A127))","v":"Savelyev Sam"},{"$f":"IF(J4=\"\",\"\",GETPIVOTDATA(\"body\",knt_tab!$A$3,\"zavodnik\",J4))","v":1},null,1,{"$f":"IF(ISERR(GETPIVOTDATA(\"body\",knt_tab!$AN$3,\"zavodnik\",knt_tab!AN5)),\"\",IF(GETPIVOTDATA(\"body\",knt_tab!$AN$3,\"zavodnik\",knt_tab!AN5)=0,\"\",knt_tab!AN5))","v":""},{"$f":"IF(N4=\"\",\"\",GETPIVOTDATA(\"body\",knt_tab!$AN$3,\"zavodnik\",N4))","v":""},null,1,{"$f":"IF(ISERR(GETPIVOTDATA(\"body\",knt_tab!$M$3,\"zavodnik\",knt_tab!M5)),\"\",IF(GETPIVOTDATA(\"body\",knt_tab!$M$3,\"zavodnik\",knt_tab!M5)=0,\"\",knt_tab!M5))","v":"Vontor Tomáš"},{"$f":"IF(R4=\"\",\"\",GETPIVOTDATA(\"body\",knt_tab!$M$3,\"zavodnik\",R4))","v":121},null,{"$f":"IF(V4=\"\",\"\",IF(W4=W3,U3,ROW(U4)-ROW($U$2)+17))","v":19},{"$f":"IF(ISERR(GETPIVOTDATA(\"body\",knt_tab!$G$3,\"zavodnik\",knt_tab!G23)),\"\",IF(GETPIVOTDATA(\"body\",knt_tab!$G$3,\"zavodnik\",knt_tab!G23)=0,\"\",knt_tab!G23))","v":"Bartošic Sebastian"},{"$f":"IF(V4=\"\",\"\",GETPIVOTDATA(\"body\",knt_tab!$G$3,\"zavodnik\",V4))","v":10}]
[{"$f":"IF(B5=\"\",\"\",IF(C5=C4,A4,ROW(A5)-ROW($A$3)))","v":2},{"$f":"IF(ISERR(GETPIVOTDATA(\"body\",knt_tab!$A$3,\"zavodnik\",knt_tab!A6)),\"\",IF(GETPIVOTDATA(\"body\",knt_tab!$A$3,\"zavodnik\",knt_tab!A6)=0,\"\",knt_tab!A6))","v":"Čerchlová Markéta"},{"$f":"IF(B5=\"\",\"\",GETPIVOTDATA(\"body\",knt_tab!$A$3,\"zavodnik\",B5))","v":152},null,{"$f":"IF(F5=\"\",\"\",IF(G5=G4,E4,ROW(E5)-ROW($E$3)+61))","v":60},{"$f":"IF(ISERR(GETPIVOTDATA(\"body\",knt_tab!$A$3,\"zavodnik\",knt_tab!A67)),\"\",IF(GETPIVOTDATA(\"body\",knt_tab!$A$3,\"zavodnik\",knt_tab!A67)=0,\"\",knt_tab!A67))","v":"Kunc Matěj"},{"$f":"IF(F5=\"\",\"\",GETPIVOTDATA(\"body\",knt_tab!$A$3,\"zavodnik\",F5))","v":24},null,{"$f":"IF(J5=\"\",\"\",IF(K5=K4,I4,ROW(I5)-ROW($I$3)+122))","v":113},{"$f":"IF(ISERR(GETPIVOTDATA(\"body\",knt_tab!$A$3,\"zavodnik\",knt_tab!A128)),\"\",IF(GETPIVOTDATA(\"body\",knt_tab!$A$3,\"zavodnik\",knt_tab!A128)=0,\"\",knt_tab!A128))","v":"Ryška Filip"},{"$f":"IF(J5=\"\",\"\",GETPIVOTDATA(\"body\",knt_tab!$A$3,\"zavodnik\",J5))","v":1},null,{"$f":"IF(N5=\"\",\"\",IF(O5=O4,M4,ROW(M5)-ROW($M$3)))","v":""},{"$f":"IF(ISERR(GETPIVOTDATA(\"body\",knt_tab!$AN$3,\"zavodnik\",knt_tab!AN6)),\"\",IF(GETPIVOTDATA(\"body\",knt_tab!$AN$3,\"zavodnik\",knt_tab!AN6)=0,\"\",knt_tab!AN6))","v":""},{"$f":"IF(N5=\"\",\"\",GETPIVOTDATA(\"body\",knt_tab!$AN$3,\"zavodnik\",N5))","v":""},null,{"$f":"IF(R5=\"\",\"\",IF(S5=S4,Q4,ROW(Q5)-ROW($Q$3)))","v":2},{"$f":"IF(ISERR(GETPIVOTDATA(\"body\",knt_tab!$M$3,\"zavodnik\",knt_tab!M6)),\"\",IF(GETPIVOTDATA(\"body\",knt_tab!$M$3,\"zavodnik\",knt_tab!M6)=0,\"\",knt_tab!M6))","v":"Čebík Filip"},{"$f":"IF(R5=\"\",\"\",GETPIVOTDATA(\"body\",knt_tab!$M$3,\"zavodnik\",R5))","v":79},null,20,{"$f":"IF(ISERR(GETPIVOTDATA(\"body\",knt_tab!$G$3,\"zavodnik\",knt_tab!G24)),\"\",IF(GETPIVOTDATA(\"body\",knt_tab!$G$3,\"zavodnik\",knt_tab!G24)=0,\"\",knt_tab!G24))","v":"Štverka Matyáš"},{"$f":"IF(V5=\"\",\"\",GETPIVOTDATA(\"body\",knt_tab!$G$3,\"zavodnik\",V5))","v":9}]
[3,{"$f":"IF(ISERR(GETPIVOTDATA(\"body\",knt_tab!$A$3,\"zavodnik\",knt_tab!A7)),\"\",IF(GETPIVOTDATA(\"body\",knt_tab!$A$3,\"zavodnik\",knt_tab!A7)=0,\"\",knt_tab!A7))","v":"Polášková Kristýna"},{"$f":"IF(B6=\"\",\"\",GETPIVOTDATA(\"body\",knt_tab!$A$3,\"zavodnik\",B6))","v":144},null,64,{"$f":"IF(ISERR(GETPIVOTDATA(\"body\",knt_tab!$A$3,\"zavodnik\",knt_tab!A68)),\"\",IF(GETPIVOTDATA(\"body\",knt_tab!$A$3,\"zavodnik\",knt_tab!A68)=0,\"\",knt_tab!A68))","v":"Pravda Jan"},{"$f":"IF(F6=\"\",\"\",GETPIVOTDATA(\"body\",knt_tab!$A$3,\"zavodnik\",F6))","v":23},null,113,{"$f":"IF(ISERR(GETPIVOTDATA(\"body\",knt_tab!$A$3,\"zavodnik\",knt_tab!A129)),\"\",IF(GETPIVOTDATA(\"body\",knt_tab!$A$3,\"zavodnik\",knt_tab!A129)=0,\"\",knt_tab!A129))","v":"Válek Matěj"},{"$f":"IF(J6=\"\",\"\",GETPIVOTDATA(\"body\",knt_tab!$A$3,\"zavodnik\",J6))","v":1},null,{"$f":"IF(N6=\"\",\"\",IF(O6=O5,M5,ROW(M6)-ROW($M$3)))","v":""},{"$f":"IF(ISERR(GETPIVOTDATA(\"body\",knt_tab!$AN$3,\"zavodnik\",knt_tab!AN7)),\"\",IF(GETPIVOTDATA(\"body\",knt_tab!$AN$3,\"zavodnik\",knt_tab!AN7)=0,\"\",knt_tab!AN7))","v":""},{"$f":"IF(N6=\"\",\"\",GETPIVOTDATA(\"body\",knt_tab!$AN$3,\"zavodnik\",N6))","v":""},null,3,{"$f":"IF(ISERR(GETPIVOTDATA(\"body\",knt_tab!$M$3,\"zavodnik\",knt_tab!M7)),\"\",IF(GETPIVOTDATA(\"body\",knt_tab!$M$3,\"zavodnik\",knt_tab!M7)=0,\"\",knt_tab!M7))","v":"Huvar Jakub"},{"$f":"IF(R6=\"\",\"\",GETPIVOTDATA(\"body\",knt_tab!$M$3,\"zavodnik\",R6))","v":76},null,21,{"$f":"IF(ISERR(GETPIVOTDATA(\"body\",knt_tab!$G$3,\"zavodnik\",knt_tab!G25)),\"\",IF(GETPIVOTDATA(\"body\",knt_tab!$G$3,\"zavodnik\",knt_tab!G25)=0,\"\",knt_tab!G25))","v":"Fojtík Jiří Václav"},{"$f":"IF(V6=\"\",\"\",GETPIVOTDATA(\"body\",knt_tab!$G$3,\"zavodnik\",V6))","v":8}]
[4,{"$f":"IF(ISERR(GETPIVOTDATA(\"body\",knt_tab!$A$3,\"zavodnik\",knt_tab!A8)),\"\",IF(GETPIVOTDATA(\"body\",knt_tab!$A$3,\"zavodnik\",knt_tab!A8)=0,\"\",knt_tab!A8))","v":"Meixner Tomáš"},{"$f":"IF(B7=\"\",\"\",GETPIVOTDATA(\"body\",knt_tab!$A$3,\"zavodnik\",B7))","v":133},null,64,{"$f":"IF(ISERR(GETPIVOTDATA(\"body\",knt_tab!$A$3,\"zavodnik\",knt_tab!A69)),\"\",IF(GETPIVOTDATA(\"body\",knt_tab!$A$3,\"zavodnik\",knt_tab!A69)=0,\"\",knt_tab!A69))","v":"Pavlica Lukáš"},{"$f":"IF(F7=\"\",\"\",GETPIVOTDATA(\"body\",knt_tab!$A$3,\"zavodnik\",F7))","v":23},null,{"$f":"IF(J7=\"\",\"\",IF(K7=K6,I6,ROW(I7)-ROW($I$3)+122))","v":""},{"$f":"IF(ISERR(GETPIVOTDATA(\"body\",knt_tab!$A$3,\"zavodnik\",knt_tab!A130)),\"\",IF(GETPIVOTDATA(\"body\",knt_tab!$A$3,\"zavodnik\",knt_tab!A130)=0,\"\",knt_tab!A130))","v":""},{"$f":"IF(J7=\"\",\"\",GETPIVOTDATA(\"body\",knt_tab!$A$3,\"zavodnik\",J7))","v":""},null,"",{"$f":"IF(ISERR(GETPIVOTDATA(\"body\",knt_tab!$AN$3,\"zavodnik\",knt_tab!AN8)),\"\",IF(GETPIVOTDATA(\"body\",knt_tab!$AN$3,\"zavodnik\",knt_tab!AN8)=0,\"\",knt_tab!AN8))","v":""},{"$f":"IF(N7=\"\",\"\",GETPIVOTDATA(\"body\",knt_tab!$AN$3,\"zavodnik\",N7))","v":""},null,4,{"$f":"IF(ISERR(GETPIVOTDATA(\"body\",knt_tab!$M$3,\"zavodnik\",knt_tab!M8)),\"\",IF(GETPIVOTDATA(\"body\",knt_tab!$M$3,\"zavodnik\",knt_tab!M8)=0,\"\",knt_tab!M8))","v":"Fulneček Šimon"},{"$f":"IF(R7=\"\",\"\",GETPIVOTDATA(\"body\",knt_tab!$M$3,\"zavodnik\",R7))","v":60},null,21,{"$f":"IF(ISERR(GETPIVOTDATA(\"body\",knt_tab!$G$3,\"zavodnik\",knt_tab!G26)),\"\",IF(GETPIVOTDATA(\"body\",knt_tab!$G$3,\"zavodnik\",knt_tab!G26)=0,\"\",knt_tab!G26))","v":"Nuhlíček Jakub"},{"$f":"IF(V7=\"\",\"\",GETPIVOTDATA(\"body\",knt_tab!$G$3,\"zavodnik\",V7))","v":8}]
[5,{"$f":"IF(ISERR(GETPIVOTDATA(\"body\",knt_tab!$A$3,\"zavodnik\",knt_tab!A9)),\"\",IF(GETPIVOTDATA(\"body\",knt_tab!$A$3,\"zavodnik\",knt_tab!A9)=0,\"\",knt_tab!A9))","v":"Václavková Tereza"},{"$f":"IF(B8=\"\",\"\",GETPIVOTDATA(\"body\",knt_tab!$A$3,\"zavodnik\",B8))","v":131},null,66,{"$f":"IF(ISERR(GETPIVOTDATA(\"body\",knt_tab!$A$3,\"zavodnik\",knt_tab!A70)),\"\",IF(GETPIVOTDATA(\"body\",knt_tab!$A$3,\"zavodnik\",knt_tab!A70)=0,\"\",knt_tab!A70))","v":"Malinovský Jiří"},{"$f":"IF(F8=\"\",\"\",GETPIVOTDATA(\"body\",knt_tab!$A$3,\"zavodnik\",F8))","v":22},null,{"$f":"IF(J8=\"\",\"\",IF(K8=K7,I7,ROW(I8)-ROW($I$3)+122))","v":""},{"$f":"IF(ISERR(GETPIVOTDATA(\"body\",knt_tab!$A$3,\"zavodnik\",knt_tab!A131)),\"\",IF(GETPIVOTDATA(\"body\",knt_tab!$A$3,\"zavodnik\",knt_tab!A131)=0,\"\",knt_tab!A131))","v":""},{"$f":"IF(J8=\"\",\"\",GETPIVOTDATA(\"body\",knt_tab!$A$3,\"zavodnik\",J8))","v":""},null,"Junioři",null,null,null,5,{"$f":"IF(ISERR(GETPIVOTDATA(\"body\",knt_tab!$M$3,\"zavodnik\",knt_tab!M9)),\"\",IF(GETPIVOTDATA(\"body\",knt_tab!$M$3,\"zavodnik\",knt_tab!M9)=0,\"\",knt_tab!M9))","v":"Caletka Petr"},{"$f":"IF(R8=\"\",\"\",GETPIVOTDATA(\"body\",knt_tab!$M$3,\"zavodnik\",R8))","v":53},null,23,{"$f":"IF(ISERR(GETPIVOTDATA(\"body\",knt_tab!$G$3,\"zavodnik\",knt_tab!G27)),\"\",IF(GETPIVOTDATA(\"body\",knt_tab!$G$3,\"zavodnik\",knt_tab!G27)=0,\"\",knt_tab!G27))","v":"To Adam"},{"$f":"IF(V8=\"\",\"\",GETPIVOTDATA(\"body\",knt_tab!$G$3,\"zavodnik\",V8))","v":7}]
[6,{"$f":"IF(ISERR(GETPIVOTDATA(\"body\",knt_tab!$A$3,\"zavodnik\",knt_tab!A10)),\"\",IF(GETPIVOTDATA(\"body\",knt_tab!$A$3,\"zavodnik\",knt_tab!A10)=0,\"\",knt_tab!A10))","v":"Čebík Filip"},{"$f":"IF(B9=\"\",\"\",GETPIVOTDATA(\"body\",knt_tab!$A$3,\"zavodnik\",B9))","v":124},null,67,{"$f":"IF(ISERR(GETPIVOTDATA(\"body\",knt_tab!$A$3,\"zavodnik\",knt_tab!A71)),\"\",IF(GETPIVOTDATA(\"body\",knt_tab!$A$3,\"zavodnik\",knt_tab!A71)=0,\"\",knt_tab!A71))","v":"Šimkovič Ondřej"},{"$f":"IF(F9=\"\",\"\",GETPIVOTDATA(\"body\",knt_tab!$A$3,\"zavodnik\",F9))","v":20},null,"",{"$f":"IF(ISERR(GETPIVOTDATA(\"body\",knt_tab!$A$3,\"zavodnik\",knt_tab!A132)),\"\",IF(GETPIVOTDATA(\"body\",knt_tab!$A$3,\"zavodnik\",knt_tab!A132)=0,\"\",knt_tab!A132))","v":""},{"$f":"IF(J9=\"\",\"\",GETPIVOTDATA(\"body\",knt_tab!$A$3,\"zavodnik\",J9))","v":""},null,"Pořadí","Příjmení","body",null,6,{"$f":"IF(ISERR(GETPIVOTDATA(\"body\",knt_tab!$M$3,\"zavodnik\",knt_tab!M10)),\"\",IF(GETPIVOTDATA(\"body\",knt_tab!$M$3,\"zavodnik\",knt_tab!M10)=0,\"\",knt_tab!M10))","v":"Tomek David"},{"$f":"IF(R9=\"\",\"\",GETPIVOTDATA(\"body\",knt_tab!$M$3,\"zavodnik\",R9))","v":43},null,23,{"$f":"IF(ISERR(GETPIVOTDATA(\"body\",knt_tab!$G$3,\"zavodnik\",knt_tab!G28)),\"\",IF(GETPIVOTDATA(\"body\",knt_tab!$G$3,\"zavodnik\",knt_tab!G28)=0,\"\",knt_tab!G28))","v":"Beníček Adam"},{"$f":"IF(V9=\"\",\"\",GETPIVOTDATA(\"body\",knt_tab!$G$3,\"zavodnik\",V9))","v":7}]
[7,{"$f":"IF(ISERR(GETPIVOTDATA(\"body\",knt_tab!$A$3,\"zavodnik\",knt_tab!A11)),\"\",IF(GETPIVOTDATA(\"body\",knt_tab!$A$3,\"zavodnik\",knt_tab!A11)=0,\"\",knt_tab!A11))","v":"Vontor Tomáš"},{"$f":"IF(B10=\"\",\"\",GETPIVOTDATA(\"body\",knt_tab!$A$3,\"zavodnik\",B10))","v":121},null,68,{"$f":"IF(ISERR(GETPIVOTDATA(\"body\",knt_tab!$A$3,\"zavodnik\",knt_tab!A72)),\"\",IF(GETPIVOTDATA(\"body\",knt_tab!$A$3,\"zavodnik\",knt_tab!A72)=0,\"\",knt_tab!A72))","v":"Dryšl Adam"},{"$f":"IF(F10=\"\",\"\",GETPIVOTDATA(\"body\",knt_tab!$A$3,\"zavodnik\",F10))","v":18},null,"",{"$f":"IF(ISERR(GETPIVOTDATA(\"body\",knt_tab!$A$3,\"zavodnik\",knt_tab!A133)),\"\",IF(GETPIVOTDATA(\"body\",knt_tab!$A$3,\"zavodnik\",knt_tab!A133)=0,\"\",knt_tab!A133))","v":""},{"$f":"IF(J10=\"\",\"\",GETPIVOTDATA(\"body\",knt_tab!$A$3,\"zavodnik\",J10))","v":""},null,1,{"$f":"IF(ISERR(GETPIVOTDATA(\"body\",knt_tab!$Y$3,\"zavodnik\",knt_tab!Y5)),\"\",IF(GETPIVOTDATA(\"body\",knt_tab!$Y$3,\"zavodnik\",knt_tab!Y5)=0,\"\",knt_tab!Y5))","v":"Silvestr Matěj"},{"$f":"IF(N10=\"\",\"\",GETPIVOTDATA(\"body\",knt_tab!$Y$3,\"zavodnik\",N10))","v":10},null,7,{"$f":"IF(ISERR(GETPIVOTDATA(\"body\",knt_tab!$M$3,\"zavodnik\",knt_tab!M11)),\"\",IF(GETPIVOTDATA(\"body\",knt_tab!$M$3,\"zavodnik\",knt_tab!M11)=0,\"\",knt_tab!M11))","v":"Čerchla Michal"},{"$f":"IF(R10=\"\",\"\",GETPIVOTDATA(\"body\",knt_tab!$M$3,\"zavodnik\",R10))","v":35},null,23,{"$f":"IF(ISERR(GETPIVOTDATA(\"body\",knt_tab!$G$3,\"zavodnik\",knt_tab!G29)),\"\",IF(GETPIVOTDATA(\"body\",knt_tab!$G$3,\"zavodnik\",knt_tab!G29)=0,\"\",knt_tab!G29))","v":"Murin Jan"},{"$f":"IF(V10=\"\",\"\",GETPIVOTDATA(\"body\",knt_tab!$G$3,\"zavodnik\",V10))","v":7}]
[8,{"$f":"IF(ISERR(GETPIVOTDATA(\"body\",knt_tab!$A$3,\"zavodnik\",knt_tab!A12)),\"\",IF(GETPIVOTDATA(\"body\",knt_tab!$A$3,\"zavodnik\",knt_tab!A12)=0,\"\",knt_tab!A12))","v":"Mojžíšek Lukáš"},{"$f":"IF(B11=\"\",\"\",GETPIVOTDATA(\"body\",knt_tab!$A$3,\"zavodnik\",B11))","v":115},null,68,{"$f":"IF(ISERR(GETPIVOTDATA(\"body\",knt_tab!$A$3,\"zavodnik\",knt_tab!A73)),\"\",IF(GETPIVOTDATA(\"body\",knt_tab!$A$3,\"zavodnik\",knt_tab!A73)=0,\"\",knt_tab!A73))","v":"Šeděnka Richard"},{"$f":"IF(F11=\"\",\"\",GETPIVOTDATA(\"body\",knt_tab!$A$3,\"zavodnik\",F11))","v":18},null,"",{"$f":"IF(ISERR(GETPIVOTDATA(\"body\",knt_tab!$A$3,\"zavodnik\",knt_tab!A134)),\"\",IF(GETPIVOTDATA(\"body\",knt_tab!$A$3,\"zavodnik\",knt_tab!A134)=0,\"\",knt_tab!A134))","v":""},{"$f":"IF(J11=\"\",\"\",GETPIVOTDATA(\"body\",knt_tab!$A$3,\"zavodnik\",J11))","v":""},null,{"$f":"IF(N11=\"\",\"\",IF(O11=O10,M10,ROW(M11)-ROW($M$9)))","v":1},{"$f":"IF(ISERR(GETPIVOTDATA(\"body\",knt_tab!$Y$3,\"zavodnik\",knt_tab!Y6)),\"\",IF(GETPIVOTDATA(\"body\",knt_tab!$Y$3,\"zavodnik\",knt_tab!Y6)=0,\"\",knt_tab!Y6))","v":"Pavlica Tomáš"},{"$f":"IF(N11=\"\",\"\",GETPIVOTDATA(\"body\",knt_tab!$Y$3,\"zavodnik\",N11))","v":10},null,8,{"$f":"IF(ISERR(GETPIVOTDATA(\"body\",knt_tab!$M$3,\"zavodnik\",knt_tab!M12)),\"\",IF(GETPIVOTDATA(\"body\",knt_tab!$M$3,\"zavodnik\",knt_tab!M12)=0,\"\",knt_tab!M12))","v":"Meixner Michal"},{"$f":"IF(R11=\"\",\"\",GETPIVOTDATA(\"body\",knt_tab!$M$3,\"zavodnik\",R11))","v":34},null,26,{"$f":"IF(ISERR(GETPIVOTDATA(\"body\",knt_tab!$G$3,\"zavodnik\",knt_tab!G30)),\"\",IF(GETPIVOTDATA(\"body\",knt_tab!$G$3,\"zavodnik\",knt_tab!G30)=0,\"\",knt_tab!G30))","v":"Románek Jakub"},{"$f":"IF(V11=\"\",\"\",GETPIVOTDATA(\"body\",knt_tab!$G$3,\"zavodnik\",V11))","v":5}]
[9,{"$f":"IF(ISERR(GETPIVOTDATA(\"body\",knt_tab!$A$3,\"zavodnik\",knt_tab!A13)),\"\",IF(GETPIVOTDATA(\"body\",knt_tab!$A$3,\"zavodnik\",knt_tab!A13)=0,\"\",knt_tab!A13))","v":"Rapčanová Silvie"},{"$f":"IF(B12=\"\",\"\",GETPIVOTDATA(\"body\",knt_tab!$A$3,\"zavodnik\",B12))","v":109},null,70,{"$f":"IF(ISERR(GETPIVOTDATA(\"body\",knt_tab!$A$3,\"zavodnik\",knt_tab!A74)),\"\",IF(GETPIVOTDATA(\"body\",knt_tab!$A$3,\"zavodnik\",knt_tab!A74)=0,\"\",knt_tab!A74))","v":"Salinger David"},{"$f":"IF(F12=\"\",\"\",GETPIVOTDATA(\"body\",knt_tab!$A$3,\"zavodnik\",F12))","v":17},null,"",{"$f":"IF(ISERR(GETPIVOTDATA(\"body\",knt_tab!$A$3,\"zavodnik\",knt_tab!A135)),\"\",IF(GETPIVOTDATA(\"body\",knt_tab!$A$3,\"zavodnik\",knt_tab!A135)=0,\"\",knt_tab!A135))","v":""},{"$f":"IF(J12=\"\",\"\",GETPIVOTDATA(\"body\",knt_tab!$A$3,\"zavodnik\",J12))","v":""},null,{"$f":"IF(N12=\"\",\"\",IF(O12=O11,M11,ROW(M12)-ROW($M$9)))","v":3},{"$f":"IF(ISERR(GETPIVOTDATA(\"body\",knt_tab!$Y$3,\"zavodnik\",knt_tab!Y7)),\"\",IF(GETPIVOTDATA(\"body\",knt_tab!$Y$3,\"zavodnik\",knt_tab!Y7)=0,\"\",knt_tab!Y7))","v":"Blažej Jan"},{"$f":"IF(N12=\"\",\"\",GETPIVOTDATA(\"body\",knt_tab!$Y$3,\"zavodnik\",N12))","v":5},null,9,{"$f":"IF(ISERR(GETPIVOTDATA(\"body\",knt_tab!$M$3,\"zavodnik\",knt_tab!M13)),\"\",IF(GETPIVOTDATA(\"body\",knt_tab!$M$3,\"zavodnik\",knt_tab!M13)=0,\"\",knt_tab!M13))","v":"Čech Jiří"},{"$f":"IF(R12=\"\",\"\",GETPIVOTDATA(\"body\",knt_tab!$M$3,\"zavodnik\",R12))","v":25},null,27,{"$f":"IF(ISERR(GETPIVOTDATA(\"body\",knt_tab!$G$3,\"zavodnik\",knt_tab!G31)),\"\",IF(GETPIVOTDATA(\"body\",knt_tab!$G$3,\"zavodnik\",knt_tab!G31)=0,\"\",knt_tab!G31))","v":"Šotola Kryštof"},{"$f":"IF(V12=\"\",\"\",GETPIVOTDATA(\"body\",knt_tab!$G$3,\"zavodnik\",V12))","v":4}]
[10,{"$f":"IF(ISERR(GETPIVOTDATA(\"body\",knt_tab!$A$3,\"zavodnik\",knt_tab!A14)),\"\",IF(GETPIVOTDATA(\"body\",knt_tab!$A$3,\"zavodnik\",knt_tab!A14)=0,\"\",knt_tab!A14))","v":"Huvar Matyáš"},{"$f":"IF(B13=\"\",\"\",GETPIVOTDATA(\"body\",knt_tab!$A$3,\"zavodnik\",B13))","v":106},null,70,{"$f":"IF(ISERR(GETPIVOTDATA(\"body\",knt_tab!$A$3,\"zavodnik\",knt_tab!A75)),\"\",IF(GETPIVOTDATA(\"body\",knt_tab!$A$3,\"zavodnik\",knt_tab!A75)=0,\"\",knt_tab!A75))","v":"Král Jakub"},{"$f":"IF(F13=\"\",\"\",GETPIVOTDATA(\"body\",knt_tab!$A$3,\"zavodnik\",F13))","v":17},null,{"$f":"IF(J13=\"\",\"\",IF(K13=K12,I12,ROW(I13)-ROW($I$3)+122))","v":""},{"$f":"IF(ISERR(GETPIVOTDATA(\"body\",knt_tab!$A$3,\"zavodnik\",knt_tab!A136)),\"\",IF(GETPIVOTDATA(\"body\",knt_tab!$A$3,\"zavodnik\",knt_tab!A136)=0,\"\",knt_tab!A136))","v":""},{"$f":"IF(J13=\"\",\"\",GETPIVOTDATA(\"body\",knt_tab!$A$3,\"zavodnik\",J13))","v":""},null,{"$f":"IF(N13=\"\",\"\",IF(O13=O12,M12,ROW(M13)-ROW($M$9)))","v":3},{"$f":"IF(ISERR(GETPIVOTDATA(\"body\",knt_tab!$Y$3,\"zavodnik\",knt_tab!Y8)),\"\",IF(GETPIVOTDATA(\"body\",knt_tab!$Y$3,\"zavodnik\",knt_tab!Y8)=0,\"\",knt_tab!Y8))","v":"Mojžíšek Lukáš"},{"$f":"IF(N13=\"\",\"\",GETPIVOTDATA(\"body\",knt_tab!$Y$3,\"zavodnik\",N13))","v":5},null,10,{"$f":"IF(ISERR(GETPIVOTDATA(\"body\",knt_tab!$M$3,\"zavodnik\",knt_tab!M14)),\"\",IF(GETPIVOTDATA(\"body\",knt_tab!$M$3,\"zavodnik\",knt_tab!M14)=0,\"\",knt_tab!M14))","v":"Caletka Michal"},{"$f":"IF(R13=\"\",\"\",GETPIVOTDATA(\"body\",knt_tab!$M$3,\"zavodnik\",R13))","v":24},null,28,{"$f":"IF(ISERR(GETPIVOTDATA(\"body\",knt_tab!$G$3,\"zavodnik\",knt_tab!G32)),\"\",IF(GETPIVOTDATA(\"body\",knt_tab!$G$3,\"zavodnik\",knt_tab!G32)=0,\"\",knt_tab!G32))","v":"Ryška Filip"},{"$f":"IF(V13=\"\",\"\",GETPIVOTDATA(\"body\",knt_tab!$G$3,\"zavodnik\",V13))","v":1}]
[11,{"$f":"IF(ISERR(GETPIVOTDATA(\"body\",knt_tab!$A$3,\"zavodnik\",knt_tab!A15)),\"\",IF(GETPIVOTDATA(\"body\",knt_tab!$A$3,\"zavodnik\",knt_tab!A15)=0,\"\",knt_tab!A15))","v":"Martínková Adéla"},{"$f":"IF(B14=\"\",\"\",GETPIVOTDATA(\"body\",knt_tab!$A$3,\"zavodnik\",B14))","v":90},null,72,{"$f":"IF(ISERR(GETPIVOTDATA(\"body\",knt_tab!$A$3,\"zavodnik\",knt_tab!A76)),\"\",IF(GETPIVOTDATA(\"body\",knt_tab!$A$3,\"zavodnik\",knt_tab!A76)=0,\"\",knt_tab!A76))","v":"Šmatelka Ondřej"},{"$f":"IF(F14=\"\",\"\",GETPIVOTDATA(\"body\",knt_tab!$A$3,\"zavodnik\",F14))","v":16},null,"",{"$f":"IF(ISERR(GETPIVOTDATA(\"body\",knt_tab!$A$3,\"zavodnik\",knt_tab!A137)),\"\",IF(GETPIVOTDATA(\"body\",knt_tab!$A$3,\"zavodnik\",knt_tab!A137)=0,\"\",knt_tab!A137))","v":""},{"$f":"IF(J14=\"\",\"\",GETPIVOTDATA(\"body\",knt_tab!$A$3,\"zavodnik\",J14))","v":""},null,{"$f":"IF(N14=\"\",\"\",IF(O14=O13,M13,ROW(M14)-ROW($M$9)))","v":5},{"$f":"IF(ISERR(GETPIVOTDATA(\"body\",knt_tab!$Y$3,\"zavodnik\",knt_tab!Y9)),\"\",IF(GETPIVOTDATA(\"body\",knt_tab!$Y$3,\"zavodnik\",knt_tab!Y9)=0,\"\",knt_tab!Y9))","v":"Pustějovský Tomáš"},{"$f":"IF(N14=\"\",\"\",GETPIVOTDATA(\"body\",knt_tab!$Y$3,\"zavodnik\",N14))","v":4},null,11,{"$f":"IF(ISERR(GETPIVOTDATA(\"body\",knt_tab!$M$3,\"zavodnik\",knt_tab!M15)),\"\",IF(GETPIVOTDATA(\"body\",knt_tab!$M$3,\"zavodnik\",knt_tab!M15)=0,\"\",knt_tab!M15))","v":"Kolář Vojtěch"},{"$f":"IF(R14=\"\",\"\",GETPIVOTDATA(\"body\",knt_tab!$M$3,\"zavodnik\",R14))","v":11},null,28,{"$f":"IF(ISERR(GETPIVOTDATA(\"body\",knt_tab!$G$3,\"zavodnik\",knt_tab!G33)),\"\",IF(GETPIVOTDATA(\"body\",knt_tab!$G$3,\"zavodnik\",knt_tab!G33)=0,\"\",knt_tab!G33))","v":"Savelyev Sam"},{"$f":"IF(V14=\"\",\"\",GETPIVOTDATA(\"body\",knt_tab!$G$3,\"zavodnik\",V14))","v":1}]
[12,{"$f":"IF(ISERR(GETPIVOTDATA(\"body\",knt_tab!$A$3,\"zavodnik\",knt_tab!A16)),\"\",IF(GETPIVOTDATA(\"body\",knt_tab!$A$3,\"zavodnik\",knt_tab!A16)=0,\"\",knt_tab!A16))","v":"Zwilling Šimon"},{"$f":"IF(B15=\"\",\"\",GETPIVOTDATA(\"body\",knt_tab!$A$3,\"zavodnik\",B15))","v":84},null,72,{"$f":"IF(ISERR(GETPIVOTDATA(\"body\",knt_tab!$A$3,\"zavodnik\",knt_tab!A77)),\"\",IF(GETPIVOTDATA(\"body\",knt_tab!$A$3,\"zavodnik\",knt_tab!A77)=0,\"\",knt_tab!A77))","v":"Kohn Pavel"},{"$f":"IF(F15=\"\",\"\",GETPIVOTDATA(\"body\",knt_tab!$A$3,\"zavodnik\",F15))","v":16},null,"",{"$f":"IF(ISERR(GETPIVOTDATA(\"body\",knt_tab!$A$3,\"zavodnik\",knt_tab!A138)),\"\",IF(GETPIVOTDATA(\"body\",knt_tab!$A$3,\"zavodnik\",knt_tab!A138)=0,\"\",knt_tab!A138))","v":""},{"$f":"IF(J15=\"\",\"\",GETPIVOTDATA(\"body\",knt_tab!$A$3,\"zavodnik\",J15))","v":""},null,{"$f":"IF(N15=\"\",\"\",IF(O15=O14,M14,ROW(M15)-ROW($M$9)))","v":6},{"$f":"IF(ISERR(GETPIVOTDATA(\"body\",knt_tab!$Y$3,\"zavodnik\",knt_tab!Y10)),\"\",IF(GETPIVOTDATA(\"body\",knt_tab!$Y$3,\"zavodnik\",knt_tab!Y10)=0,\"\",knt_tab!Y10))","v":"Šimek Daniel"},{"$f":"IF(N15=\"\",\"\",GETPIVOTDATA(\"body\",knt_tab!$Y$3,\"zavodnik\",N15))","v":3},null,12,{"$f":"IF(ISERR(GETPIVOTDATA(\"body\",knt_tab!$M$3,\"zavodnik\",knt_tab!M16)),\"\",IF(GETPIVOTDATA(\"body\",knt_tab!$M$3,\"zavodnik\",knt_tab!M16)=0,\"\",knt_tab!M16))","v":"Neckář Matěj"},{"$f":"IF(R15=\"\",\"\",GETPIVOTDATA(\"body\",knt_tab!$M$3,\"zavodnik\",R15))","v":6},null,"",{"$f":"IF(ISERR(GETPIVOTDATA(\"body\",knt_tab!$G$3,\"zavodnik\",knt_tab!G34)),\"\",IF(GETPIVOTDATA(\"body\",knt_tab!$G$3,\"zavodnik\",knt_tab!G34)=0,\"\",knt_tab!G34))","v":""},{"$f":"IF(V15=\"\",\"\",GETPIVOTDATA(\"body\",knt_tab!$G$3,\"zavodnik\",V15))","v":""}]
[13,{"$f":"IF(ISERR(GETPIVOTDATA(\"body\",knt_tab!$A$3,\"zavodnik\",knt_tab!A17)),\"\",IF(GETPIVOTDATA(\"body\",knt_tab!$A$3,\"zavodnik\",knt_tab!A17)=0,\"\",knt_tab!A17))","v":"Silvestr Matěj"},{"$f":"IF(B16=\"\",\"\",GETPIVOTDATA(\"body\",knt_tab!$A$3,\"zavodnik\",B16))","v":82},null,74,{"$f":"IF(ISERR(GETPIVOTDATA(\"body\",knt_tab!$A$3,\"zavodnik\",knt_tab!A78)),\"\",IF(GETPIVOTDATA(\"body\",knt_tab!$A$3,\"zavodnik\",knt_tab!A78)=0,\"\",knt_tab!A78))","v":"Mařec Tomáš"},{"$f":"IF(F16=\"\",\"\",GETPIVOTDATA(\"body\",knt_tab!$A$3,\"zavodnik\",F16))","v":14},null,"",{"$f":"IF(ISERR(GETPIVOTDATA(\"body\",knt_tab!$A$3,\"zavodnik\",knt_tab!A139)),\"\",IF(GETPIVOTDATA(\"body\",knt_tab!$A$3,\"zavodnik\",knt_tab!A139)=0,\"\",knt_tab!A139))","v":""},{"$f":"IF(J16=\"\",\"\",GETPIVOTDATA(\"body\",knt_tab!$A$3,\"zavodnik\",J16))","v":""},null,{"$f":"IF(N16=\"\",\"\",IF(O16=O15,M15,ROW(M16)-ROW($M$9)))","v":""},{"$f":"IF(ISERR(GETPIVOTDATA(\"body\",knt_tab!$Y$3,\"zavodnik\",knt_tab!Y11)),\"\",IF(GETPIVOTDATA(\"body\",knt_tab!$Y$3,\"zavodnik\",knt_tab!Y11)=0,\"\",knt_tab!Y11))","v":""},{"$f":"IF(N16=\"\",\"\",GETPIVOTDATA(\"body\",knt_tab!$Y$3,\"zavodnik\",N16))","v":""},null,{"$f":"IF(R16=\"\",\"\",IF(S16=S15,Q15,ROW(Q16)-ROW($Q$3)))","v":12},{"$f":"IF(ISERR(GETPIVOTDATA(\"body\",knt_tab!$M$3,\"zavodnik\",knt_tab!M17)),\"\",IF(GETPIVOTDATA(\"body\",knt_tab!$M$3,\"zavodnik\",knt_tab!M17)=0,\"\",knt_tab!M17))","v":"Kuzník Tadeáš"},{"$f":"IF(R16=\"\",\"\",GETPIVOTDATA(\"body\",knt_tab!$M$3,\"zavodnik\",R16))","v":6},null,"",{"$f":"IF(ISERR(GETPIVOTDATA(\"body\",knt_tab!$G$3,\"zavodnik\",knt_tab!G35)),\"\",IF(GETPIVOTDATA(\"body\",knt_tab!$G$3,\"zavodnik\",knt_tab!G35)=0,\"\",knt_tab!G35))","v":""},{"$f":"IF(V16=\"\",\"\",GETPIVOTDATA(\"body\",knt_tab!$G$3,\"zavodnik\",V16))","v":""}]
[14,{"$f":"IF(ISERR(GETPIVOTDATA(\"body\",knt_tab!$A$3,\"zavodnik\",knt_tab!A18)),\"\",IF(GETPIVOTDATA(\"body\",knt_tab!$A$3,\"zavodnik\",knt_tab!A18)=0,\"\",knt_tab!A18))","v":"Šimek Daniel"},{"$f":"IF(B17=\"\",\"\",GETPIVOTDATA(\"body\",knt_tab!$A$3,\"zavodnik\",B17))","v":80},null,75,{"$f":"IF(ISERR(GETPIVOTDATA(\"body\",knt_tab!$A$3,\"zavodnik\",knt_tab!A79)),\"\",IF(GETPIVOTDATA(\"body\",knt_tab!$A$3,\"zavodnik\",knt_tab!A79)=0,\"\",knt_tab!A79))","v":"Turek Jakub"},{"$f":"IF(F17=\"\",\"\",GETPIVOTDATA(\"body\",knt_tab!$A$3,\"zavodnik\",F17))","v":13},null,{"$f":"IF(J17=\"\",\"\",IF(K17=K16,I16,ROW(I17)-ROW($I$3)+122))","v":""},{"$f":"IF(ISERR(GETPIVOTDATA(\"body\",knt_tab!$A$3,\"zavodnik\",knt_tab!A140)),\"\",IF(GETPIVOTDATA(\"body\",knt_tab!$A$3,\"zavodnik\",knt_tab!A140)=0,\"\",knt_tab!A140))","v":""},{"$f":"IF(J17=\"\",\"\",GETPIVOTDATA(\"body\",knt_tab!$A$3,\"zavodnik\",J17))","v":""},null,"",{"$f":"IF(ISERR(GETPIVOTDATA(\"body\",knt_tab!$Y$3,\"zavodnik\",knt_tab!Y12)),\"\",IF(GETPIVOTDATA(\"body\",knt_tab!$Y$3,\"zavodnik\",knt_tab!Y12)=0,\"\",knt_tab!Y12))","v":""},{"$f":"IF(N17=\"\",\"\",GETPIVOTDATA(\"body\",knt_tab!$Y$3,\"zavodnik\",N17))","v":""},null,{"$f":"IF(R17=\"\",\"\",IF(S17=S16,Q16,ROW(Q17)-ROW($Q$3)))","v":14},{"$f":"IF(ISERR(GETPIVOTDATA(\"body\",knt_tab!$M$3,\"zavodnik\",knt_tab!M18)),\"\",IF(GETPIVOTDATA(\"body\",knt_tab!$M$3,\"zavodnik\",knt_tab!M18)=0,\"\",knt_tab!M18))","v":"Fojtík Daniel"},{"$f":"IF(R17=\"\",\"\",GETPIVOTDATA(\"body\",knt_tab!$M$3,\"zavodnik\",R17))","v":5},null,"",{"$f":"IF(ISERR(GETPIVOTDATA(\"body\",knt_tab!$G$3,\"zavodnik\",knt_tab!G36)),\"\",IF(GETPIVOTDATA(\"body\",knt_tab!$G$3,\"zavodnik\",knt_tab!G36)=0,\"\",knt_tab!G36))","v":""},{"$f":"IF(V17=\"\",\"\",GETPIVOTDATA(\"body\",knt_tab!$G$3,\"zavodnik\",V17))","v":""}]
[14,{"$f":"IF(ISERR(GETPIVOTDATA(\"body\",knt_tab!$A$3,\"zavodnik\",knt_tab!A19)),\"\",IF(GETPIVOTDATA(\"body\",knt_tab!$A$3,\"zavodnik\",knt_tab!A19)=0,\"\",knt_tab!A19))","v":"Rapčanová Alice"},{"$f":"IF(B18=\"\",\"\",GETPIVOTDATA(\"body\",knt_tab!$A$3,\"zavodnik\",B18))","v":80},null,76,{"$f":"IF(ISERR(GETPIVOTDATA(\"body\",knt_tab!$A$3,\"zavodnik\",knt_tab!A80)),\"\",IF(GETPIVOTDATA(\"body\",knt_tab!$A$3,\"zavodnik\",knt_tab!A80)=0,\"\",knt_tab!A80))","v":"Volná Tereza"},{"$f":"IF(F18=\"\",\"\",GETPIVOTDATA(\"body\",knt_tab!$A$3,\"zavodnik\",F18))","v":12},null,"",{"$f":"IF(ISERR(GETPIVOTDATA(\"body\",knt_tab!$A$3,\"zavodnik\",knt_tab!A141)),\"\",IF(GETPIVOTDATA(\"body\",knt_tab!$A$3,\"zavodnik\",knt_tab!A141)=0,\"\",knt_tab!A141))","v":""},{"$f":"IF(J18=\"\",\"\",GETPIVOTDATA(\"body\",knt_tab!$A$3,\"zavodnik\",J18))","v":""},null,null,null,null,null,15,{"$f":"IF(ISERR(GETPIVOTDATA(\"body\",knt_tab!$M$3,\"zavodnik\",knt_tab!M19)),\"\",IF(GETPIVOTDATA(\"body\",knt_tab!$M$3,\"zavodnik\",knt_tab!M19)=0,\"\",knt_tab!M19))","v":"Kožušník Vojtěch"},{"$f":"IF(R18=\"\",\"\",GETPIVOTDATA(\"body\",knt_tab!$M$3,\"zavodnik\",R18))","v":4},null,{"$f":"IF(V18=\"\",\"\",IF(W18=W17,U17,ROW(U18)-ROW($U$2)+17))","v":""},{"$f":"IF(ISERR(GETPIVOTDATA(\"body\",knt_tab!$G$3,\"zavodnik\",knt_tab!G37)),\"\",IF(GETPIVOTDATA(\"body\",knt_tab!$G$3,\"zavodnik\",knt_tab!G37)=0,\"\",knt_tab!G37))","v":""},{"$f":"IF(V18=\"\",\"\",GETPIVOTDATA(\"body\",knt_tab!$G$3,\"zavodnik\",V18))","v":""}]
[14,{"$f":"IF(ISERR(GETPIVOTDATA(\"body\",knt_tab!$A$3,\"zavodnik\",knt_tab!A20)),\"\",IF(GETPIVOTDATA(\"body\",knt_tab!$A$3,\"zavodnik\",knt_tab!A20)=0,\"\",knt_tab!A20))","v":"Škoda Melichar"},{"$f":"IF(B19=\"\",\"\",GETPIVOTDATA(\"body\",knt_tab!$A$3,\"zavodnik\",B19))","v":80},null,77,{"$f":"IF(ISERR(GETPIVOTDATA(\"body\",knt_tab!$A$3,\"zavodnik\",knt_tab!A81)),\"\",IF(GETPIVOTDATA(\"body\",knt_tab!$A$3,\"zavodnik\",knt_tab!A81)=0,\"\",knt_tab!A81))","v":"Nytra Sebastián"},{"$f":"IF(F19=\"\",\"\",GETPIVOTDATA(\"body\",knt_tab!$A$3,\"zavodnik\",F19))","v":11},null,null,null,null,null,"Dorostenky",null,null,null,15,{"$f":"IF(ISERR(GETPIVOTDATA(\"body\",knt_tab!$M$3,\"zavodnik\",knt_tab!M20)),\"\",IF(GETPIVOTDATA(\"body\",knt_tab!$M$3,\"zavodnik\",knt_tab!M20)=0,\"\",knt_tab!M20))","v":"Krischke Fabien"},{"$f":"IF(R19=\"\",\"\",GETPIVOTDATA(\"body\",knt_tab!$M$3,\"zavodnik\",R19))","v":4},null,"",{"$f":"IF(ISERR(GETPIVOTDATA(\"body\",knt_tab!$G$3,\"zavodnik\",knt_tab!G38)),\"\",IF(GETPIVOTDATA(\"body\",knt_tab!$G$3,\"zavodnik\",knt_tab!G38)=0,\"\",knt_tab!G38))","v":""},{"$f":"IF(V19=\"\",\"\",GETPIVOTDATA(\"body\",knt_tab!$G$3,\"zavodnik\",V19))","v":""}]
[14,{"$f":"IF(ISERR(GETPIVOTDATA(\"body\",knt_tab!$A$3,\"zavodnik\",knt_tab!A21)),\"\",IF(GETPIVOTDATA(\"body\",knt_tab!$A$3,\"zavodnik\",knt_tab!A21)=0,\"\",knt_tab!A21))","v":"Svoboda Jiří"},{"$f":"IF(B20=\"\",\"\",GETPIVOTDATA(\"body\",knt_tab!$A$3,\"zavodnik\",B20))","v":80},null,77,{"$f":"IF(ISERR(GETPIVOTDATA(\"body\",knt_tab!$A$3,\"zavodnik\",knt_tab!A82)),\"\",IF(GETPIVOTDATA(\"body\",knt_tab!$A$3,\"zavodnik\",knt_tab!A82)=0,\"\",knt_tab!A82))","v":"Kolář Vojtěch"},{"$f":"IF(F20=\"\",\"\",GETPIVOTDATA(\"body\",knt_tab!$A$3,\"zavodnik\",F20))","v":11},null,"veteráni",null,null,null,"Pořadí","Příjmení","body",null,{"$f":"IF(R20=\"\",\"\",IF(S20=S19,Q19,ROW(Q20)-ROW($Q$3)))","v":15},{"$f":"IF(ISERR(GETPIVOTDATA(\"body\",knt_tab!$M$3,\"zavodnik\",knt_tab!M21)),\"\",IF(GETPIVOTDATA(\"body\",knt_tab!$M$3,\"zavodnik\",knt_tab!M21)=0,\"\",knt_tab!M21))","v":"Bernacký Mikuláš"},{"$f":"IF(R20=\"\",\"\",GETPIVOTDATA(\"body\",knt_tab!$M$3,\"zavodnik\",R20))","v":4},null,"",{"$f":"IF(ISERR(GETPIVOTDATA(\"body\",knt_tab!$G$3,\"zavodnik\",knt_tab!G39)),\"\",IF(GETPIVOTDATA(\"body\",knt_tab!$G$3,\"zavodnik\",knt_tab!G39)=0,\"\",knt_tab!G39))","v":""},{"$f":"IF(V20=\"\",\"\",GETPIVOTDATA(\"body\",knt_tab!$G$3,\"zavodnik\",V20))","v":""}]
[18,{"$f":"IF(ISERR(GETPIVOTDATA(\"body\",knt_tab!$A$3,\"zavodnik\",knt_tab!A22)),\"\",IF(GETPIVOTDATA(\"body\",knt_tab!$A$3,\"zavodnik\",knt_tab!A22)=0,\"\",knt_tab!A22))","v":"Huvar Jakub"},{"$f":"IF(B21=\"\",\"\",GETPIVOTDATA(\"body\",knt_tab!$A$3,\"zavodnik\",B21))","v":76},null,79,{"$f":"IF(ISERR(GETPIVOTDATA(\"body\",knt_tab!$A$3,\"zavodnik\",knt_tab!A83)),\"\",IF(GETPIVOTDATA(\"body\",knt_tab!$A$3,\"zavodnik\",knt_tab!A83)=0,\"\",knt_tab!A83))","v":"Kolář Daniel"},{"$f":"IF(F21=\"\",\"\",GETPIVOTDATA(\"body\",knt_tab!$A$3,\"zavodnik\",F21))","v":10},null,"Pořadí","Příjmení","body",null,1,{"$f":"IF(ISERR(GETPIVOTDATA(\"body\",knt_tab!$V$3,\"zavodnik\",knt_tab!V5)),\"\",IF(GETPIVOTDATA(\"body\",knt_tab!$V$3,\"zavodnik\",knt_tab!V5)=0,\"\",knt_tab!V5))","v":"Václavková Tereza"},{"$f":"IF(N21=\"\",\"\",GETPIVOTDATA(\"body\",knt_tab!$V$3,\"zavodnik\",N21))","v":131},null,15,{"$f":"IF(ISERR(GETPIVOTDATA(\"body\",knt_tab!$M$3,\"zavodnik\",knt_tab!M22)),\"\",IF(GETPIVOTDATA(\"body\",knt_tab!$M$3,\"zavodnik\",knt_tab!M22)=0,\"\",knt_tab!M22))","v":"Buranyč Filip"},{"$f":"IF(R21=\"\",\"\",GETPIVOTDATA(\"body\",knt_tab!$M$3,\"zavodnik\",R21))","v":4},null,"",{"$f":"IF(ISERR(GETPIVOTDATA(\"body\",knt_tab!$G$3,\"zavodnik\",knt_tab!G40)),\"\",IF(GETPIVOTDATA(\"body\",knt_tab!$G$3,\"zavodnik\",knt_tab!G40)=0,\"\",knt_tab!G40))","v":""},{"$f":"IF(V21=\"\",\"\",GETPIVOTDATA(\"body\",knt_tab!$G$3,\"zavodnik\",V21))","v":""}]
[19,{"$f":"IF(ISERR(GETPIVOTDATA(\"body\",knt_tab!$A$3,\"zavodnik\",knt_tab!A23)),\"\",IF(GETPIVOTDATA(\"body\",knt_tab!$A$3,\"zavodnik\",knt_tab!A23)=0,\"\",knt_tab!A23))","v":"Baudiš Michal"},{"$f":"IF(B22=\"\",\"\",GETPIVOTDATA(\"body\",knt_tab!$A$3,\"zavodnik\",B22))","v":69},null,79,{"$f":"IF(ISERR(GETPIVOTDATA(\"body\",knt_tab!$A$3,\"zavodnik\",knt_tab!A84)),\"\",IF(GETPIVOTDATA(\"body\",knt_tab!$A$3,\"zavodnik\",knt_tab!A84)=0,\"\",knt_tab!A84))","v":"Jančata Deniel"},{"$f":"IF(F22=\"\",\"\",GETPIVOTDATA(\"body\",knt_tab!$A$3,\"zavodnik\",F22))","v":10},null,1,{"$f":"IF(ISERR(GETPIVOTDATA(\"body\",knt_tab!$AK$3,\"zavodnik\",knt_tab!AK5)),\"\",IF(GETPIVOTDATA(\"body\",knt_tab!$AK$3,\"zavodnik\",knt_tab!AK5)=0,\"\",knt_tab!AK5))","v":"Černota Jiří"},{"$f":"IF(J22=\"\",\"\",GETPIVOTDATA(\"body\",knt_tab!$AK$3,\"zavodnik\",J22))","v":24},null,{"$f":"IF(N22=\"\",\"\",IF(O22=O21,M21,ROW(M22)-ROW($M$20)))","v":2},{"$f":"IF(ISERR(GETPIVOTDATA(\"body\",knt_tab!$V$3,\"zavodnik\",knt_tab!V6)),\"\",IF(GETPIVOTDATA(\"body\",knt_tab!$V$3,\"zavodnik\",knt_tab!V6)=0,\"\",knt_tab!V6))","v":"Čerchlová Markéta"},{"$f":"IF(N22=\"\",\"\",GETPIVOTDATA(\"body\",knt_tab!$V$3,\"zavodnik\",N22))","v":118},null,19,{"$f":"IF(ISERR(GETPIVOTDATA(\"body\",knt_tab!$M$3,\"zavodnik\",knt_tab!M23)),\"\",IF(GETPIVOTDATA(\"body\",knt_tab!$M$3,\"zavodnik\",knt_tab!M23)=0,\"\",knt_tab!M23))","v":"Válek Matěj"},{"$f":"IF(R22=\"\",\"\",GETPIVOTDATA(\"body\",knt_tab!$M$3,\"zavodnik\",R22))","v":1},null,"",{"$f":"IF(ISERR(GETPIVOTDATA(\"body\",knt_tab!$G$3,\"zavodnik\",knt_tab!G41)),\"\",IF(GETPIVOTDATA(\"body\",knt_tab!$G$3,\"zavodnik\",knt_tab!G41)=0,\"\",knt_tab!G41))","v":""},{"$f":"IF(V22=\"\",\"\",GETPIVOTDATA(\"body\",knt_tab!$G$3,\"zavodnik\",V22))","v":""}]
[20,{"$f":"IF(ISERR(GETPIVOTDATA(\"body\",knt_tab!$A$3,\"zavodnik\",knt_tab!A24)),\"\",IF(GETPIVOTDATA(\"body\",knt_tab!$A$3,\"zavodnik\",knt_tab!A24)=0,\"\",knt_tab!A24))","v":"Fulneček Šimon"},{"$f":"IF(B23=\"\",\"\",GETPIVOTDATA(\"body\",knt_tab!$A$3,\"zavodnik\",B23))","v":66},null,79,{"$f":"IF(ISERR(GETPIVOTDATA(\"body\",knt_tab!$A$3,\"zavodnik\",knt_tab!A85)),\"\",IF(GETPIVOTDATA(\"body\",knt_tab!$A$3,\"zavodnik\",knt_tab!A85)=0,\"\",knt_tab!A85))","v":"Vaněk David"},{"$f":"IF(F23=\"\",\"\",GETPIVOTDATA(\"body\",knt_tab!$A$3,\"zavodnik\",F23))","v":10},null,{"$f":"IF(J23=\"\",\"\",IF(K23=K22,I22,ROW(I23)-ROW($I$21)))","v":2},{"$f":"IF(ISERR(GETPIVOTDATA(\"body\",knt_tab!$AK$3,\"zavodnik\",knt_tab!AK6)),\"\",IF(GETPIVOTDATA(\"body\",knt_tab!$AK$3,\"zavodnik\",knt_tab!AK6)=0,\"\",knt_tab!AK6))","v":"Moravec Vlastimil"},{"$f":"IF(J23=\"\",\"\",GETPIVOTDATA(\"body\",knt_tab!$AK$3,\"zavodnik\",J23))","v":8},null,3,{"$f":"IF(ISERR(GETPIVOTDATA(\"body\",knt_tab!$V$3,\"zavodnik\",knt_tab!V7)),\"\",IF(GETPIVOTDATA(\"body\",knt_tab!$V$3,\"zavodnik\",knt_tab!V7)=0,\"\",knt_tab!V7))","v":"Kokešová Alexandra"},{"$f":"IF(N23=\"\",\"\",GETPIVOTDATA(\"body\",knt_tab!$V$3,\"zavodnik\",N23))","v":54},null,19,{"$f":"IF(ISERR(GETPIVOTDATA(\"body\",knt_tab!$M$3,\"zavodnik\",knt_tab!M24)),\"\",IF(GETPIVOTDATA(\"body\",knt_tab!$M$3,\"zavodnik\",knt_tab!M24)=0,\"\",knt_tab!M24))","v":"Lavrukhin Dobrynia"},{"$f":"IF(R23=\"\",\"\",GETPIVOTDATA(\"body\",knt_tab!$M$3,\"zavodnik\",R23))","v":1},null,"",{"$f":"IF(ISERR(GETPIVOTDATA(\"body\",knt_tab!$G$3,\"zavodnik\",knt_tab!G42)),\"\",IF(GETPIVOTDATA(\"body\",knt_tab!$G$3,\"zavodnik\",knt_tab!G42)=0,\"\",knt_tab!G42))","v":""},{"$f":"IF(V23=\"\",\"\",GETPIVOTDATA(\"body\",knt_tab!$G$3,\"zavodnik\",V23))","v":""}]
[21,{"$f":"IF(ISERR(GETPIVOTDATA(\"body\",knt_tab!$A$3,\"zavodnik\",knt_tab!A25)),\"\",IF(GETPIVOTDATA(\"body\",knt_tab!$A$3,\"zavodnik\",knt_tab!A25)=0,\"\",knt_tab!A25))","v":"Bechný Adam"},{"$f":"IF(B24=\"\",\"\",GETPIVOTDATA(\"body\",knt_tab!$A$3,\"zavodnik\",B24))","v":63},null,79,{"$f":"IF(ISERR(GETPIVOTDATA(\"body\",knt_tab!$A$3,\"zavodnik\",knt_tab!A86)),\"\",IF(GETPIVOTDATA(\"body\",knt_tab!$A$3,\"zavodnik\",knt_tab!A86)=0,\"\",knt_tab!A86))","v":"Močkořová Adéla"},{"$f":"IF(F24=\"\",\"\",GETPIVOTDATA(\"body\",knt_tab!$A$3,\"zavodnik\",F24))","v":10},null,3,{"$f":"IF(ISERR(GETPIVOTDATA(\"body\",knt_tab!$AK$3,\"zavodnik\",knt_tab!AK7)),\"\",IF(GETPIVOTDATA(\"body\",knt_tab!$AK$3,\"zavodnik\",knt_tab!AK7)=0,\"\",knt_tab!AK7))","v":"Morav Dominik"},{"$f":"IF(J24=\"\",\"\",GETPIVOTDATA(\"body\",knt_tab!$AK$3,\"zavodnik\",J24))","v":7},null,4,{"$f":"IF(ISERR(GETPIVOTDATA(\"body\",knt_tab!$V$3,\"zavodnik\",knt_tab!V8)),\"\",IF(GETPIVOTDATA(\"body\",knt_tab!$V$3,\"zavodnik\",knt_tab!V8)=0,\"\",knt_tab!V8))","v":"Kuželová Dominika"},{"$f":"IF(N24=\"\",\"\",GETPIVOTDATA(\"body\",knt_tab!$V$3,\"zavodnik\",N24))","v":35},null,{"$f":"IF(R24=\"\",\"\",IF(S24=S23,Q23,ROW(Q24)-ROW($Q$3)))","v":""},{"$f":"IF(ISERR(GETPIVOTDATA(\"body\",knt_tab!$M$3,\"zavodnik\",knt_tab!M25)),\"\",IF(GETPIVOTDATA(\"body\",knt_tab!$M$3,\"zavodnik\",knt_tab!M25)=0,\"\",knt_tab!M25))","v":""},{"$f":"IF(R24=\"\",\"\",GETPIVOTDATA(\"body\",knt_tab!$M$3,\"zavodnik\",R24))","v":""},null,"",{"$f":"IF(ISERR(GETPIVOTDATA(\"body\",knt_tab!$G$3,\"zavodnik\",knt_tab!G43)),\"\",IF(GETPIVOTDATA(\"body\",knt_tab!$G$3,\"zavodnik\",knt_tab!G43)=0,\"\",knt_tab!G43))","v":""},{"$f":"IF(V24=\"\",\"\",GETPIVOTDATA(\"body\",knt_tab!$G$3,\"zavodnik\",V24))","v":""}]
[21,{"$f":"IF(ISERR(GETPIVOTDATA(\"body\",knt_tab!$A$3,\"zavodnik\",knt_tab!A26)),\"\",IF(GETPIVOTDATA(\"body\",knt_tab!$A$3,\"zavodnik\",knt_tab!A26)=0,\"\",knt_tab!A26))","v":"Motyka Dominik"},{"$f":"IF(B25=\"\",\"\",GETPIVOTDATA(\"body\",knt_tab!$A$3,\"zavodnik\",B25))","v":63},null,79,{"$f":"IF(ISERR(GETPIVOTDATA(\"body\",knt_tab!$A$3,\"zavodnik\",knt_tab!A87)),\"\",IF(GETPIVOTDATA(\"body\",knt_tab!$A$3,\"zavodnik\",knt_tab!A87)=0,\"\",knt_tab!A87))","v":"Bartošic Sebastian"},{"$f":"IF(F25=\"\",\"\",GETPIVOTDATA(\"body\",knt_tab!$A$3,\"zavodnik\",F25))","v":10},null,"",{"$f":"IF(ISERR(GETPIVOTDATA(\"body\",knt_tab!$AK$3,\"zavodnik\",knt_tab!AK8)),\"\",IF(GETPIVOTDATA(\"body\",knt_tab!$AK$3,\"zavodnik\",knt_tab!AK8)=0,\"\",knt_tab!AK8))","v":""},{"$f":"IF(J25=\"\",\"\",GETPIVOTDATA(\"body\",knt_tab!$AK$3,\"zavodnik\",J25))","v":""},null,5,{"$f":"IF(ISERR(GETPIVOTDATA(\"body\",knt_tab!$V$3,\"zavodnik\",knt_tab!V9)),\"\",IF(GETPIVOTDATA(\"body\",knt_tab!$V$3,\"zavodnik\",knt_tab!V9)=0,\"\",knt_tab!V9))","v":"Otáhalová Magdaléna"},{"$f":"IF(N25=\"\",\"\",GETPIVOTDATA(\"body\",knt_tab!$V$3,\"zavodnik\",N25))","v":24},null,"",{"$f":"IF(ISERR(GETPIVOTDATA(\"body\",knt_tab!$M$3,\"zavodnik\",knt_tab!M26)),\"\",IF(GETPIVOTDATA(\"body\",knt_tab!$M$3,\"zavodnik\",knt_tab!M26)=0,\"\",knt_tab!M26))","v":""},{"$f":"IF(R25=\"\",\"\",GETPIVOTDATA(\"body\",knt_tab!$M$3,\"zavodnik\",R25))","v":""},null,"",{"$f":"IF(ISERR(GETPIVOTDATA(\"body\",knt_tab!$G$3,\"zavodnik\",knt_tab!G44)),\"\",IF(GETPIVOTDATA(\"body\",knt_tab!$G$3,\"zavodnik\",knt_tab!G44)=0,\"\",knt_tab!G44))","v":""},{"$f":"IF(V25=\"\",\"\",GETPIVOTDATA(\"body\",knt_tab!$G$3,\"zavodnik\",V25))","v":""}]
[23,{"$f":"IF(ISERR(GETPIVOTDATA(\"body\",knt_tab!$A$3,\"zavodnik\",knt_tab!A27)),\"\",IF(GETPIVOTDATA(\"body\",knt_tab!$A$3,\"zavodnik\",knt_tab!A27)=0,\"\",knt_tab!A27))","v":"Pospíšil Jan"},{"$f":"IF(B26=\"\",\"\",GETPIVOTDATA(\"body\",knt_tab!$A$3,\"zavodnik\",B26))","v":62},null,84,{"$f":"IF(ISERR(GETPIVOTDATA(\"body\",knt_tab!$A$3,\"zavodnik\",knt_tab!A88)),\"\",IF(GETPIVOTDATA(\"body\",knt_tab!$A$3,\"zavodnik\",knt_tab!A88)=0,\"\",knt_tab!A88))","v":"Štverka Matyáš"},{"$f":"IF(F26=\"\",\"\",GETPIVOTDATA(\"body\",knt_tab!$A$3,\"zavodnik\",F26))","v":9},null,null,null,null,null,6,{"$f":"IF(ISERR(GETPIVOTDATA(\"body\",knt_tab!$V$3,\"zavodnik\",knt_tab!V10)),\"\",IF(GETPIVOTDATA(\"body\",knt_tab!$V$3,\"zavodnik\",knt_tab!V10)=0,\"\",knt_tab!V10))","v":"Benáčková Denisa"},{"$f":"IF(N26=\"\",\"\",GETPIVOTDATA(\"body\",knt_tab!$V$3,\"zavodnik\",N26))","v":1},null,{"$f":"IF(R26=\"\",\"\",IF(S26=S25,Q25,ROW(Q26)-ROW($Q$3)))","v":""},{"$f":"IF(ISERR(GETPIVOTDATA(\"body\",knt_tab!$M$3,\"zavodnik\",knt_tab!M27)),\"\",IF(GETPIVOTDATA(\"body\",knt_tab!$M$3,\"zavodnik\",knt_tab!M27)=0,\"\",knt_tab!M27))","v":""},{"$f":"IF(R26=\"\",\"\",GETPIVOTDATA(\"body\",knt_tab!$M$3,\"zavodnik\",R26))","v":""},null,"",{"$f":"IF(ISERR(GETPIVOTDATA(\"body\",knt_tab!$G$3,\"zavodnik\",knt_tab!G45)),\"\",IF(GETPIVOTDATA(\"body\",knt_tab!$G$3,\"zavodnik\",knt_tab!G45)=0,\"\",knt_tab!G45))","v":""},{"$f":"IF(V26=\"\",\"\",GETPIVOTDATA(\"body\",knt_tab!$G$3,\"zavodnik\",V26))","v":""}]
[24,{"$f":"IF(ISERR(GETPIVOTDATA(\"body\",knt_tab!$A$3,\"zavodnik\",knt_tab!A28)),\"\",IF(GETPIVOTDATA(\"body\",knt_tab!$A$3,\"zavodnik\",knt_tab!A28)=0,\"\",knt_tab!A28))","v":"Ciora Jakub"},{"$f":"IF(B27=\"\",\"\",GETPIVOTDATA(\"body\",knt_tab!$A$3,\"zavodnik\",B27))","v":61},null,85,{"$f":"IF(ISERR(GETPIVOTDATA(\"body\",knt_tab!$A$3,\"zavodnik\",knt_tab!A89)),\"\",IF(GETPIVOTDATA(\"body\",knt_tab!$A$3,\"zavodnik\",knt_tab!A89)=0,\"\",knt_tab!A89))","v":"Moravec Vlastimil"},{"$f":"IF(F27=\"\",\"\",GETPIVOTDATA(\"body\",knt_tab!$A$3,\"zavodnik\",F27))","v":8},null,"muži",null,null,null,"",{"$f":"IF(ISERR(GETPIVOTDATA(\"body\",knt_tab!$V$3,\"zavodnik\",knt_tab!V11)),\"\",IF(GETPIVOTDATA(\"body\",knt_tab!$V$3,\"zavodnik\",knt_tab!V11)=0,\"\",knt_tab!V11))","v":""},{"$f":"IF(N27=\"\",\"\",GETPIVOTDATA(\"body\",knt_tab!$V$3,\"zavodnik\",N27))","v":""},null,"",{"$f":"IF(ISERR(GETPIVOTDATA(\"body\",knt_tab!$M$3,\"zavodnik\",knt_tab!M28)),\"\",IF(GETPIVOTDATA(\"body\",knt_tab!$M$3,\"zavodnik\",knt_tab!M28)=0,\"\",knt_tab!M28))","v":""},{"$f":"IF(R27=\"\",\"\",GETPIVOTDATA(\"body\",knt_tab!$M$3,\"zavodnik\",R27))","v":""}]
[25,{"$f":"IF(ISERR(GETPIVOTDATA(\"body\",knt_tab!$A$3,\"zavodnik\",knt_tab!A29)),\"\",IF(GETPIVOTDATA(\"body\",knt_tab!$A$3,\"zavodnik\",knt_tab!A29)=0,\"\",knt_tab!A29))","v":"Kokešová Alexandra"},{"$f":"IF(B28=\"\",\"\",GETPIVOTDATA(\"body\",knt_tab!$A$3,\"zavodnik\",B28))","v":54},null,85,{"$f":"IF(ISERR(GETPIVOTDATA(\"body\",knt_tab!$A$3,\"zavodnik\",knt_tab!A90)),\"\",IF(GETPIVOTDATA(\"body\",knt_tab!$A$3,\"zavodnik\",knt_tab!A90)=0,\"\",knt_tab!A90))","v":"Šelong Tadeáš"},{"$f":"IF(F28=\"\",\"\",GETPIVOTDATA(\"body\",knt_tab!$A$3,\"zavodnik\",F28))","v":8},null,"Pořadí","Příjmení","body",null,null,null,null,null,{"$f":"IF(R28=\"\",\"\",IF(S28=S27,Q27,ROW(Q28)-ROW($Q$3)))","v":""},{"$f":"IF(ISERR(GETPIVOTDATA(\"body\",knt_tab!$M$3,\"zavodnik\",knt_tab!M29)),\"\",IF(GETPIVOTDATA(\"body\",knt_tab!$M$3,\"zavodnik\",knt_tab!M29)=0,\"\",knt_tab!M29))","v":""},{"$f":"IF(R28=\"\",\"\",GETPIVOTDATA(\"body\",knt_tab!$M$3,\"zavodnik\",R28))","v":""},null,"mláďata"]
[26,{"$f":"IF(ISERR(GETPIVOTDATA(\"body\",knt_tab!$A$3,\"zavodnik\",knt_tab!A30)),\"\",IF(GETPIVOTDATA(\"body\",knt_tab!$A$3,\"zavodnik\",knt_tab!A30)=0,\"\",knt_tab!A30))","v":"Caletka Petr"},{"$f":"IF(B29=\"\",\"\",GETPIVOTDATA(\"body\",knt_tab!$A$3,\"zavodnik\",B29))","v":53},null,85,{"$f":"IF(ISERR(GETPIVOTDATA(\"body\",knt_tab!$A$3,\"zavodnik\",knt_tab!A91)),\"\",IF(GETPIVOTDATA(\"body\",knt_tab!$A$3,\"zavodnik\",knt_tab!A91)=0,\"\",knt_tab!A91))","v":"Nuhlíček Jakub"},{"$f":"IF(F29=\"\",\"\",GETPIVOTDATA(\"body\",knt_tab!$A$3,\"zavodnik\",F29))","v":8},null,1,{"$f":"IF(ISERR(GETPIVOTDATA(\"body\",knt_tab!$AE$3,\"zavodnik\",knt_tab!AE5)),\"\",IF(GETPIVOTDATA(\"body\",knt_tab!$AE$3,\"zavodnik\",knt_tab!AE5)=0,\"\",knt_tab!AE5))","v":"Svoboda Jiří"},{"$f":"IF(J29=\"\",\"\",GETPIVOTDATA(\"body\",knt_tab!$AE$3,\"zavodnik\",J29))","v":80},null,"Dorostenci",null,null,null,"",{"$f":"IF(ISERR(GETPIVOTDATA(\"body\",knt_tab!$M$3,\"zavodnik\",knt_tab!M30)),\"\",IF(GETPIVOTDATA(\"body\",knt_tab!$M$3,\"zavodnik\",knt_tab!M30)=0,\"\",knt_tab!M30))","v":""},{"$f":"IF(R29=\"\",\"\",GETPIVOTDATA(\"body\",knt_tab!$M$3,\"zavodnik\",R29))","v":""},null,"Pořadí","Příjmení","body"]
[27,{"$f":"IF(ISERR(GETPIVOTDATA(\"body\",knt_tab!$A$3,\"zavodnik\",knt_tab!A31)),\"\",IF(GETPIVOTDATA(\"body\",knt_tab!$A$3,\"zavodnik\",knt_tab!A31)=0,\"\",knt_tab!A31))","v":"Stark Vojtěch"},{"$f":"IF(B30=\"\",\"\",GETPIVOTDATA(\"body\",knt_tab!$A$3,\"zavodnik\",B30))","v":52},null,85,{"$f":"IF(ISERR(GETPIVOTDATA(\"body\",knt_tab!$A$3,\"zavodnik\",knt_tab!A92)),\"\",IF(GETPIVOTDATA(\"body\",knt_tab!$A$3,\"zavodnik\",knt_tab!A92)=0,\"\",knt_tab!A92))","v":"Fojtík Jiří Václav"},{"$f":"IF(F30=\"\",\"\",GETPIVOTDATA(\"body\",knt_tab!$A$3,\"zavodnik\",F30))","v":8},null,{"$f":"IF(J30=\"\",\"\",IF(K30=K29,I29,ROW(I30)-ROW($I$28)))","v":2},{"$f":"IF(ISERR(GETPIVOTDATA(\"body\",knt_tab!$AE$3,\"zavodnik\",knt_tab!AE6)),\"\",IF(GETPIVOTDATA(\"body\",knt_tab!$AE$3,\"zavodnik\",knt_tab!AE6)=0,\"\",knt_tab!AE6))","v":"Šimek Daniel"},{"$f":"IF(J30=\"\",\"\",GETPIVOTDATA(\"body\",knt_tab!$AE$3,\"zavodnik\",J30))","v":77},null,"Pořadí","Příjmení","body",null,"",{"$f":"IF(ISERR(GETPIVOTDATA(\"body\",knt_tab!$M$3,\"zavodnik\",knt_tab!M31)),\"\",IF(GETPIVOTDATA(\"body\",knt_tab!$M$3,\"zavodnik\",knt_tab!M31)=0,\"\",knt_tab!M31))","v":""},{"$f":"IF(R30=\"\",\"\",GETPIVOTDATA(\"body\",knt_tab!$M$3,\"zavodnik\",R30))","v":""},null,1,{"$f":"IF(ISERR(GETPIVOTDATA(\"body\",knt_tab!$D$3,\"zavodnik\",knt_tab!D5)),\"\",IF(GETPIVOTDATA(\"body\",knt_tab!$D$3,\"zavodnik\",knt_tab!D5)=0,\"\",knt_tab!D5))","v":"Huvar Matyáš"},{"$f":"IF(V30=\"\",\"\",GETPIVOTDATA(\"body\",knt_tab!$D$3,\"zavodnik\",V30))","v":106}]
[28,{"$f":"IF(ISERR(GETPIVOTDATA(\"body\",knt_tab!$A$3,\"zavodnik\",knt_tab!A32)),\"\",IF(GETPIVOTDATA(\"body\",knt_tab!$A$3,\"zavodnik\",knt_tab!A32)=0,\"\",knt_tab!A32))","v":"Malaczynski Filip"},{"$f":"IF(B31=\"\",\"\",GETPIVOTDATA(\"body\",knt_tab!$A$3,\"zavodnik\",B31))","v":51},null,85,{"$f":"IF(ISERR(GETPIVOTDATA(\"body\",knt_tab!$A$3,\"zavodnik\",knt_tab!A93)),\"\",IF(GETPIVOTDATA(\"body\",knt_tab!$A$3,\"zavodnik\",knt_tab!A93)=0,\"\",knt_tab!A93))","v":"Gřešek Vít"},{"$f":"IF(F31=\"\",\"\",GETPIVOTDATA(\"body\",knt_tab!$A$3,\"zavodnik\",F31))","v":8},null,3,{"$f":"IF(ISERR(GETPIVOTDATA(\"body\",knt_tab!$AE$3,\"zavodnik\",knt_tab!AE7)),\"\",IF(GETPIVOTDATA(\"body\",knt_tab!$AE$3,\"zavodnik\",knt_tab!AE7)=0,\"\",knt_tab!AE7))","v":"Silvestr Matěj"},{"$f":"IF(J31=\"\",\"\",GETPIVOTDATA(\"body\",knt_tab!$AE$3,\"zavodnik\",J31))","v":72},null,1,{"$f":"IF(ISERR(GETPIVOTDATA(\"body\",knt_tab!$S$3,\"zavodnik\",knt_tab!S5)),\"\",IF(GETPIVOTDATA(\"body\",knt_tab!$S$3,\"zavodnik\",knt_tab!S5)=0,\"\",knt_tab!S5))","v":"Meixner Tomáš"},{"$f":"IF(N31=\"\",\"\",GETPIVOTDATA(\"body\",knt_tab!$S$3,\"zavodnik\",N31))","v":133},null,{"$f":"IF(R31=\"\",\"\",IF(S31=S30,Q30,ROW(Q31)-ROW($Q$3)))","v":""},{"$f":"IF(ISERR(GETPIVOTDATA(\"body\",knt_tab!$M$3,\"zavodnik\",knt_tab!M32)),\"\",IF(GETPIVOTDATA(\"body\",knt_tab!$M$3,\"zavodnik\",knt_tab!M32)=0,\"\",knt_tab!M32))","v":""},{"$f":"IF(R31=\"\",\"\",GETPIVOTDATA(\"body\",knt_tab!$M$3,\"zavodnik\",R31))","v":""},null,{"$f":"IF(V31=\"\",\"\",IF(W31=W30,U30,ROW(U31)-ROW($U$29)))","v":2},{"$f":"IF(ISERR(GETPIVOTDATA(\"body\",knt_tab!$D$3,\"zavodnik\",knt_tab!D6)),\"\",IF(GETPIVOTDATA(\"body\",knt_tab!$D$3,\"zavodnik\",knt_tab!D6)=0,\"\",knt_tab!D6))","v":"Škoda Melichar"},{"$f":"IF(V31=\"\",\"\",GETPIVOTDATA(\"body\",knt_tab!$D$3,\"zavodnik\",V31))","v":80}]
[29,{"$f":"IF(ISERR(GETPIVOTDATA(\"body\",knt_tab!$A$3,\"zavodnik\",knt_tab!A33)),\"\",IF(GETPIVOTDATA(\"body\",knt_tab!$A$3,\"zavodnik\",knt_tab!A33)=0,\"\",knt_tab!A33))","v":"Bukovjanová Charlotte"},{"$f":"IF(B32=\"\",\"\",GETPIVOTDATA(\"body\",knt_tab!$A$3,\"zavodnik\",B32))","v":50},null,90,{"$f":"IF(ISERR(GETPIVOTDATA(\"body\",knt_tab!$A$3,\"zavodnik\",knt_tab!A94)),\"\",IF(GETPIVOTDATA(\"body\",knt_tab!$A$3,\"zavodnik\",knt_tab!A94)=0,\"\",knt_tab!A94))","v":"Morav Dominik"},{"$f":"IF(F32=\"\",\"\",GETPIVOTDATA(\"body\",knt_tab!$A$3,\"zavodnik\",F32))","v":7},null,4,{"$f":"IF(ISERR(GETPIVOTDATA(\"body\",knt_tab!$AE$3,\"zavodnik\",knt_tab!AE8)),\"\",IF(GETPIVOTDATA(\"body\",knt_tab!$AE$3,\"zavodnik\",knt_tab!AE8)=0,\"\",knt_tab!AE8))","v":"Pustějovský Tomáš"},{"$f":"IF(J32=\"\",\"\",GETPIVOTDATA(\"body\",knt_tab!$AE$3,\"zavodnik\",J32))","v":44},null,{"$f":"IF(N32=\"\",\"\",IF(O32=O31,M31,ROW(M32)-ROW($M$30)))","v":2},{"$f":"IF(ISERR(GETPIVOTDATA(\"body\",knt_tab!$S$3,\"zavodnik\",knt_tab!S6)),\"\",IF(GETPIVOTDATA(\"body\",knt_tab!$S$3,\"zavodnik\",knt_tab!S6)=0,\"\",knt_tab!S6))","v":"Mojžíšek Lukáš"},{"$f":"IF(N32=\"\",\"\",GETPIVOTDATA(\"body\",knt_tab!$S$3,\"zavodnik\",N32))","v":91},null,"",{"$f":"IF(ISERR(GETPIVOTDATA(\"body\",knt_tab!$M$3,\"zavodnik\",knt_tab!M33)),\"\",IF(GETPIVOTDATA(\"body\",knt_tab!$M$3,\"zavodnik\",knt_tab!M33)=0,\"\",knt_tab!M33))","v":""},{"$f":"IF(R32=\"\",\"\",GETPIVOTDATA(\"body\",knt_tab!$M$3,\"zavodnik\",R32))","v":""},null,3,{"$f":"IF(ISERR(GETPIVOTDATA(\"body\",knt_tab!$D$3,\"zavodnik\",knt_tab!D7)),\"\",IF(GETPIVOTDATA(\"body\",knt_tab!$D$3,\"zavodnik\",knt_tab!D7)=0,\"\",knt_tab!D7))","v":"Bechný Adam"},{"$f":"IF(V32=\"\",\"\",GETPIVOTDATA(\"body\",knt_tab!$D$3,\"zavodnik\",V32))","v":63}]
[{"$f":"IF(B33=\"\",\"\",IF(C33=C32,A32,ROW(A33)-ROW($A$3)))","v":30},{"$f":"IF(ISERR(GETPIVOTDATA(\"body\",knt_tab!$A$3,\"zavodnik\",knt_tab!A34)),\"\",IF(GETPIVOTDATA(\"body\",knt_tab!$A$3,\"zavodnik\",knt_tab!A34)=0,\"\",knt_tab!A34))","v":"Lindovský Jiří"},{"$f":"IF(B33=\"\",\"\",GETPIVOTDATA(\"body\",knt_tab!$A$3,\"zavodnik\",B33))","v":49},null,90,{"$f":"IF(ISERR(GETPIVOTDATA(\"body\",knt_tab!$A$3,\"zavodnik\",knt_tab!A95)),\"\",IF(GETPIVOTDATA(\"body\",knt_tab!$A$3,\"zavodnik\",knt_tab!A95)=0,\"\",knt_tab!A95))","v":"Murin Jan"},{"$f":"IF(F33=\"\",\"\",GETPIVOTDATA(\"body\",knt_tab!$A$3,\"zavodnik\",F33))","v":7},null,5,{"$f":"IF(ISERR(GETPIVOTDATA(\"body\",knt_tab!$AE$3,\"zavodnik\",knt_tab!AE9)),\"\",IF(GETPIVOTDATA(\"body\",knt_tab!$AE$3,\"zavodnik\",knt_tab!AE9)=0,\"\",knt_tab!AE9))","v":"Kohn Tomáš"},{"$f":"IF(J33=\"\",\"\",GETPIVOTDATA(\"body\",knt_tab!$AE$3,\"zavodnik\",J33))","v":28},null,3,{"$f":"IF(ISERR(GETPIVOTDATA(\"body\",knt_tab!$S$3,\"zavodnik\",knt_tab!S7)),\"\",IF(GETPIVOTDATA(\"body\",knt_tab!$S$3,\"zavodnik\",knt_tab!S7)=0,\"\",knt_tab!S7))","v":"Motyka Dominik"},{"$f":"IF(N33=\"\",\"\",GETPIVOTDATA(\"body\",knt_tab!$S$3,\"zavodnik\",N33))","v":63},null,"",{"$f":"IF(ISERR(GETPIVOTDATA(\"body\",knt_tab!$M$3,\"zavodnik\",knt_tab!M34)),\"\",IF(GETPIVOTDATA(\"body\",knt_tab!$M$3,\"zavodnik\",knt_tab!M34)=0,\"\",knt_tab!M34))","v":""},{"$f":"IF(R33=\"\",\"\",GETPIVOTDATA(\"body\",knt_tab!$M$3,\"zavodnik\",R33))","v":""},null,4,{"$f":"IF(ISERR(GETPIVOTDATA(\"body\",knt_tab!$D$3,\"zavodnik\",knt_tab!D8)),\"\",IF(GETPIVOTDATA(\"body\",knt_tab!$D$3,\"zavodnik\",knt_tab!D8)=0,\"\",knt_tab!D8))","v":"Ciora Jakub"},{"$f":"IF(V33=\"\",\"\",GETPIVOTDATA(\"body\",knt_tab!$D$3,\"zavodnik\",V33))","v":61}]
[{"$f":"IF(B34=\"\",\"\",IF(C34=C33,A33,ROW(A34)-ROW($A$3)))","v":31},{"$f":"IF(ISERR(GETPIVOTDATA(\"body\",knt_tab!$A$3,\"zavodnik\",knt_tab!A35)),\"\",IF(GETPIVOTDATA(\"body\",knt_tab!$A$3,\"zavodnik\",knt_tab!A35)=0,\"\",knt_tab!A35))","v":"Pustějovský Tomáš"},{"$f":"IF(B34=\"\",\"\",GETPIVOTDATA(\"body\",knt_tab!$A$3,\"zavodnik\",B34))","v":48},null,90,{"$f":"IF(ISERR(GETPIVOTDATA(\"body\",knt_tab!$A$3,\"zavodnik\",knt_tab!A96)),\"\",IF(GETPIVOTDATA(\"body\",knt_tab!$A$3,\"zavodnik\",knt_tab!A96)=0,\"\",knt_tab!A96))","v":"Beníček Adam"},{"$f":"IF(F34=\"\",\"\",GETPIVOTDATA(\"body\",knt_tab!$A$3,\"zavodnik\",F34))","v":7},null,6,{"$f":"IF(ISERR(GETPIVOTDATA(\"body\",knt_tab!$AE$3,\"zavodnik\",knt_tab!AE10)),\"\",IF(GETPIVOTDATA(\"body\",knt_tab!$AE$3,\"zavodnik\",knt_tab!AE10)=0,\"\",knt_tab!AE10))","v":"Pavlica Tomáš"},{"$f":"IF(J34=\"\",\"\",GETPIVOTDATA(\"body\",knt_tab!$AE$3,\"zavodnik\",J34))","v":26},null,4,{"$f":"IF(ISERR(GETPIVOTDATA(\"body\",knt_tab!$S$3,\"zavodnik\",knt_tab!S8)),\"\",IF(GETPIVOTDATA(\"body\",knt_tab!$S$3,\"zavodnik\",knt_tab!S8)=0,\"\",knt_tab!S8))","v":"Malaczynski Filip"},{"$f":"IF(N34=\"\",\"\",GETPIVOTDATA(\"body\",knt_tab!$S$3,\"zavodnik\",N34))","v":51},null,null,null,null,null,5,{"$f":"IF(ISERR(GETPIVOTDATA(\"body\",knt_tab!$D$3,\"zavodnik\",knt_tab!D9)),\"\",IF(GETPIVOTDATA(\"body\",knt_tab!$D$3,\"zavodnik\",knt_tab!D9)=0,\"\",knt_tab!D9))","v":"Stark Vojtěch"},{"$f":"IF(V34=\"\",\"\",GETPIVOTDATA(\"body\",knt_tab!$D$3,\"zavodnik\",V34))","v":52}]
[31,{"$f":"IF(ISERR(GETPIVOTDATA(\"body\",knt_tab!$A$3,\"zavodnik\",knt_tab!A36)),\"\",IF(GETPIVOTDATA(\"body\",knt_tab!$A$3,\"zavodnik\",knt_tab!A36)=0,\"\",knt_tab!A36))","v":"Kocmanová Lucie"},{"$f":"IF(B35=\"\",\"\",GETPIVOTDATA(\"body\",knt_tab!$A$3,\"zavodnik\",B35))","v":48},null,90,{"$f":"IF(ISERR(GETPIVOTDATA(\"body\",knt_tab!$A$3,\"zavodnik\",knt_tab!A97)),\"\",IF(GETPIVOTDATA(\"body\",knt_tab!$A$3,\"zavodnik\",knt_tab!A97)=0,\"\",knt_tab!A97))","v":"To Adam"},{"$f":"IF(F35=\"\",\"\",GETPIVOTDATA(\"body\",knt_tab!$A$3,\"zavodnik\",F35))","v":7},null,7,{"$f":"IF(ISERR(GETPIVOTDATA(\"body\",knt_tab!$AE$3,\"zavodnik\",knt_tab!AE11)),\"\",IF(GETPIVOTDATA(\"body\",knt_tab!$AE$3,\"zavodnik\",knt_tab!AE11)=0,\"\",knt_tab!AE11))","v":"Raška Michael"},{"$f":"IF(J35=\"\",\"\",GETPIVOTDATA(\"body\",knt_tab!$AE$3,\"zavodnik\",J35))","v":25},null,5,{"$f":"IF(ISERR(GETPIVOTDATA(\"body\",knt_tab!$S$3,\"zavodnik\",knt_tab!S9)),\"\",IF(GETPIVOTDATA(\"body\",knt_tab!$S$3,\"zavodnik\",knt_tab!S9)=0,\"\",knt_tab!S9))","v":"Lindovský Jiří"},{"$f":"IF(N35=\"\",\"\",GETPIVOTDATA(\"body\",knt_tab!$S$3,\"zavodnik\",N35))","v":49},null,"mladší žákyně",null,null,null,6,{"$f":"IF(ISERR(GETPIVOTDATA(\"body\",knt_tab!$D$3,\"zavodnik\",knt_tab!D10)),\"\",IF(GETPIVOTDATA(\"body\",knt_tab!$D$3,\"zavodnik\",knt_tab!D10)=0,\"\",knt_tab!D10))","v":"To Vojtěch"},{"$f":"IF(V35=\"\",\"\",GETPIVOTDATA(\"body\",knt_tab!$D$3,\"zavodnik\",V35))","v":43}]
[33,{"$f":"IF(ISERR(GETPIVOTDATA(\"body\",knt_tab!$A$3,\"zavodnik\",knt_tab!A37)),\"\",IF(GETPIVOTDATA(\"body\",knt_tab!$A$3,\"zavodnik\",knt_tab!A37)=0,\"\",knt_tab!A37))","v":"Křížek Šimon"},{"$f":"IF(B36=\"\",\"\",GETPIVOTDATA(\"body\",knt_tab!$A$3,\"zavodnik\",B36))","v":47},null,90,{"$f":"IF(ISERR(GETPIVOTDATA(\"body\",knt_tab!$A$3,\"zavodnik\",knt_tab!A98)),\"\",IF(GETPIVOTDATA(\"body\",knt_tab!$A$3,\"zavodnik\",knt_tab!A98)=0,\"\",knt_tab!A98))","v":"Kožušník Václav"},{"$f":"IF(F36=\"\",\"\",GETPIVOTDATA(\"body\",knt_tab!$A$3,\"zavodnik\",F36))","v":7},null,8,{"$f":"IF(ISERR(GETPIVOTDATA(\"body\",knt_tab!$AE$3,\"zavodnik\",knt_tab!AE12)),\"\",IF(GETPIVOTDATA(\"body\",knt_tab!$AE$3,\"zavodnik\",knt_tab!AE12)=0,\"\",knt_tab!AE12))","v":"Pravda Jan"},{"$f":"IF(J36=\"\",\"\",GETPIVOTDATA(\"body\",knt_tab!$AE$3,\"zavodnik\",J36))","v":23},null,6,{"$f":"IF(ISERR(GETPIVOTDATA(\"body\",knt_tab!$S$3,\"zavodnik\",knt_tab!S10)),\"\",IF(GETPIVOTDATA(\"body\",knt_tab!$S$3,\"zavodnik\",knt_tab!S10)=0,\"\",knt_tab!S10))","v":"Křížek Šimon"},{"$f":"IF(N36=\"\",\"\",GETPIVOTDATA(\"body\",knt_tab!$S$3,\"zavodnik\",N36))","v":47},null,"Pořadí","Příjmení","body",null,7,{"$f":"IF(ISERR(GETPIVOTDATA(\"body\",knt_tab!$D$3,\"zavodnik\",knt_tab!D11)),\"\",IF(GETPIVOTDATA(\"body\",knt_tab!$D$3,\"zavodnik\",knt_tab!D11)=0,\"\",knt_tab!D11))","v":"Kuluris Manolis"},{"$f":"IF(V36=\"\",\"\",GETPIVOTDATA(\"body\",knt_tab!$D$3,\"zavodnik\",V36))","v":39}]
[33,{"$f":"IF(ISERR(GETPIVOTDATA(\"body\",knt_tab!$A$3,\"zavodnik\",knt_tab!A38)),\"\",IF(GETPIVOTDATA(\"body\",knt_tab!$A$3,\"zavodnik\",knt_tab!A38)=0,\"\",knt_tab!A38))","v":"Vlk František"},{"$f":"IF(B37=\"\",\"\",GETPIVOTDATA(\"body\",knt_tab!$A$3,\"zavodnik\",B37))","v":47},null,95,{"$f":"IF(ISERR(GETPIVOTDATA(\"body\",knt_tab!$A$3,\"zavodnik\",knt_tab!A99)),\"\",IF(GETPIVOTDATA(\"body\",knt_tab!$A$3,\"zavodnik\",knt_tab!A99)=0,\"\",knt_tab!A99))","v":"Baron Daniel"},{"$f":"IF(F37=\"\",\"\",GETPIVOTDATA(\"body\",knt_tab!$A$3,\"zavodnik\",F37))","v":6},null,9,{"$f":"IF(ISERR(GETPIVOTDATA(\"body\",knt_tab!$AE$3,\"zavodnik\",knt_tab!AE13)),\"\",IF(GETPIVOTDATA(\"body\",knt_tab!$AE$3,\"zavodnik\",knt_tab!AE13)=0,\"\",knt_tab!AE13))","v":"Mojžíšek Lukáš"},{"$f":"IF(J37=\"\",\"\",GETPIVOTDATA(\"body\",knt_tab!$AE$3,\"zavodnik\",J37))","v":19},null,7,{"$f":"IF(ISERR(GETPIVOTDATA(\"body\",knt_tab!$S$3,\"zavodnik\",knt_tab!S11)),\"\",IF(GETPIVOTDATA(\"body\",knt_tab!$S$3,\"zavodnik\",knt_tab!S11)=0,\"\",knt_tab!S11))","v":"Čebík Filip"},{"$f":"IF(N37=\"\",\"\",GETPIVOTDATA(\"body\",knt_tab!$S$3,\"zavodnik\",N37))","v":45},null,1,{"$f":"IF(ISERR(GETPIVOTDATA(\"body\",knt_tab!$J$3,\"zavodnik\",knt_tab!J5)),\"\",IF(GETPIVOTDATA(\"body\",knt_tab!$J$3,\"zavodnik\",knt_tab!J5)=0,\"\",knt_tab!J5))","v":"Kocmanová Lucie"},{"$f":"IF(R37=\"\",\"\",GETPIVOTDATA(\"body\",knt_tab!$J$3,\"zavodnik\",R37))","v":48},null,8,{"$f":"IF(ISERR(GETPIVOTDATA(\"body\",knt_tab!$D$3,\"zavodnik\",knt_tab!D12)),\"\",IF(GETPIVOTDATA(\"body\",knt_tab!$D$3,\"zavodnik\",knt_tab!D12)=0,\"\",knt_tab!D12))","v":"Kret Matyáš"},{"$f":"IF(V37=\"\",\"\",GETPIVOTDATA(\"body\",knt_tab!$D$3,\"zavodnik\",V37))","v":31}]
[35,{"$f":"IF(ISERR(GETPIVOTDATA(\"body\",knt_tab!$A$3,\"zavodnik\",knt_tab!A39)),\"\",IF(GETPIVOTDATA(\"body\",knt_tab!$A$3,\"zavodnik\",knt_tab!A39)=0,\"\",knt_tab!A39))","v":"Kaszperová Kristýna"},{"$f":"IF(B38=\"\",\"\",GETPIVOTDATA(\"body\",knt_tab!$A$3,\"zavodnik\",B38))","v":44},null,95,{"$f":"IF(ISERR(GETPIVOTDATA(\"body\",knt_tab!$A$3,\"zavodnik\",knt_tab!A100)),\"\",IF(GETPIVOTDATA(\"body\",knt_tab!$A$3,\"zavodnik\",knt_tab!A100)=0,\"\",knt_tab!A100))","v":"Kuzník Tadeáš"},{"$f":"IF(F38=\"\",\"\",GETPIVOTDATA(\"body\",knt_tab!$A$3,\"zavodnik\",F38))","v":6},null,10,{"$f":"IF(ISERR(GETPIVOTDATA(\"body\",knt_tab!$AE$3,\"zavodnik\",knt_tab!AE14)),\"\",IF(GETPIVOTDATA(\"body\",knt_tab!$AE$3,\"zavodnik\",knt_tab!AE14)=0,\"\",knt_tab!AE14))","v":"Šeděnka Richard"},{"$f":"IF(J38=\"\",\"\",GETPIVOTDATA(\"body\",knt_tab!$AE$3,\"zavodnik\",J38))","v":18},null,8,{"$f":"IF(ISERR(GETPIVOTDATA(\"body\",knt_tab!$S$3,\"zavodnik\",knt_tab!S12)),\"\",IF(GETPIVOTDATA(\"body\",knt_tab!$S$3,\"zavodnik\",knt_tab!S12)=0,\"\",knt_tab!S12))","v":"Kršňák Filip"},{"$f":"IF(N38=\"\",\"\",GETPIVOTDATA(\"body\",knt_tab!$S$3,\"zavodnik\",N38))","v":37},null,{"$f":"IF(R38=\"\",\"\",IF(S38=S37,Q37,ROW(Q38)-ROW($Q$36)))","v":2},{"$f":"IF(ISERR(GETPIVOTDATA(\"body\",knt_tab!$J$3,\"zavodnik\",knt_tab!J6)),\"\",IF(GETPIVOTDATA(\"body\",knt_tab!$J$3,\"zavodnik\",knt_tab!J6)=0,\"\",knt_tab!J6))","v":"Kaszperová Kristýna"},{"$f":"IF(R38=\"\",\"\",GETPIVOTDATA(\"body\",knt_tab!$J$3,\"zavodnik\",R38))","v":44},null,9,{"$f":"IF(ISERR(GETPIVOTDATA(\"body\",knt_tab!$D$3,\"zavodnik\",knt_tab!D13)),\"\",IF(GETPIVOTDATA(\"body\",knt_tab!$D$3,\"zavodnik\",knt_tab!D13)=0,\"\",knt_tab!D13))","v":"Přichystal Leon"},{"$f":"IF(V38=\"\",\"\",GETPIVOTDATA(\"body\",knt_tab!$D$3,\"zavodnik\",V38))","v":30}]
[36,{"$f":"IF(ISERR(GETPIVOTDATA(\"body\",knt_tab!$A$3,\"zavodnik\",knt_tab!A40)),\"\",IF(GETPIVOTDATA(\"body\",knt_tab!$A$3,\"zavodnik\",knt_tab!A40)=0,\"\",knt_tab!A40))","v":"To Vojtěch"},{"$f":"IF(B39=\"\",\"\",GETPIVOTDATA(\"body\",knt_tab!$A$3,\"zavodnik\",B39))","v":43},null,95,{"$f":"IF(ISERR(GETPIVOTDATA(\"body\",knt_tab!$A$3,\"zavodnik\",knt_tab!A101)),\"\",IF(GETPIVOTDATA(\"body\",knt_tab!$A$3,\"zavodnik\",knt_tab!A101)=0,\"\",knt_tab!A101))","v":"Neckář Matěj"},{"$f":"IF(F39=\"\",\"\",GETPIVOTDATA(\"body\",knt_tab!$A$3,\"zavodnik\",F39))","v":6},null,11,{"$f":"IF(ISERR(GETPIVOTDATA(\"body\",knt_tab!$AE$3,\"zavodnik\",knt_tab!AE15)),\"\",IF(GETPIVOTDATA(\"body\",knt_tab!$AE$3,\"zavodnik\",knt_tab!AE15)=0,\"\",knt_tab!AE15))","v":"Král Jakub"},{"$f":"IF(J39=\"\",\"\",GETPIVOTDATA(\"body\",knt_tab!$AE$3,\"zavodnik\",J39))","v":17},null,9,{"$f":"IF(ISERR(GETPIVOTDATA(\"body\",knt_tab!$S$3,\"zavodnik\",knt_tab!S13)),\"\",IF(GETPIVOTDATA(\"body\",knt_tab!$S$3,\"zavodnik\",knt_tab!S13)=0,\"\",knt_tab!S13))","v":"Fráňa Patrik"},{"$f":"IF(N39=\"\",\"\",GETPIVOTDATA(\"body\",knt_tab!$S$3,\"zavodnik\",N39))","v":26},null,3,{"$f":"IF(ISERR(GETPIVOTDATA(\"body\",knt_tab!$J$3,\"zavodnik\",knt_tab!J7)),\"\",IF(GETPIVOTDATA(\"body\",knt_tab!$J$3,\"zavodnik\",knt_tab!J7)=0,\"\",knt_tab!J7))","v":"Bukovjanová Charlotte"},{"$f":"IF(R39=\"\",\"\",GETPIVOTDATA(\"body\",knt_tab!$J$3,\"zavodnik\",R39))","v":39},null,10,{"$f":"IF(ISERR(GETPIVOTDATA(\"body\",knt_tab!$D$3,\"zavodnik\",knt_tab!D14)),\"\",IF(GETPIVOTDATA(\"body\",knt_tab!$D$3,\"zavodnik\",knt_tab!D14)=0,\"\",knt_tab!D14))","v":"Nuhlíček Michal"},{"$f":"IF(V39=\"\",\"\",GETPIVOTDATA(\"body\",knt_tab!$D$3,\"zavodnik\",V39))","v":29}]
[36,{"$f":"IF(ISERR(GETPIVOTDATA(\"body\",knt_tab!$A$3,\"zavodnik\",knt_tab!A41)),\"\",IF(GETPIVOTDATA(\"body\",knt_tab!$A$3,\"zavodnik\",knt_tab!A41)=0,\"\",knt_tab!A41))","v":"Tomek David"},{"$f":"IF(B40=\"\",\"\",GETPIVOTDATA(\"body\",knt_tab!$A$3,\"zavodnik\",B40))","v":43},null,98,{"$f":"IF(ISERR(GETPIVOTDATA(\"body\",knt_tab!$A$3,\"zavodnik\",knt_tab!A102)),\"\",IF(GETPIVOTDATA(\"body\",knt_tab!$A$3,\"zavodnik\",knt_tab!A102)=0,\"\",knt_tab!A102))","v":"Turčínek Tomáš"},{"$f":"IF(F40=\"\",\"\",GETPIVOTDATA(\"body\",knt_tab!$A$3,\"zavodnik\",F40))","v":5},null,12,{"$f":"IF(ISERR(GETPIVOTDATA(\"body\",knt_tab!$AE$3,\"zavodnik\",knt_tab!AE16)),\"\",IF(GETPIVOTDATA(\"body\",knt_tab!$AE$3,\"zavodnik\",knt_tab!AE16)=0,\"\",knt_tab!AE16))","v":"Kohn Pavel"},{"$f":"IF(J40=\"\",\"\",GETPIVOTDATA(\"body\",knt_tab!$AE$3,\"zavodnik\",J40))","v":16},null,10,{"$f":"IF(ISERR(GETPIVOTDATA(\"body\",knt_tab!$S$3,\"zavodnik\",knt_tab!S14)),\"\",IF(GETPIVOTDATA(\"body\",knt_tab!$S$3,\"zavodnik\",knt_tab!S14)=0,\"\",knt_tab!S14))","v":"Bulka Vojtěch"},{"$f":"IF(N40=\"\",\"\",GETPIVOTDATA(\"body\",knt_tab!$S$3,\"zavodnik\",N40))","v":25},null,"",{"$f":"IF(ISERR(GETPIVOTDATA(\"body\",knt_tab!$J$3,\"zavodnik\",knt_tab!J8)),\"\",IF(GETPIVOTDATA(\"body\",knt_tab!$J$3,\"zavodnik\",knt_tab!J8)=0,\"\",knt_tab!J8))","v":""},{"$f":"IF(R40=\"\",\"\",GETPIVOTDATA(\"body\",knt_tab!$J$3,\"zavodnik\",R40))","v":""},null,11,{"$f":"IF(ISERR(GETPIVOTDATA(\"body\",knt_tab!$D$3,\"zavodnik\",knt_tab!D15)),\"\",IF(GETPIVOTDATA(\"body\",knt_tab!$D$3,\"zavodnik\",knt_tab!D15)=0,\"\",knt_tab!D15))","v":"Nytra Sebastián"},{"$f":"IF(V40=\"\",\"\",GETPIVOTDATA(\"body\",knt_tab!$D$3,\"zavodnik\",V40))","v":11}]
[38,{"$f":"IF(ISERR(GETPIVOTDATA(\"body\",knt_tab!$A$3,\"zavodnik\",knt_tab!A42)),\"\",IF(GETPIVOTDATA(\"body\",knt_tab!$A$3,\"zavodnik\",knt_tab!A42)=0,\"\",knt_tab!A42))","v":"Kuluris Manolis"},{"$f":"IF(B41=\"\",\"\",GETPIVOTDATA(\"body\",knt_tab!$A$3,\"zavodnik\",B41))","v":39},null,98,{"$f":"IF(ISERR(GETPIVOTDATA(\"body\",knt_tab!$A$3,\"zavodnik\",knt_tab!A103)),\"\",IF(GETPIVOTDATA(\"body\",knt_tab!$A$3,\"zavodnik\",knt_tab!A103)=0,\"\",knt_tab!A103))","v":"Blažej Jan"},{"$f":"IF(F41=\"\",\"\",GETPIVOTDATA(\"body\",knt_tab!$A$3,\"zavodnik\",F41))","v":5},null,12,{"$f":"IF(ISERR(GETPIVOTDATA(\"body\",knt_tab!$AE$3,\"zavodnik\",knt_tab!AE17)),\"\",IF(GETPIVOTDATA(\"body\",knt_tab!$AE$3,\"zavodnik\",knt_tab!AE17)=0,\"\",knt_tab!AE17))","v":"Šmatelka Ondřej"},{"$f":"IF(J41=\"\",\"\",GETPIVOTDATA(\"body\",knt_tab!$AE$3,\"zavodnik\",J41))","v":16},null,11,{"$f":"IF(ISERR(GETPIVOTDATA(\"body\",knt_tab!$S$3,\"zavodnik\",knt_tab!S15)),\"\",IF(GETPIVOTDATA(\"body\",knt_tab!$S$3,\"zavodnik\",knt_tab!S15)=0,\"\",knt_tab!S15))","v":"Kunc Matěj"},{"$f":"IF(N41=\"\",\"\",GETPIVOTDATA(\"body\",knt_tab!$S$3,\"zavodnik\",N41))","v":24},null,"",{"$f":"IF(ISERR(GETPIVOTDATA(\"body\",knt_tab!$J$3,\"zavodnik\",knt_tab!J9)),\"\",IF(GETPIVOTDATA(\"body\",knt_tab!$J$3,\"zavodnik\",knt_tab!J9)=0,\"\",knt_tab!J9))","v":""},{"$f":"IF(R41=\"\",\"\",GETPIVOTDATA(\"body\",knt_tab!$J$3,\"zavodnik\",R41))","v":""},null,12,{"$f":"IF(ISERR(GETPIVOTDATA(\"body\",knt_tab!$D$3,\"zavodnik\",knt_tab!D16)),\"\",IF(GETPIVOTDATA(\"body\",knt_tab!$D$3,\"zavodnik\",knt_tab!D16)=0,\"\",knt_tab!D16))","v":"Jančata Deniel"},{"$f":"IF(V41=\"\",\"\",GETPIVOTDATA(\"body\",knt_tab!$D$3,\"zavodnik\",V41))","v":10}]
[38,{"$f":"IF(ISERR(GETPIVOTDATA(\"body\",knt_tab!$A$3,\"zavodnik\",knt_tab!A43)),\"\",IF(GETPIVOTDATA(\"body\",knt_tab!$A$3,\"zavodnik\",knt_tab!A43)=0,\"\",knt_tab!A43))","v":"Valošek Jakub"},{"$f":"IF(B42=\"\",\"\",GETPIVOTDATA(\"body\",knt_tab!$A$3,\"zavodnik\",B42))","v":39},null,98,{"$f":"IF(ISERR(GETPIVOTDATA(\"body\",knt_tab!$A$3,\"zavodnik\",knt_tab!A104)),\"\",IF(GETPIVOTDATA(\"body\",knt_tab!$A$3,\"zavodnik\",knt_tab!A104)=0,\"\",knt_tab!A104))","v":"Pupíková Adéla"},{"$f":"IF(F42=\"\",\"\",GETPIVOTDATA(\"body\",knt_tab!$A$3,\"zavodnik\",F42))","v":5},null,14,{"$f":"IF(ISERR(GETPIVOTDATA(\"body\",knt_tab!$AE$3,\"zavodnik\",knt_tab!AE18)),\"\",IF(GETPIVOTDATA(\"body\",knt_tab!$AE$3,\"zavodnik\",knt_tab!AE18)=0,\"\",knt_tab!AE18))","v":"Gřešek Vít"},{"$f":"IF(J42=\"\",\"\",GETPIVOTDATA(\"body\",knt_tab!$AE$3,\"zavodnik\",J42))","v":8},null,12,{"$f":"IF(ISERR(GETPIVOTDATA(\"body\",knt_tab!$S$3,\"zavodnik\",knt_tab!S16)),\"\",IF(GETPIVOTDATA(\"body\",knt_tab!$S$3,\"zavodnik\",knt_tab!S16)=0,\"\",knt_tab!S16))","v":"Pavlica Lukáš"},{"$f":"IF(N42=\"\",\"\",GETPIVOTDATA(\"body\",knt_tab!$S$3,\"zavodnik\",N42))","v":23},null,"",{"$f":"IF(ISERR(GETPIVOTDATA(\"body\",knt_tab!$J$3,\"zavodnik\",knt_tab!J10)),\"\",IF(GETPIVOTDATA(\"body\",knt_tab!$J$3,\"zavodnik\",knt_tab!J10)=0,\"\",knt_tab!J10))","v":""},{"$f":"IF(R42=\"\",\"\",GETPIVOTDATA(\"body\",knt_tab!$J$3,\"zavodnik\",R42))","v":""},null,12,{"$f":"IF(ISERR(GETPIVOTDATA(\"body\",knt_tab!$D$3,\"zavodnik\",knt_tab!D17)),\"\",IF(GETPIVOTDATA(\"body\",knt_tab!$D$3,\"zavodnik\",knt_tab!D17)=0,\"\",knt_tab!D17))","v":"Vaněk David"},{"$f":"IF(V42=\"\",\"\",GETPIVOTDATA(\"body\",knt_tab!$D$3,\"zavodnik\",V42))","v":10}]
[38,{"$f":"IF(ISERR(GETPIVOTDATA(\"body\",knt_tab!$A$3,\"zavodnik\",knt_tab!A44)),\"\",IF(GETPIVOTDATA(\"body\",knt_tab!$A$3,\"zavodnik\",knt_tab!A44)=0,\"\",knt_tab!A44))","v":"Plaček Viktor"},{"$f":"IF(B43=\"\",\"\",GETPIVOTDATA(\"body\",knt_tab!$A$3,\"zavodnik\",B43))","v":39},null,98,{"$f":"IF(ISERR(GETPIVOTDATA(\"body\",knt_tab!$A$3,\"zavodnik\",knt_tab!A105)),\"\",IF(GETPIVOTDATA(\"body\",knt_tab!$A$3,\"zavodnik\",knt_tab!A105)=0,\"\",knt_tab!A105))","v":"Románek Jakub"},{"$f":"IF(F43=\"\",\"\",GETPIVOTDATA(\"body\",knt_tab!$A$3,\"zavodnik\",F43))","v":5},null,"",{"$f":"IF(ISERR(GETPIVOTDATA(\"body\",knt_tab!$AE$3,\"zavodnik\",knt_tab!AE19)),\"\",IF(GETPIVOTDATA(\"body\",knt_tab!$AE$3,\"zavodnik\",knt_tab!AE19)=0,\"\",knt_tab!AE19))","v":""},{"$f":"IF(J43=\"\",\"\",GETPIVOTDATA(\"body\",knt_tab!$AE$3,\"zavodnik\",J43))","v":""},null,13,{"$f":"IF(ISERR(GETPIVOTDATA(\"body\",knt_tab!$S$3,\"zavodnik\",knt_tab!S17)),\"\",IF(GETPIVOTDATA(\"body\",knt_tab!$S$3,\"zavodnik\",knt_tab!S17)=0,\"\",knt_tab!S17))","v":"Kolář Daniel"},{"$f":"IF(N43=\"\",\"\",GETPIVOTDATA(\"body\",knt_tab!$S$3,\"zavodnik\",N43))","v":10},null,"",{"$f":"IF(ISERR(GETPIVOTDATA(\"body\",knt_tab!$J$3,\"zavodnik\",knt_tab!J11)),\"\",IF(GETPIVOTDATA(\"body\",knt_tab!$J$3,\"zavodnik\",knt_tab!J11)=0,\"\",knt_tab!J11))","v":""},{"$f":"IF(R43=\"\",\"\",GETPIVOTDATA(\"body\",knt_tab!$J$3,\"zavodnik\",R43))","v":""},null,14,{"$f":"IF(ISERR(GETPIVOTDATA(\"body\",knt_tab!$D$3,\"zavodnik\",knt_tab!D18)),\"\",IF(GETPIVOTDATA(\"body\",knt_tab!$D$3,\"zavodnik\",knt_tab!D18)=0,\"\",knt_tab!D18))","v":"Šelong Tadeáš"},{"$f":"IF(V43=\"\",\"\",GETPIVOTDATA(\"body\",knt_tab!$D$3,\"zavodnik\",V43))","v":8}]
[38,{"$f":"IF(ISERR(GETPIVOTDATA(\"body\",knt_tab!$A$3,\"zavodnik\",knt_tab!A45)),\"\",IF(GETPIVOTDATA(\"body\",knt_tab!$A$3,\"zavodnik\",knt_tab!A45)=0,\"\",knt_tab!A45))","v":"Schwarz Šimon"},{"$f":"IF(B44=\"\",\"\",GETPIVOTDATA(\"body\",knt_tab!$A$3,\"zavodnik\",B44))","v":39},null,98,{"$f":"IF(ISERR(GETPIVOTDATA(\"body\",knt_tab!$A$3,\"zavodnik\",knt_tab!A106)),\"\",IF(GETPIVOTDATA(\"body\",knt_tab!$A$3,\"zavodnik\",knt_tab!A106)=0,\"\",knt_tab!A106))","v":"Fojtík Daniel"},{"$f":"IF(F44=\"\",\"\",GETPIVOTDATA(\"body\",knt_tab!$A$3,\"zavodnik\",F44))","v":5},null,"",{"$f":"IF(ISERR(GETPIVOTDATA(\"body\",knt_tab!$AE$3,\"zavodnik\",knt_tab!AE20)),\"\",IF(GETPIVOTDATA(\"body\",knt_tab!$AE$3,\"zavodnik\",knt_tab!AE20)=0,\"\",knt_tab!AE20))","v":""},{"$f":"IF(J44=\"\",\"\",GETPIVOTDATA(\"body\",knt_tab!$AE$3,\"zavodnik\",J44))","v":""},null,14,{"$f":"IF(ISERR(GETPIVOTDATA(\"body\",knt_tab!$S$3,\"zavodnik\",knt_tab!S18)),\"\",IF(GETPIVOTDATA(\"body\",knt_tab!$S$3,\"zavodnik\",knt_tab!S18)=0,\"\",knt_tab!S18))","v":"Fulneček Šimon"},{"$f":"IF(N44=\"\",\"\",GETPIVOTDATA(\"body\",knt_tab!$S$3,\"zavodnik\",N44))","v":6},null,null,null,null,null,15,{"$f":"IF(ISERR(GETPIVOTDATA(\"body\",knt_tab!$D$3,\"zavodnik\",knt_tab!D19)),\"\",IF(GETPIVOTDATA(\"body\",knt_tab!$D$3,\"zavodnik\",knt_tab!D19)=0,\"\",knt_tab!D19))","v":"Kožušník Václav"},{"$f":"IF(V44=\"\",\"\",GETPIVOTDATA(\"body\",knt_tab!$D$3,\"zavodnik\",V44))","v":7}]
[42,{"$f":"IF(ISERR(GETPIVOTDATA(\"body\",knt_tab!$A$3,\"zavodnik\",knt_tab!A46)),\"\",IF(GETPIVOTDATA(\"body\",knt_tab!$A$3,\"zavodnik\",knt_tab!A46)=0,\"\",knt_tab!A46))","v":"Kršňák Filip"},{"$f":"IF(B45=\"\",\"\",GETPIVOTDATA(\"body\",knt_tab!$A$3,\"zavodnik\",B45))","v":37},null,103,{"$f":"IF(ISERR(GETPIVOTDATA(\"body\",knt_tab!$A$3,\"zavodnik\",knt_tab!A107)),\"\",IF(GETPIVOTDATA(\"body\",knt_tab!$A$3,\"zavodnik\",knt_tab!A107)=0,\"\",knt_tab!A107))","v":"Kosťová Barbora"},{"$f":"IF(F45=\"\",\"\",GETPIVOTDATA(\"body\",knt_tab!$A$3,\"zavodnik\",F45))","v":4},null,"",{"$f":"IF(ISERR(GETPIVOTDATA(\"body\",knt_tab!$AE$3,\"zavodnik\",knt_tab!AE21)),\"\",IF(GETPIVOTDATA(\"body\",knt_tab!$AE$3,\"zavodnik\",knt_tab!AE21)=0,\"\",knt_tab!AE21))","v":""},{"$f":"IF(J45=\"\",\"\",GETPIVOTDATA(\"body\",knt_tab!$AE$3,\"zavodnik\",J45))","v":""},null,{"$f":"IF(N45=\"\",\"\",IF(O45=O44,M44,ROW(M45)-ROW($M$30)))","v":15},{"$f":"IF(ISERR(GETPIVOTDATA(\"body\",knt_tab!$S$3,\"zavodnik\",knt_tab!S19)),\"\",IF(GETPIVOTDATA(\"body\",knt_tab!$S$3,\"zavodnik\",knt_tab!S19)=0,\"\",knt_tab!S19))","v":"Turčínek Tomáš"},{"$f":"IF(N45=\"\",\"\",GETPIVOTDATA(\"body\",knt_tab!$S$3,\"zavodnik\",N45))","v":5},null,"mladší žáci",null,null,null,16,{"$f":"IF(ISERR(GETPIVOTDATA(\"body\",knt_tab!$D$3,\"zavodnik\",knt_tab!D20)),\"\",IF(GETPIVOTDATA(\"body\",knt_tab!$D$3,\"zavodnik\",knt_tab!D20)=0,\"\",knt_tab!D20))","v":"Baron Daniel"},{"$f":"IF(V45=\"\",\"\",GETPIVOTDATA(\"body\",knt_tab!$D$3,\"zavodnik\",V45))","v":6}]
[43,{"$f":"IF(ISERR(GETPIVOTDATA(\"body\",knt_tab!$A$3,\"zavodnik\",knt_tab!A47)),\"\",IF(GETPIVOTDATA(\"body\",knt_tab!$A$3,\"zavodnik\",knt_tab!A47)=0,\"\",knt_tab!A47))","v":"Pavlica Tomáš"},{"$f":"IF(B46=\"\",\"\",GETPIVOTDATA(\"body\",knt_tab!$A$3,\"zavodnik\",B46))","v":36},null,103,{"$f":"IF(ISERR(GETPIVOTDATA(\"body\",knt_tab!$A$3,\"zavodnik\",knt_tab!A108)),\"\",IF(GETPIVOTDATA(\"body\",knt_tab!$A$3,\"zavodnik\",knt_tab!A108)=0,\"\",knt_tab!A108))","v":"Kožušník Vojtěch"},{"$f":"IF(F46=\"\",\"\",GETPIVOTDATA(\"body\",knt_tab!$A$3,\"zavodnik\",F46))","v":4},null,null,null,null,null,16,{"$f":"IF(ISERR(GETPIVOTDATA(\"body\",knt_tab!$S$3,\"zavodnik\",knt_tab!S20)),\"\",IF(GETPIVOTDATA(\"body\",knt_tab!$S$3,\"zavodnik\",knt_tab!S20)=0,\"\",knt_tab!S20))","v":"Pustka Robin"},{"$f":"IF(N46=\"\",\"\",GETPIVOTDATA(\"body\",knt_tab!$S$3,\"zavodnik\",N46))","v":1},null,"Pořadí","Příjmení","body",null,17,{"$f":"IF(ISERR(GETPIVOTDATA(\"body\",knt_tab!$D$3,\"zavodnik\",knt_tab!D21)),\"\",IF(GETPIVOTDATA(\"body\",knt_tab!$D$3,\"zavodnik\",knt_tab!D21)=0,\"\",knt_tab!D21))","v":"Macháček Tomáš"},{"$f":"IF(V46=\"\",\"\",GETPIVOTDATA(\"body\",knt_tab!$D$3,\"zavodnik\",V46))","v":4}]
[43,{"$f":"IF(ISERR(GETPIVOTDATA(\"body\",knt_tab!$A$3,\"zavodnik\",knt_tab!A48)),\"\",IF(GETPIVOTDATA(\"body\",knt_tab!$A$3,\"zavodnik\",knt_tab!A48)=0,\"\",knt_tab!A48))","v":"Vavřínová Pavla"},{"$f":"IF(B47=\"\",\"\",GETPIVOTDATA(\"body\",knt_tab!$A$3,\"zavodnik\",B47))","v":36},null,103,{"$f":"IF(ISERR(GETPIVOTDATA(\"body\",knt_tab!$A$3,\"zavodnik\",knt_tab!A109)),\"\",IF(GETPIVOTDATA(\"body\",knt_tab!$A$3,\"zavodnik\",knt_tab!A109)=0,\"\",knt_tab!A109))","v":"Krčmář Michal"},{"$f":"IF(F47=\"\",\"\",GETPIVOTDATA(\"body\",knt_tab!$A$3,\"zavodnik\",F47))","v":4},null,"ženy",null,null,null,"",{"$f":"IF(ISERR(GETPIVOTDATA(\"body\",knt_tab!$S$3,\"zavodnik\",knt_tab!S21)),\"\",IF(GETPIVOTDATA(\"body\",knt_tab!$S$3,\"zavodnik\",knt_tab!S21)=0,\"\",knt_tab!S21))","v":""},{"$f":"IF(N47=\"\",\"\",GETPIVOTDATA(\"body\",knt_tab!$S$3,\"zavodnik\",N47))","v":""},null,1,{"$f":"IF(ISERR(GETPIVOTDATA(\"body\",knt_tab!$G$3,\"zavodnik\",knt_tab!G5)),\"\",IF(GETPIVOTDATA(\"body\",knt_tab!$G$3,\"zavodnik\",knt_tab!G5)=0,\"\",knt_tab!G5))","v":"Zwilling Šimon"},{"$f":"IF(R47=\"\",\"\",GETPIVOTDATA(\"body\",knt_tab!$G$3,\"zavodnik\",R47))","v":84},null,17,{"$f":"IF(ISERR(GETPIVOTDATA(\"body\",knt_tab!$D$3,\"zavodnik\",knt_tab!D22)),\"\",IF(GETPIVOTDATA(\"body\",knt_tab!$D$3,\"zavodnik\",knt_tab!D22)=0,\"\",knt_tab!D22))","v":"Krčmář Michal"},{"$f":"IF(V47=\"\",\"\",GETPIVOTDATA(\"body\",knt_tab!$D$3,\"zavodnik\",V47))","v":4}]
[{"$f":"IF(B48=\"\",\"\",IF(C48=C47,A47,ROW(A48)-ROW($A$3)))","v":45},{"$f":"IF(ISERR(GETPIVOTDATA(\"body\",knt_tab!$A$3,\"zavodnik\",knt_tab!A49)),\"\",IF(GETPIVOTDATA(\"body\",knt_tab!$A$3,\"zavodnik\",knt_tab!A49)=0,\"\",knt_tab!A49))","v":"Kanclíř Šimon"},{"$f":"IF(B48=\"\",\"\",GETPIVOTDATA(\"body\",knt_tab!$A$3,\"zavodnik\",B48))","v":35},null,103,{"$f":"IF(ISERR(GETPIVOTDATA(\"body\",knt_tab!$A$3,\"zavodnik\",knt_tab!A110)),\"\",IF(GETPIVOTDATA(\"body\",knt_tab!$A$3,\"zavodnik\",knt_tab!A110)=0,\"\",knt_tab!A110))","v":"Buranyč Filip"},{"$f":"IF(F48=\"\",\"\",GETPIVOTDATA(\"body\",knt_tab!$A$3,\"zavodnik\",F48))","v":4},null,"Pořadí","Příjmení","body",null,"",{"$f":"IF(ISERR(GETPIVOTDATA(\"body\",knt_tab!$S$3,\"zavodnik\",knt_tab!S22)),\"\",IF(GETPIVOTDATA(\"body\",knt_tab!$S$3,\"zavodnik\",knt_tab!S22)=0,\"\",knt_tab!S22))","v":""},{"$f":"IF(N48=\"\",\"\",GETPIVOTDATA(\"body\",knt_tab!$S$3,\"zavodnik\",N48))","v":""},null,{"$f":"IF(R48=\"\",\"\",IF(S48=S47,Q47,ROW(Q48)-ROW($Q$46)))","v":2},{"$f":"IF(ISERR(GETPIVOTDATA(\"body\",knt_tab!$G$3,\"zavodnik\",knt_tab!G6)),\"\",IF(GETPIVOTDATA(\"body\",knt_tab!$G$3,\"zavodnik\",knt_tab!G6)=0,\"\",knt_tab!G6))","v":"Baudiš Michal"},{"$f":"IF(R48=\"\",\"\",GETPIVOTDATA(\"body\",knt_tab!$G$3,\"zavodnik\",R48))","v":69},null,19,{"$f":"IF(ISERR(GETPIVOTDATA(\"body\",knt_tab!$D$3,\"zavodnik\",knt_tab!D23)),\"\",IF(GETPIVOTDATA(\"body\",knt_tab!$D$3,\"zavodnik\",knt_tab!D23)=0,\"\",knt_tab!D23))","v":"Karbula Ondřej"},{"$f":"IF(V48=\"\",\"\",GETPIVOTDATA(\"body\",knt_tab!$D$3,\"zavodnik\",V48))","v":2}]
[45,{"$f":"IF(ISERR(GETPIVOTDATA(\"body\",knt_tab!$A$3,\"zavodnik\",knt_tab!A50)),\"\",IF(GETPIVOTDATA(\"body\",knt_tab!$A$3,\"zavodnik\",knt_tab!A50)=0,\"\",knt_tab!A50))","v":"Seibert Marian"},{"$f":"IF(B49=\"\",\"\",GETPIVOTDATA(\"body\",knt_tab!$A$3,\"zavodnik\",B49))","v":35},null,103,{"$f":"IF(ISERR(GETPIVOTDATA(\"body\",knt_tab!$A$3,\"zavodnik\",knt_tab!A111)),\"\",IF(GETPIVOTDATA(\"body\",knt_tab!$A$3,\"zavodnik\",knt_tab!A111)=0,\"\",knt_tab!A111))","v":"Šotola Kryštof"},{"$f":"IF(F49=\"\",\"\",GETPIVOTDATA(\"body\",knt_tab!$A$3,\"zavodnik\",F49))","v":4},null,1,{"$f":"IF(ISERR(GETPIVOTDATA(\"body\",knt_tab!$AH$3,\"zavodnik\",knt_tab!AH5)),\"\",IF(GETPIVOTDATA(\"body\",knt_tab!$AH$3,\"zavodnik\",knt_tab!AH5)=0,\"\",knt_tab!AH5))","v":"Martínková Adéla"},{"$f":"IF(J49=\"\",\"\",GETPIVOTDATA(\"body\",knt_tab!$AH$3,\"zavodnik\",J49))","v":53},null,"",{"$f":"IF(ISERR(GETPIVOTDATA(\"body\",knt_tab!$S$3,\"zavodnik\",knt_tab!S23)),\"\",IF(GETPIVOTDATA(\"body\",knt_tab!$S$3,\"zavodnik\",knt_tab!S23)=0,\"\",knt_tab!S23))","v":""},{"$f":"IF(N49=\"\",\"\",GETPIVOTDATA(\"body\",knt_tab!$S$3,\"zavodnik\",N49))","v":""},null,3,{"$f":"IF(ISERR(GETPIVOTDATA(\"body\",knt_tab!$G$3,\"zavodnik\",knt_tab!G7)),\"\",IF(GETPIVOTDATA(\"body\",knt_tab!$G$3,\"zavodnik\",knt_tab!G7)=0,\"\",knt_tab!G7))","v":"Pospíšil Jan"},{"$f":"IF(R49=\"\",\"\",GETPIVOTDATA(\"body\",knt_tab!$G$3,\"zavodnik\",R49))","v":62},null,19,{"$f":"IF(ISERR(GETPIVOTDATA(\"body\",knt_tab!$D$3,\"zavodnik\",knt_tab!D24)),\"\",IF(GETPIVOTDATA(\"body\",knt_tab!$D$3,\"zavodnik\",knt_tab!D24)=0,\"\",knt_tab!D24))","v":"Stránský David"},{"$f":"IF(V49=\"\",\"\",GETPIVOTDATA(\"body\",knt_tab!$D$3,\"zavodnik\",V49))","v":2}]
[45,{"$f":"IF(ISERR(GETPIVOTDATA(\"body\",knt_tab!$A$3,\"zavodnik\",knt_tab!A51)),\"\",IF(GETPIVOTDATA(\"body\",knt_tab!$A$3,\"zavodnik\",knt_tab!A51)=0,\"\",knt_tab!A51))","v":"Čerchla Michal"},{"$f":"IF(B50=\"\",\"\",GETPIVOTDATA(\"body\",knt_tab!$A$3,\"zavodnik\",B50))","v":35},null,103,{"$f":"IF(ISERR(GETPIVOTDATA(\"body\",knt_tab!$A$3,\"zavodnik\",knt_tab!A112)),\"\",IF(GETPIVOTDATA(\"body\",knt_tab!$A$3,\"zavodnik\",knt_tab!A112)=0,\"\",knt_tab!A112))","v":"Bernacký Mikuláš"},{"$f":"IF(F50=\"\",\"\",GETPIVOTDATA(\"body\",knt_tab!$A$3,\"zavodnik\",F50))","v":4},null,{"$f":"IF(J50=\"\",\"\",IF(K50=K49,I49,ROW(I50)-ROW($I$48)))","v":2},{"$f":"IF(ISERR(GETPIVOTDATA(\"body\",knt_tab!$AH$3,\"zavodnik\",knt_tab!AH6)),\"\",IF(GETPIVOTDATA(\"body\",knt_tab!$AH$3,\"zavodnik\",knt_tab!AH6)=0,\"\",knt_tab!AH6))","v":"Polášková Kristýna"},{"$f":"IF(J50=\"\",\"\",GETPIVOTDATA(\"body\",knt_tab!$AH$3,\"zavodnik\",J50))","v":48},null,null,null,null,null,4,{"$f":"IF(ISERR(GETPIVOTDATA(\"body\",knt_tab!$G$3,\"zavodnik\",knt_tab!G8)),\"\",IF(GETPIVOTDATA(\"body\",knt_tab!$G$3,\"zavodnik\",knt_tab!G8)=0,\"\",knt_tab!G8))","v":"Vlk František"},{"$f":"IF(R50=\"\",\"\",GETPIVOTDATA(\"body\",knt_tab!$G$3,\"zavodnik\",R50))","v":47},null,21,{"$f":"IF(ISERR(GETPIVOTDATA(\"body\",knt_tab!$D$3,\"zavodnik\",knt_tab!D25)),\"\",IF(GETPIVOTDATA(\"body\",knt_tab!$D$3,\"zavodnik\",knt_tab!D25)=0,\"\",knt_tab!D25))","v":"Staněk Patrik"},{"$f":"IF(V50=\"\",\"\",GETPIVOTDATA(\"body\",knt_tab!$D$3,\"zavodnik\",V50))","v":1}]
[48,{"$f":"IF(ISERR(GETPIVOTDATA(\"body\",knt_tab!$A$3,\"zavodnik\",knt_tab!A52)),\"\",IF(GETPIVOTDATA(\"body\",knt_tab!$A$3,\"zavodnik\",knt_tab!A52)=0,\"\",knt_tab!A52))","v":"Meixner Michal"},{"$f":"IF(B51=\"\",\"\",GETPIVOTDATA(\"body\",knt_tab!$A$3,\"zavodnik\",B51))","v":34},null,103,{"$f":"IF(ISERR(GETPIVOTDATA(\"body\",knt_tab!$A$3,\"zavodnik\",knt_tab!A113)),\"\",IF(GETPIVOTDATA(\"body\",knt_tab!$A$3,\"zavodnik\",knt_tab!A113)=0,\"\",knt_tab!A113))","v":"Krischke Fabien"},{"$f":"IF(F51=\"\",\"\",GETPIVOTDATA(\"body\",knt_tab!$A$3,\"zavodnik\",F51))","v":4},null,3,{"$f":"IF(ISERR(GETPIVOTDATA(\"body\",knt_tab!$AH$3,\"zavodnik\",knt_tab!AH7)),\"\",IF(GETPIVOTDATA(\"body\",knt_tab!$AH$3,\"zavodnik\",knt_tab!AH7)=0,\"\",knt_tab!AH7))","v":"Čerchlová Markéta"},{"$f":"IF(J51=\"\",\"\",GETPIVOTDATA(\"body\",knt_tab!$AH$3,\"zavodnik\",J51))","v":12},null,"starší žákyně",null,null,null,5,{"$f":"IF(ISERR(GETPIVOTDATA(\"body\",knt_tab!$G$3,\"zavodnik\",knt_tab!G9)),\"\",IF(GETPIVOTDATA(\"body\",knt_tab!$G$3,\"zavodnik\",knt_tab!G9)=0,\"\",knt_tab!G9))","v":"Valošek Jakub"},{"$f":"IF(R51=\"\",\"\",GETPIVOTDATA(\"body\",knt_tab!$G$3,\"zavodnik\",R51))","v":39},null,21,{"$f":"IF(ISERR(GETPIVOTDATA(\"body\",knt_tab!$D$3,\"zavodnik\",knt_tab!D26)),\"\",IF(GETPIVOTDATA(\"body\",knt_tab!$D$3,\"zavodnik\",knt_tab!D26)=0,\"\",knt_tab!D26))","v":"Bystrianský Jan"},{"$f":"IF(V51=\"\",\"\",GETPIVOTDATA(\"body\",knt_tab!$D$3,\"zavodnik\",V51))","v":1}]
[49,{"$f":"IF(ISERR(GETPIVOTDATA(\"body\",knt_tab!$A$3,\"zavodnik\",knt_tab!A53)),\"\",IF(GETPIVOTDATA(\"body\",knt_tab!$A$3,\"zavodnik\",knt_tab!A53)=0,\"\",knt_tab!A53))","v":"Kret Matyáš"},{"$f":"IF(B52=\"\",\"\",GETPIVOTDATA(\"body\",knt_tab!$A$3,\"zavodnik\",B52))","v":31},null,103,{"$f":"IF(ISERR(GETPIVOTDATA(\"body\",knt_tab!$A$3,\"zavodnik\",knt_tab!A114)),\"\",IF(GETPIVOTDATA(\"body\",knt_tab!$A$3,\"zavodnik\",knt_tab!A114)=0,\"\",knt_tab!A114))","v":"Macháček Tomáš"},{"$f":"IF(F52=\"\",\"\",GETPIVOTDATA(\"body\",knt_tab!$A$3,\"zavodnik\",F52))","v":4},null,"",{"$f":"IF(ISERR(GETPIVOTDATA(\"body\",knt_tab!$AH$3,\"zavodnik\",knt_tab!AH8)),\"\",IF(GETPIVOTDATA(\"body\",knt_tab!$AH$3,\"zavodnik\",knt_tab!AH8)=0,\"\",knt_tab!AH8))","v":""},{"$f":"IF(J52=\"\",\"\",GETPIVOTDATA(\"body\",knt_tab!$AH$3,\"zavodnik\",J52))","v":""},null,"Pořadí","Příjmení","body",null,5,{"$f":"IF(ISERR(GETPIVOTDATA(\"body\",knt_tab!$G$3,\"zavodnik\",knt_tab!G10)),\"\",IF(GETPIVOTDATA(\"body\",knt_tab!$G$3,\"zavodnik\",knt_tab!G10)=0,\"\",knt_tab!G10))","v":"Schwarz Šimon"},{"$f":"IF(R52=\"\",\"\",GETPIVOTDATA(\"body\",knt_tab!$G$3,\"zavodnik\",R52))","v":39},null,21,{"$f":"IF(ISERR(GETPIVOTDATA(\"body\",knt_tab!$D$3,\"zavodnik\",knt_tab!D27)),\"\",IF(GETPIVOTDATA(\"body\",knt_tab!$D$3,\"zavodnik\",knt_tab!D27)=0,\"\",knt_tab!D27))","v":"Malík Jakub"},{"$f":"IF(V52=\"\",\"\",GETPIVOTDATA(\"body\",knt_tab!$D$3,\"zavodnik\",V52))","v":1}]
[50,{"$f":"IF(ISERR(GETPIVOTDATA(\"body\",knt_tab!$A$3,\"zavodnik\",knt_tab!A54)),\"\",IF(GETPIVOTDATA(\"body\",knt_tab!$A$3,\"zavodnik\",knt_tab!A54)=0,\"\",knt_tab!A54))","v":"Přichystal Leon"},{"$f":"IF(B53=\"\",\"\",GETPIVOTDATA(\"body\",knt_tab!$A$3,\"zavodnik\",B53))","v":30},null,111,{"$f":"IF(ISERR(GETPIVOTDATA(\"body\",knt_tab!$A$3,\"zavodnik\",knt_tab!A115)),\"\",IF(GETPIVOTDATA(\"body\",knt_tab!$A$3,\"zavodnik\",knt_tab!A115)=0,\"\",knt_tab!A115))","v":"Stránský David"},{"$f":"IF(F53=\"\",\"\",GETPIVOTDATA(\"body\",knt_tab!$A$3,\"zavodnik\",F53))","v":2},null,"",{"$f":"IF(ISERR(GETPIVOTDATA(\"body\",knt_tab!$AH$3,\"zavodnik\",knt_tab!AH9)),\"\",IF(GETPIVOTDATA(\"body\",knt_tab!$AH$3,\"zavodnik\",knt_tab!AH9)=0,\"\",knt_tab!AH9))","v":""},{"$f":"IF(J53=\"\",\"\",GETPIVOTDATA(\"body\",knt_tab!$AH$3,\"zavodnik\",J53))","v":""},null,1,{"$f":"IF(ISERR(GETPIVOTDATA(\"body\",knt_tab!$P$3,\"zavodnik\",knt_tab!P5)),\"\",IF(GETPIVOTDATA(\"body\",knt_tab!$P$3,\"zavodnik\",knt_tab!P5)=0,\"\",knt_tab!P5))","v":"Kuželová Dominika"},{"$f":"IF(N53=\"\",\"\",GETPIVOTDATA(\"body\",knt_tab!$P$3,\"zavodnik\",N53))","v":123},null,5,{"$f":"IF(ISERR(GETPIVOTDATA(\"body\",knt_tab!$G$3,\"zavodnik\",knt_tab!G11)),\"\",IF(GETPIVOTDATA(\"body\",knt_tab!$G$3,\"zavodnik\",knt_tab!G11)=0,\"\",knt_tab!G11))","v":"Plaček Viktor"},{"$f":"IF(R53=\"\",\"\",GETPIVOTDATA(\"body\",knt_tab!$G$3,\"zavodnik\",R53))","v":39},null,21,{"$f":"IF(ISERR(GETPIVOTDATA(\"body\",knt_tab!$D$3,\"zavodnik\",knt_tab!D28)),\"\",IF(GETPIVOTDATA(\"body\",knt_tab!$D$3,\"zavodnik\",knt_tab!D28)=0,\"\",knt_tab!D28))","v":"Buroň Petr"},{"$f":"IF(V53=\"\",\"\",GETPIVOTDATA(\"body\",knt_tab!$D$3,\"zavodnik\",V53))","v":1}]
[51,{"$f":"IF(ISERR(GETPIVOTDATA(\"body\",knt_tab!$A$3,\"zavodnik\",knt_tab!A55)),\"\",IF(GETPIVOTDATA(\"body\",knt_tab!$A$3,\"zavodnik\",knt_tab!A55)=0,\"\",knt_tab!A55))","v":"Pavlík Lukáš"},{"$f":"IF(B54=\"\",\"\",GETPIVOTDATA(\"body\",knt_tab!$A$3,\"zavodnik\",B54))","v":29},null,111,{"$f":"IF(ISERR(GETPIVOTDATA(\"body\",knt_tab!$A$3,\"zavodnik\",knt_tab!A116)),\"\",IF(GETPIVOTDATA(\"body\",knt_tab!$A$3,\"zavodnik\",knt_tab!A116)=0,\"\",knt_tab!A116))","v":"Karbula Ondřej"},{"$f":"IF(F54=\"\",\"\",GETPIVOTDATA(\"body\",knt_tab!$A$3,\"zavodnik\",F54))","v":2},null,"",{"$f":"IF(ISERR(GETPIVOTDATA(\"body\",knt_tab!$AH$3,\"zavodnik\",knt_tab!AH10)),\"\",IF(GETPIVOTDATA(\"body\",knt_tab!$AH$3,\"zavodnik\",knt_tab!AH10)=0,\"\",knt_tab!AH10))","v":""},{"$f":"IF(J54=\"\",\"\",GETPIVOTDATA(\"body\",knt_tab!$AH$3,\"zavodnik\",J54))","v":""},null,{"$f":"IF(N54=\"\",\"\",IF(O54=O53,M53,ROW(M54)-ROW($M$52)))","v":2},{"$f":"IF(ISERR(GETPIVOTDATA(\"body\",knt_tab!$P$3,\"zavodnik\",knt_tab!P6)),\"\",IF(GETPIVOTDATA(\"body\",knt_tab!$P$3,\"zavodnik\",knt_tab!P6)=0,\"\",knt_tab!P6))","v":"Rapčanová Silvie"},{"$f":"IF(N54=\"\",\"\",GETPIVOTDATA(\"body\",knt_tab!$P$3,\"zavodnik\",N54))","v":109},null,8,{"$f":"IF(ISERR(GETPIVOTDATA(\"body\",knt_tab!$G$3,\"zavodnik\",knt_tab!G12)),\"\",IF(GETPIVOTDATA(\"body\",knt_tab!$G$3,\"zavodnik\",knt_tab!G12)=0,\"\",knt_tab!G12))","v":"Seibert Marian"},{"$f":"IF(R54=\"\",\"\",GETPIVOTDATA(\"body\",knt_tab!$G$3,\"zavodnik\",R54))","v":35},null,21,{"$f":"IF(ISERR(GETPIVOTDATA(\"body\",knt_tab!$D$3,\"zavodnik\",knt_tab!D29)),\"\",IF(GETPIVOTDATA(\"body\",knt_tab!$D$3,\"zavodnik\",knt_tab!D29)=0,\"\",knt_tab!D29))","v":"Hon Sebastián"},{"$f":"IF(V54=\"\",\"\",GETPIVOTDATA(\"body\",knt_tab!$D$3,\"zavodnik\",V54))","v":1}]
[51,{"$f":"IF(ISERR(GETPIVOTDATA(\"body\",knt_tab!$A$3,\"zavodnik\",knt_tab!A56)),\"\",IF(GETPIVOTDATA(\"body\",knt_tab!$A$3,\"zavodnik\",knt_tab!A56)=0,\"\",knt_tab!A56))","v":"Nuhlíček Michal"},{"$f":"IF(B55=\"\",\"\",GETPIVOTDATA(\"body\",knt_tab!$A$3,\"zavodnik\",B55))","v":29},null,113,{"$f":"IF(ISERR(GETPIVOTDATA(\"body\",knt_tab!$A$3,\"zavodnik\",knt_tab!A117)),\"\",IF(GETPIVOTDATA(\"body\",knt_tab!$A$3,\"zavodnik\",knt_tab!A117)=0,\"\",knt_tab!A117))","v":"Berka Daniel"},{"$f":"IF(F55=\"\",\"\",GETPIVOTDATA(\"body\",knt_tab!$A$3,\"zavodnik\",F55))","v":1},null,"",{"$f":"IF(ISERR(GETPIVOTDATA(\"body\",knt_tab!$AH$3,\"zavodnik\",knt_tab!AH11)),\"\",IF(GETPIVOTDATA(\"body\",knt_tab!$AH$3,\"zavodnik\",knt_tab!AH11)=0,\"\",knt_tab!AH11))","v":""},{"$f":"IF(J55=\"\",\"\",GETPIVOTDATA(\"body\",knt_tab!$AH$3,\"zavodnik\",J55))","v":""},null,{"$f":"IF(N55=\"\",\"\",IF(O55=O54,M54,ROW(M55)-ROW($M$52)))","v":3},{"$f":"IF(ISERR(GETPIVOTDATA(\"body\",knt_tab!$P$3,\"zavodnik\",knt_tab!P7)),\"\",IF(GETPIVOTDATA(\"body\",knt_tab!$P$3,\"zavodnik\",knt_tab!P7)=0,\"\",knt_tab!P7))","v":"Rapčanová Alice"},{"$f":"IF(N55=\"\",\"\",GETPIVOTDATA(\"body\",knt_tab!$P$3,\"zavodnik\",N55))","v":80},null,8,{"$f":"IF(ISERR(GETPIVOTDATA(\"body\",knt_tab!$G$3,\"zavodnik\",knt_tab!G13)),\"\",IF(GETPIVOTDATA(\"body\",knt_tab!$G$3,\"zavodnik\",knt_tab!G13)=0,\"\",knt_tab!G13))","v":"Kanclíř Šimon"},{"$f":"IF(R55=\"\",\"\",GETPIVOTDATA(\"body\",knt_tab!$G$3,\"zavodnik\",R55))","v":35},null,21,{"$f":"IF(ISERR(GETPIVOTDATA(\"body\",knt_tab!$D$3,\"zavodnik\",knt_tab!D30)),\"\",IF(GETPIVOTDATA(\"body\",knt_tab!$D$3,\"zavodnik\",knt_tab!D30)=0,\"\",knt_tab!D30))","v":"Berka Daniel"},{"$f":"IF(V55=\"\",\"\",GETPIVOTDATA(\"body\",knt_tab!$D$3,\"zavodnik\",V55))","v":1}]
[53,{"$f":"IF(ISERR(GETPIVOTDATA(\"body\",knt_tab!$A$3,\"zavodnik\",knt_tab!A57)),\"\",IF(GETPIVOTDATA(\"body\",knt_tab!$A$3,\"zavodnik\",knt_tab!A57)=0,\"\",knt_tab!A57))","v":"Kohn Tomáš"},{"$f":"IF(B56=\"\",\"\",GETPIVOTDATA(\"body\",knt_tab!$A$3,\"zavodnik\",B56))","v":28},null,113,{"$f":"IF(ISERR(GETPIVOTDATA(\"body\",knt_tab!$A$3,\"zavodnik\",knt_tab!A118)),\"\",IF(GETPIVOTDATA(\"body\",knt_tab!$A$3,\"zavodnik\",knt_tab!A118)=0,\"\",knt_tab!A118))","v":"Benáčková Denisa"},{"$f":"IF(F56=\"\",\"\",GETPIVOTDATA(\"body\",knt_tab!$A$3,\"zavodnik\",F56))","v":1},null,null,null,null,null,{"$f":"IF(N56=\"\",\"\",IF(O56=O55,M55,ROW(M56)-ROW($M$52)))","v":4},{"$f":"IF(ISERR(GETPIVOTDATA(\"body\",knt_tab!$P$3,\"zavodnik\",knt_tab!P8)),\"\",IF(GETPIVOTDATA(\"body\",knt_tab!$P$3,\"zavodnik\",knt_tab!P8)=0,\"\",knt_tab!P8))","v":"Vavřínová Pavla"},{"$f":"IF(N56=\"\",\"\",GETPIVOTDATA(\"body\",knt_tab!$P$3,\"zavodnik\",N56))","v":36},null,10,{"$f":"IF(ISERR(GETPIVOTDATA(\"body\",knt_tab!$G$3,\"zavodnik\",knt_tab!G14)),\"\",IF(GETPIVOTDATA(\"body\",knt_tab!$G$3,\"zavodnik\",knt_tab!G14)=0,\"\",knt_tab!G14))","v":"Pavlík Lukáš"},{"$f":"IF(R56=\"\",\"\",GETPIVOTDATA(\"body\",knt_tab!$G$3,\"zavodnik\",R56))","v":29},null,21,{"$f":"IF(ISERR(GETPIVOTDATA(\"body\",knt_tab!$D$3,\"zavodnik\",knt_tab!D31)),\"\",IF(GETPIVOTDATA(\"body\",knt_tab!$D$3,\"zavodnik\",knt_tab!D31)=0,\"\",knt_tab!D31))","v":"Gutiqi Ryan"},{"$f":"IF(V56=\"\",\"\",GETPIVOTDATA(\"body\",knt_tab!$D$3,\"zavodnik\",V56))","v":1}]
[54,{"$f":"IF(ISERR(GETPIVOTDATA(\"body\",knt_tab!$A$3,\"zavodnik\",knt_tab!A58)),\"\",IF(GETPIVOTDATA(\"body\",knt_tab!$A$3,\"zavodnik\",knt_tab!A58)=0,\"\",knt_tab!A58))","v":"Galamboš Kristián"},{"$f":"IF(B57=\"\",\"\",GETPIVOTDATA(\"body\",knt_tab!$A$3,\"zavodnik\",B57))","v":27},null,{"$f":"IF(F57=\"\",\"\",IF(G57=G56,E56,ROW(E57)-ROW($E$3)+61))","v":113},{"$f":"IF(ISERR(GETPIVOTDATA(\"body\",knt_tab!$A$3,\"zavodnik\",knt_tab!A119)),\"\",IF(GETPIVOTDATA(\"body\",knt_tab!$A$3,\"zavodnik\",knt_tab!A119)=0,\"\",knt_tab!A119))","v":"Lavrukhin Dobrynia"},{"$f":"IF(F57=\"\",\"\",GETPIVOTDATA(\"body\",knt_tab!$A$3,\"zavodnik\",F57))","v":1},null,"Juniorky",null,null,null,{"$f":"IF(N57=\"\",\"\",IF(O57=O56,M56,ROW(M57)-ROW($M$52)))","v":5},{"$f":"IF(ISERR(GETPIVOTDATA(\"body\",knt_tab!$P$3,\"zavodnik\",knt_tab!P9)),\"\",IF(GETPIVOTDATA(\"body\",knt_tab!$P$3,\"zavodnik\",knt_tab!P9)=0,\"\",knt_tab!P9))","v":"Volná Tereza"},{"$f":"IF(N57=\"\",\"\",GETPIVOTDATA(\"body\",knt_tab!$P$3,\"zavodnik\",N57))","v":12},null,11,{"$f":"IF(ISERR(GETPIVOTDATA(\"body\",knt_tab!$G$3,\"zavodnik\",knt_tab!G15)),\"\",IF(GETPIVOTDATA(\"body\",knt_tab!$G$3,\"zavodnik\",knt_tab!G15)=0,\"\",knt_tab!G15))","v":"Galamboš Kristián"},{"$f":"IF(R57=\"\",\"\",GETPIVOTDATA(\"body\",knt_tab!$G$3,\"zavodnik\",R57))","v":27},null,"",{"$f":"IF(ISERR(GETPIVOTDATA(\"body\",knt_tab!$D$3,\"zavodnik\",knt_tab!D32)),\"\",IF(GETPIVOTDATA(\"body\",knt_tab!$D$3,\"zavodnik\",knt_tab!D32)=0,\"\",knt_tab!D32))","v":""},{"$f":"IF(V57=\"\",\"\",GETPIVOTDATA(\"body\",knt_tab!$D$3,\"zavodnik\",V57))","v":""}]
[55,{"$f":"IF(ISERR(GETPIVOTDATA(\"body\",knt_tab!$A$3,\"zavodnik\",knt_tab!A59)),\"\",IF(GETPIVOTDATA(\"body\",knt_tab!$A$3,\"zavodnik\",knt_tab!A59)=0,\"\",knt_tab!A59))","v":"Fráňa Patrik"},{"$f":"IF(B58=\"\",\"\",GETPIVOTDATA(\"body\",knt_tab!$A$3,\"zavodnik\",B58))","v":26},null,113,{"$f":"IF(ISERR(GETPIVOTDATA(\"body\",knt_tab!$A$3,\"zavodnik\",knt_tab!A120)),\"\",IF(GETPIVOTDATA(\"body\",knt_tab!$A$3,\"zavodnik\",knt_tab!A120)=0,\"\",knt_tab!A120))","v":"Gutiqi Ryan"},{"$f":"IF(F58=\"\",\"\",GETPIVOTDATA(\"body\",knt_tab!$A$3,\"zavodnik\",F58))","v":1},null,"Pořadí","Příjmení","body",null,6,{"$f":"IF(ISERR(GETPIVOTDATA(\"body\",knt_tab!$P$3,\"zavodnik\",knt_tab!P10)),\"\",IF(GETPIVOTDATA(\"body\",knt_tab!$P$3,\"zavodnik\",knt_tab!P10)=0,\"\",knt_tab!P10))","v":"Bukovjanová Charlotte"},{"$f":"IF(N58=\"\",\"\",GETPIVOTDATA(\"body\",knt_tab!$P$3,\"zavodnik\",N58))","v":11},null,12,{"$f":"IF(ISERR(GETPIVOTDATA(\"body\",knt_tab!$G$3,\"zavodnik\",knt_tab!G16)),\"\",IF(GETPIVOTDATA(\"body\",knt_tab!$G$3,\"zavodnik\",knt_tab!G16)=0,\"\",knt_tab!G16))","v":"Kulhánek Adam"},{"$f":"IF(R58=\"\",\"\",GETPIVOTDATA(\"body\",knt_tab!$G$3,\"zavodnik\",R58))","v":25},null,"",{"$f":"IF(ISERR(GETPIVOTDATA(\"body\",knt_tab!$D$3,\"zavodnik\",knt_tab!D33)),\"\",IF(GETPIVOTDATA(\"body\",knt_tab!$D$3,\"zavodnik\",knt_tab!D33)=0,\"\",knt_tab!D33))","v":""},{"$f":"IF(V58=\"\",\"\",GETPIVOTDATA(\"body\",knt_tab!$D$3,\"zavodnik\",V58))","v":""}]
[56,{"$f":"IF(ISERR(GETPIVOTDATA(\"body\",knt_tab!$A$3,\"zavodnik\",knt_tab!A60)),\"\",IF(GETPIVOTDATA(\"body\",knt_tab!$A$3,\"zavodnik\",knt_tab!A60)=0,\"\",knt_tab!A60))","v":"Bulka Vojtěch"},{"$f":"IF(B59=\"\",\"\",GETPIVOTDATA(\"body\",knt_tab!$A$3,\"zavodnik\",B59))","v":25},null,113,{"$f":"IF(ISERR(GETPIVOTDATA(\"body\",knt_tab!$A$3,\"zavodnik\",knt_tab!A121)),\"\",IF(GETPIVOTDATA(\"body\",knt_tab!$A$3,\"zavodnik\",knt_tab!A121)=0,\"\",knt_tab!A121))","v":"Hon Sebastián"},{"$f":"IF(F59=\"\",\"\",GETPIVOTDATA(\"body\",knt_tab!$A$3,\"zavodnik\",F59))","v":1},null,1,{"$f":"IF(ISERR(GETPIVOTDATA(\"body\",knt_tab!$AB$3,\"zavodnik\",knt_tab!AB5)),\"\",IF(GETPIVOTDATA(\"body\",knt_tab!$AB$3,\"zavodnik\",knt_tab!AB5)=0,\"\",knt_tab!AB5))","v":"Polášková Kristýna"},{"$f":"IF(J59=\"\",\"\",GETPIVOTDATA(\"body\",knt_tab!$AB$3,\"zavodnik\",J59))","v":96},null,7,{"$f":"IF(ISERR(GETPIVOTDATA(\"body\",knt_tab!$P$3,\"zavodnik\",knt_tab!P11)),\"\",IF(GETPIVOTDATA(\"body\",knt_tab!$P$3,\"zavodnik\",knt_tab!P11)=0,\"\",knt_tab!P11))","v":"Močkořová Adéla"},{"$f":"IF(N59=\"\",\"\",GETPIVOTDATA(\"body\",knt_tab!$P$3,\"zavodnik\",N59))","v":10},null,13,{"$f":"IF(ISERR(GETPIVOTDATA(\"body\",knt_tab!$G$3,\"zavodnik\",knt_tab!G17)),\"\",IF(GETPIVOTDATA(\"body\",knt_tab!$G$3,\"zavodnik\",knt_tab!G17)=0,\"\",knt_tab!G17))","v":"Malinovský Jiří"},{"$f":"IF(R59=\"\",\"\",GETPIVOTDATA(\"body\",knt_tab!$G$3,\"zavodnik\",R59))","v":22},null,"",{"$f":"IF(ISERR(GETPIVOTDATA(\"body\",knt_tab!$D$3,\"zavodnik\",knt_tab!D34)),\"\",IF(GETPIVOTDATA(\"body\",knt_tab!$D$3,\"zavodnik\",knt_tab!D34)=0,\"\",knt_tab!D34))","v":""},{"$f":"IF(V59=\"\",\"\",GETPIVOTDATA(\"body\",knt_tab!$D$3,\"zavodnik\",V59))","v":""}]
[56,{"$f":"IF(ISERR(GETPIVOTDATA(\"body\",knt_tab!$A$3,\"zavodnik\",knt_tab!A61)),\"\",IF(GETPIVOTDATA(\"body\",knt_tab!$A$3,\"zavodnik\",knt_tab!A61)=0,\"\",knt_tab!A61))","v":"Kulhánek Adam"},{"$f":"IF(B60=\"\",\"\",GETPIVOTDATA(\"body\",knt_tab!$A$3,\"zavodnik\",B60))","v":25},null,113,{"$f":"IF(ISERR(GETPIVOTDATA(\"body\",knt_tab!$A$3,\"zavodnik\",knt_tab!A122)),\"\",IF(GETPIVOTDATA(\"body\",knt_tab!$A$3,\"zavodnik\",knt_tab!A122)=0,\"\",knt_tab!A122))","v":"Pustka Robin"},{"$f":"IF(F60=\"\",\"\",GETPIVOTDATA(\"body\",knt_tab!$A$3,\"zavodnik\",F60))","v":1},null,{"$f":"IF(J60=\"\",\"\",IF(K60=K59,I59,ROW(I60)-ROW($I$58)))","v":2},{"$f":"IF(ISERR(GETPIVOTDATA(\"body\",knt_tab!$AB$3,\"zavodnik\",knt_tab!AB6)),\"\",IF(GETPIVOTDATA(\"body\",knt_tab!$AB$3,\"zavodnik\",knt_tab!AB6)=0,\"\",knt_tab!AB6))","v":"Martínková Adéla"},{"$f":"IF(J60=\"\",\"\",GETPIVOTDATA(\"body\",knt_tab!$AB$3,\"zavodnik\",J60))","v":37},null,8,{"$f":"IF(ISERR(GETPIVOTDATA(\"body\",knt_tab!$P$3,\"zavodnik\",knt_tab!P12)),\"\",IF(GETPIVOTDATA(\"body\",knt_tab!$P$3,\"zavodnik\",knt_tab!P12)=0,\"\",knt_tab!P12))","v":"Pupíková Adéla"},{"$f":"IF(N60=\"\",\"\",GETPIVOTDATA(\"body\",knt_tab!$P$3,\"zavodnik\",N60))","v":5},null,14,{"$f":"IF(ISERR(GETPIVOTDATA(\"body\",knt_tab!$G$3,\"zavodnik\",knt_tab!G18)),\"\",IF(GETPIVOTDATA(\"body\",knt_tab!$G$3,\"zavodnik\",knt_tab!G18)=0,\"\",knt_tab!G18))","v":"Šimkovič Ondřej"},{"$f":"IF(R60=\"\",\"\",GETPIVOTDATA(\"body\",knt_tab!$G$3,\"zavodnik\",R60))","v":20},null,"",{"$f":"IF(ISERR(GETPIVOTDATA(\"body\",knt_tab!$D$3,\"zavodnik\",knt_tab!D35)),\"\",IF(GETPIVOTDATA(\"body\",knt_tab!$D$3,\"zavodnik\",knt_tab!D35)=0,\"\",knt_tab!D35))","v":""},{"$f":"IF(V60=\"\",\"\",GETPIVOTDATA(\"body\",knt_tab!$D$3,\"zavodnik\",V60))","v":""}]
[56,{"$f":"IF(ISERR(GETPIVOTDATA(\"body\",knt_tab!$A$3,\"zavodnik\",knt_tab!A62)),\"\",IF(GETPIVOTDATA(\"body\",knt_tab!$A$3,\"zavodnik\",knt_tab!A62)=0,\"\",knt_tab!A62))","v":"Raška Michael"},{"$f":"IF(B61=\"\",\"\",GETPIVOTDATA(\"body\",knt_tab!$A$3,\"zavodnik\",B61))","v":25},null,113,{"$f":"IF(ISERR(GETPIVOTDATA(\"body\",knt_tab!$A$3,\"zavodnik\",knt_tab!A123)),\"\",IF(GETPIVOTDATA(\"body\",knt_tab!$A$3,\"zavodnik\",knt_tab!A123)=0,\"\",knt_tab!A123))","v":"Staněk Patrik"},{"$f":"IF(F61=\"\",\"\",GETPIVOTDATA(\"body\",knt_tab!$A$3,\"zavodnik\",F61))","v":1},null,{"$f":"IF(J61=\"\",\"\",IF(K61=K60,I60,ROW(I61)-ROW($I$58)))","v":3},{"$f":"IF(ISERR(GETPIVOTDATA(\"body\",knt_tab!$AB$3,\"zavodnik\",knt_tab!AB7)),\"\",IF(GETPIVOTDATA(\"body\",knt_tab!$AB$3,\"zavodnik\",knt_tab!AB7)=0,\"\",knt_tab!AB7))","v":"Čerchlová Markéta"},{"$f":"IF(J61=\"\",\"\",GETPIVOTDATA(\"body\",knt_tab!$AB$3,\"zavodnik\",J61))","v":22},null,9,{"$f":"IF(ISERR(GETPIVOTDATA(\"body\",knt_tab!$P$3,\"zavodnik\",knt_tab!P13)),\"\",IF(GETPIVOTDATA(\"body\",knt_tab!$P$3,\"zavodnik\",knt_tab!P13)=0,\"\",knt_tab!P13))","v":"Kosťová Barbora"},{"$f":"IF(N61=\"\",\"\",GETPIVOTDATA(\"body\",knt_tab!$P$3,\"zavodnik\",N61))","v":4},null,15,{"$f":"IF(ISERR(GETPIVOTDATA(\"body\",knt_tab!$G$3,\"zavodnik\",knt_tab!G19)),\"\",IF(GETPIVOTDATA(\"body\",knt_tab!$G$3,\"zavodnik\",knt_tab!G19)=0,\"\",knt_tab!G19))","v":"Dryšl Adam"},{"$f":"IF(R61=\"\",\"\",GETPIVOTDATA(\"body\",knt_tab!$G$3,\"zavodnik\",R61))","v":18},null,"",{"$f":"IF(ISERR(GETPIVOTDATA(\"body\",knt_tab!$D$3,\"zavodnik\",knt_tab!D36)),\"\",IF(GETPIVOTDATA(\"body\",knt_tab!$D$3,\"zavodnik\",knt_tab!D36)=0,\"\",knt_tab!D36))","v":""},{"$f":"IF(V61=\"\",\"\",GETPIVOTDATA(\"body\",knt_tab!$D$3,\"zavodnik\",V61))","v":""}]
[56,{"$f":"IF(ISERR(GETPIVOTDATA(\"body\",knt_tab!$A$3,\"zavodnik\",knt_tab!A63)),\"\",IF(GETPIVOTDATA(\"body\",knt_tab!$A$3,\"zavodnik\",knt_tab!A63)=0,\"\",knt_tab!A63))","v":"Čech Jiří"},{"$f":"IF(B62=\"\",\"\",GETPIVOTDATA(\"body\",knt_tab!$A$3,\"zavodnik\",B62))","v":25},null,113,{"$f":"IF(ISERR(GETPIVOTDATA(\"body\",knt_tab!$A$3,\"zavodnik\",knt_tab!A124)),\"\",IF(GETPIVOTDATA(\"body\",knt_tab!$A$3,\"zavodnik\",knt_tab!A124)=0,\"\",knt_tab!A124))","v":"Malík Jakub"},{"$f":"IF(F62=\"\",\"\",GETPIVOTDATA(\"body\",knt_tab!$A$3,\"zavodnik\",F62))","v":1},null,{"$f":"IF(J62=\"\",\"\",IF(K62=K61,I61,ROW(I62)-ROW($I$58)))","v":""},{"$f":"IF(ISERR(GETPIVOTDATA(\"body\",knt_tab!$AB$3,\"zavodnik\",knt_tab!AB8)),\"\",IF(GETPIVOTDATA(\"body\",knt_tab!$AB$3,\"zavodnik\",knt_tab!AB8)=0,\"\",knt_tab!AB8))","v":""},{"$f":"IF(J62=\"\",\"\",GETPIVOTDATA(\"body\",knt_tab!$AB$3,\"zavodnik\",J62))","v":""},null,"",{"$f":"IF(ISERR(GETPIVOTDATA(\"body\",knt_tab!$P$3,\"zavodnik\",knt_tab!P14)),\"\",IF(GETPIVOTDATA(\"body\",knt_tab!$P$3,\"zavodnik\",knt_tab!P14)=0,\"\",knt_tab!P14))","v":""},{"$f":"IF(N62=\"\",\"\",GETPIVOTDATA(\"body\",knt_tab!$P$3,\"zavodnik\",N62))","v":""},null,16,{"$f":"IF(ISERR(GETPIVOTDATA(\"body\",knt_tab!$G$3,\"zavodnik\",knt_tab!G20)),\"\",IF(GETPIVOTDATA(\"body\",knt_tab!$G$3,\"zavodnik\",knt_tab!G20)=0,\"\",knt_tab!G20))","v":"Salinger David"},{"$f":"IF(R62=\"\",\"\",GETPIVOTDATA(\"body\",knt_tab!$G$3,\"zavodnik\",R62))","v":17},null,"",{"$f":"IF(ISERR(GETPIVOTDATA(\"body\",knt_tab!$D$3,\"zavodnik\",knt_tab!D37)),\"\",IF(GETPIVOTDATA(\"body\",knt_tab!$D$3,\"zavodnik\",knt_tab!D37)=0,\"\",knt_tab!D37))","v":""},{"$f":"IF(V62=\"\",\"\",GETPIVOTDATA(\"body\",knt_tab!$D$3,\"zavodnik\",V62))","v":""}]
[60,{"$f":"IF(ISERR(GETPIVOTDATA(\"body\",knt_tab!$A$3,\"zavodnik\",knt_tab!A64)),\"\",IF(GETPIVOTDATA(\"body\",knt_tab!$A$3,\"zavodnik\",knt_tab!A64)=0,\"\",knt_tab!A64))","v":"Otáhalová Magdaléna"},{"$f":"IF(B63=\"\",\"\",GETPIVOTDATA(\"body\",knt_tab!$A$3,\"zavodnik\",B63))","v":24},null,{"$f":"IF(F63=\"\",\"\",IF(G63=G62,E62,ROW(E63)-ROW($E$3)+61))","v":113},{"$f":"IF(ISERR(GETPIVOTDATA(\"body\",knt_tab!$A$3,\"zavodnik\",knt_tab!A125)),\"\",IF(GETPIVOTDATA(\"body\",knt_tab!$A$3,\"zavodnik\",knt_tab!A125)=0,\"\",knt_tab!A125))","v":"Bystrianský Jan"},{"$f":"IF(F63=\"\",\"\",GETPIVOTDATA(\"body\",knt_tab!$A$3,\"zavodnik\",F63))","v":1},null,"",{"$f":"IF(ISERR(GETPIVOTDATA(\"body\",knt_tab!$AB$3,\"zavodnik\",knt_tab!AB9)),\"\",IF(GETPIVOTDATA(\"body\",knt_tab!$AB$3,\"zavodnik\",knt_tab!AB9)=0,\"\",knt_tab!AB9))","v":""},{"$f":"IF(J63=\"\",\"\",GETPIVOTDATA(\"body\",knt_tab!$AB$3,\"zavodnik\",J63))","v":""},null,"",{"$f":"IF(ISERR(GETPIVOTDATA(\"body\",knt_tab!$P$3,\"zavodnik\",knt_tab!P15)),\"\",IF(GETPIVOTDATA(\"body\",knt_tab!$P$3,\"zavodnik\",knt_tab!P15)=0,\"\",knt_tab!P15))","v":""},{"$f":"IF(N63=\"\",\"\",GETPIVOTDATA(\"body\",knt_tab!$P$3,\"zavodnik\",N63))","v":""},null,17,{"$f":"IF(ISERR(GETPIVOTDATA(\"body\",knt_tab!$G$3,\"zavodnik\",knt_tab!G21)),\"\",IF(GETPIVOTDATA(\"body\",knt_tab!$G$3,\"zavodnik\",knt_tab!G21)=0,\"\",knt_tab!G21))","v":"Mařec Tomáš"},{"$f":"IF(R63=\"\",\"\",GETPIVOTDATA(\"body\",knt_tab!$G$3,\"zavodnik\",R63))","v":14},null,"",{"$f":"IF(ISERR(GETPIVOTDATA(\"body\",knt_tab!$D$3,\"zavodnik\",knt_tab!D38)),\"\",IF(GETPIVOTDATA(\"body\",knt_tab!$D$3,\"zavodnik\",knt_tab!D38)=0,\"\",knt_tab!D38))","v":""},{"$f":"IF(V63=\"\",\"\",GETPIVOTDATA(\"body\",knt_tab!$D$3,\"zavodnik\",V63))","v":""}]